{"text_format":"1","workbook":"xlsx","n_sheets":7,"sheets":["TitlePage","Meals","Mileage","Lodging","Misc.Expenses","Air&RentalCar","perdiem"],"not_rendered":{"charts":0,"images":0,"macros":1,"external_links":0,"defined_names":187,"comments":5,"pivot_tables":0},"unopened":[],"bounds":{"document_bytes":16777216,"sheet_cells":100000,"rows_first":2000,"rows_last":500,"rows_between":2000,"halvings":0,"cell_chars":16384,"cell_head_chars":4096},"cells_cut":0,"cells_raw":0,"read":"whole","date_system":"1900"}

{"sheet":"TitlePage","index":0,"n_rows":79,"n_cols":40,"rows_kept":79,"cut":false,"hidden":false,"merged":[[19,36,19,37],[20,36,20,37],[21,36,21,37],[22,36,22,37],[23,36,23,37],[24,36,24,37],[25,36,25,37],[26,36,26,37],[27,36,27,37],[37,36,37,37],[38,36,38,37],[39,36,39,37],[40,36,40,37],[41,36,41,37],[42,36,42,37],[37,31,37,34],[38,31,38,34],[39,31,39,34],[40,31,40,34],[41,31,41,34],[42,31,42,34],[30,36,30,37],[31,36,31,37],[32,36,32,37],[33,36,33,37],[34,36,34,37],[35,36,35,37],[36,36,36,37],[28,31,28,34],[29,31,29,34],[30,31,30,34],[31,31,31,34],[32,31,32,34],[33,31,33,34],[34,31,34,34],[35,31,35,34],[36,31,36,34],[28,36,28,37],[29,36,29,37],[19,31,19,34],[20,31,20,34],[21,31,21,34],[22,31,22,34],[23,31,23,34],[24,31,24,34],[25,31,25,34],[26,31,26,34],[27,31,27,34],[8,36,11,37],[0,0,19,0],[0,21,19,21],[40,18,40,19],[28,18,28,19],[21,18,21,19],[25,18,25,19],[10,6,10,12],[11,6,11,12],[27,4,27,7],[28,4,28,7],[38,4,38,7],[33,4,33,7],[34,4,34,7],[27,9,27,10],[28,9,28,10],[27,18,27,19],[35,18,35,19],[29,9,29,10],[29,18,29,19],[36,18,36,19],[38,18,38,19],[31,9,31,10],[30,9,30,10],[48,5,48,9],[48,10,48,16],[45,14,45,16],[47,10,47,16],[44,1,44,2],[43,4,43,7],[49,2,49,3],[32,18,32,19],[48,18,48,19],[47,18,47,19],[37,18,37,19],[33,9,33,10],[32,4,32,7],[47,5,47,9],[41,18,41,19],[42,18,42,19],[41,9,41,10],[32,9,32,10],[45,18,45,19],[48,2,48,4],[39,4,39,7],[43,1,43,2],[32,1,32,2],[45,9,45,10],[30,18,30,19],[26,9,26,10],[34,1,34,2],[33,1,33,2],[36,4,36,7],[42,9,42,10],[43,9,43,10],[6,18,6,19],[8,15,8,19],[34,18,34,19],[38,9,38,10],[34,9,34,10],[35,9,35,10],[36,9,36,10],[39,9,39,10],[40,9,40,10],[37,9,37,10],[14,16,14,18],[13,6,13,11],[37,4,37,7],[36,1,36,2],[35,1,35,2],[40,1,40,2],[15,16,15,18],[0,16,0,19],[1,16,1,19],[4,1,4,3],[0,6,0,11],[1,6,1,11],[0,1,0,4],[1,1,2,1],[1,2,2,3],[4,4,4,7],[3,15,4,15],[4,16,4,19],[4,10,4,12],[22,18,22,19],[5,5,5,12],[6,5,6,12],[7,5,7,12],[31,4,31,7],[35,4,35,7],[7,15,7,19],[10,16,10,19],[11,16,11,19],[8,5,8,12],[5,16,5,19],[24,4,24,7],[13,4,13,5],[13,14,13,15],[14,4,14,5],[15,4,15,5],[21,9,21,10],[22,9,22,10],[23,9,23,10],[24,9,24,10],[23,4,23,7],[22,4,22,7],[21,4,21,7],[14,14,14,15],[42,1,42,2],[15,14,15,15],[13,16,13,18],[30,4,30,7],[41,1,41,2],[14,6,14,11],[15,6,15,11],[21,0,43,0],[29,1,29,2],[29,4,29,7],[24,1,24,2],[39,1,39,2],[31,1,31,2],[30,1,30,2],[21,1,21,2],[22,1,22,2],[25,4,25,7],[27,1,27,2],[26,1,26,2],[23,1,23,2],[37,1,37,2],[38,1,38,2],[40,4,40,7],[41,4,41,7],[9,1,9,19],[17,4,17,19],[23,18,23,19],[26,4,26,7],[28,1,28,2],[49,5,49,9],[49,10,49,16],[49,18,49,19],[19,1,19,19],[25,1,25,2],[24,18,24,19],[20,18,20,19],[20,4,20,7],[20,1,20,2],[20,9,20,10],[31,18,31,19],[44,4,44,7],[44,9,44,10],[42,4,42,7],[20,14,20,16],[26,18,26,19],[25,9,25,10],[33,18,33,19],[43,18,43,19]]}
[{"$f":"IF(Sum_ALL=0,\"UNVERIFIED VOUCHER\",\"\")","v":"UNVERIFIED VOUCHER"},null,null,null,null,null,"University of Louisville",null,null,null,null,null,null,null,null,null,"Total Reimbursement",null,null,null,null,{"$f":"IF(Sum_ALL=0,\"UNVERIFIED VOUCHER\",\"\")","v":"UNVERIFIED VOUCHER"},false,{"$f":"NOW()-731","v":"2012-04-24T10:18:15.480"},"<-- MIN_DATE"]
[null,null,null,null,null,null,"Travel Expense Voucher",null,null,null,null,null,null,{"$f":"IF(W1,IF(W2,\"Select 1 Status\",\"EMPLOYEE\"),IF(W2,\"STUDENT\",\"Select 1 Status\"))","v":"Select 1 Status"},null,null,{"$f":"(M46)","v":0},null,null,null,null,null,false]
[]
[null,null,null,null,null,null,null,null,null,"Date ",null,null,null,null,null,"ID#",null,null,null,null,null,null,null,null,null,null,null,null,null,null,null,"Sheet","Column","Min","Max","Alert if >","Explanation"]
[null,"Vendor Number:",null,null,null,null,null,null,null,"Prepared:",null,null,null,null,null,null,null,null,null,null,null,null,null,null,null,null,null,null,null,null,null,"Mileage","G",1,2000,1000,"N/A"]
[null,"Employee/Student Name:",null,null,null,null,null,null,null,null,null,null,null,null,"Department:",null,null,null,null,null,null,null,null,null,null,null,null,null,null,null,null,"Lodging","F",1,10000,1000,"Optional"]
[null,"Workstation:",null,null,null,null,null,null,null,null,null,null,null,null,"Department Contact",null,null,null,null,null,null,null,null,null,null,null,null,null,null,null,null,"Misc.Expenses","H",1,10000,2000,"Required"]
[null,"Residence Address:",null,null,null,null,null,null,null,null,null,null,null,null,"Name:",null,null,null,null,null,null,null,null,null,null,null,null,null,null,null,null,"Air&RentalCar","G",1,25000,10000,"Optional"]
[null,"City/State/Zip Code:",null,null,null,null,null,null,null,null,null,null,null,null,"Phone:",null,null,null,null,null,null,null,null,null,null,null,null,null,null,null,null,null,null,null,null,null,"Modifying Yellow boxes above will not affect Macro logic"]
[null,{"$f":"IF(ISBLANK(TP_Return_Date),\"Travel Voucher Due to the Controller’s Office within 60 days of Return Date or 60 days from the day the expense occurred for mileage-only claims.\",\"Travel Voucher Due to the Controller's Office by \" & TEXT(TP_Return_Date+60,\"m/d/yyyy\")&\" or 60 days from the day the expense occurred for mileage-only claims.\")","v":"Travel Voucher Due to the Controller’s Office within 60 days of Return Date or 60 days from the day the expense occurred for mileage-only claims."}]
[null,null,"Dates",null,"Departure Date:",null,null,null,null,null,null,null,null,null,"Return Date:"]
[null,null,"of Travel:",null,"Departure Time:",null,null,null,null,null,null,null,null,null,"Return Time:"]
[]
[null,null,"Travel",null,"Travel From:    City",null,"Louisville",null,null,null,null,null,2,null,"Travel To:    City",null,null,null,null,1]
[null,null,"Destination:",null,"Travel From:    City",null,null,null,null,null,null,null,1,null,"Travel To:    City",null,null,null,null,1]
[null,null,null,null,"Travel From:    City",null,null,null,null,null,null,null,1,null,"Travel To:    City",null,null,null,null,1]
[]
[null,"Purpose of Travel:"]
[]
[null,"Complete pages 2 through 6 before entering information in this section. Shaded areas will automatically populate.",null,null,null,null,null,null,null,null,null,null,null,null,null,null,null,null,null,null,null,null,null,null,null,null,null,"State",null,null,null,{"$f":"IF(SUM('Air&RentalCar'!$G$19)=0,\"\",\"535110 In-state Air\")","v":""},null,null,null,null,{"$f":"'Air&RentalCar'!$G$19","v":0},null,null,{"$f":"$J20","v":0}]
[null,"Speed Type",null,null,"Account Code",null,null,null,null,"Total Charges",null,null,"Total to be Reimbursed",null,"Authorized Signature",null,null,null,"Date Signed",null,null,null,null,"In/Out State?",{"$f":"IF(SUM(Y22:Y24)<4,\"IN\",IF(MOD(SUM(Y22:Y24),100)=0,\"OUT\",\"MIX\"))","v":"IN"},null,null,"KY",null,null,null,{"$f":"IF(SUM('Air&RentalCar'!$G$20)=0,\"\",\"535210 Out-of-state Air\")","v":""},null,null,null,null,{"$f":"'Air&RentalCar'!$G$20","v":0},null,null,"Total Charges"]
["PRINTING TIP: Be sure to print all tabs containing information. Manually select all tabs or select 'Entire Workbook' when printing.",null,null,null,{"$f":"IF(SUM('Air&RentalCar'!$G$19)=0,\"\",\"535110 In-state Air\")","v":""},null,null,null,null,{"$f":"'Air&RentalCar'!$G$19","v":0},null,null,{"$f":"$J22","v":0},null,null,null,null,null,null,null,null,null,null,{"$f":"IF(M14=1,0,IF(M14=2,1,IF(M14=20,1,100)))","v":1},{"$f":"IF(T14=1,0,IF(T14=2,1,IF(T14=20,1,100)))","v":0},null,null,"AK",null,null,null,{"$f":"IF(SUM('Air&RentalCar'!$G$23)=0,\"\",\"535310 International Air\")","v":""},null,null,null,null,{"$f":"'Air&RentalCar'!$G$23","v":0},null,null,0]
[null,null,null,null,{"$f":"IF(SUM('Air&RentalCar'!$G$20)=0,\"\",\"535210 Out-of-state Air\")","v":""},null,null,null,null,{"$f":"'Air&RentalCar'!$G$20","v":0},null,null,0,null,null,null,null,null,null,null,null,null,null,{"$f":"IF(M15=1,0,IF(M15=2,1,IF(M15=20,1,100)))","v":0},{"$f":"IF(T15=1,0,IF(T15=2,1,IF(T15=20,1,100)))","v":0},null,null,"AL",null,null,null,{"$f":"IF(SUM('Air&RentalCar'!$G$21)=0,\"\",\"535410 Student Air\")","v":""},null,null,null,null,{"$f":"'Air&RentalCar'!$G$21","v":0},null,null,0]
[null,null,null,null,{"$f":"IF(SUM('Air&RentalCar'!$G$23)=0,\"\",\"535310 International Air\")","v":""},null,null,null,null,{"$f":"'Air&RentalCar'!$G$23","v":0},null,null,0,null,null,null,null,null,null,null,null,null,null,{"$f":"IF(M16=1,0,IF(M16=2,1,IF(M16=20,1,100)))","v":0},{"$f":"IF(T16=1,0,IF(T16=2,1,IF(T16=20,1,100)))","v":0},null,null,"AR",null,null,null,{"$f":"IF(SUM('Air&RentalCar'!$G$22)=0,\"\",\"535550 Other Non-Employee Travel Air\")","v":""},null,null,null,null,{"$f":"'Air&RentalCar'!$G$22","v":0},null,null,0]
[null,null,null,null,{"$f":"IF(SUM('Air&RentalCar'!$G$21)=0,\"\",\"535410 Student Air\")","v":""},null,null,null,null,{"$f":"'Air&RentalCar'!$G$21","v":0},null,null,0,null,null,null,null,null,null,null,null,null,null,null,null,null,null,"AZ",null,null,null,{"$f":"IF(SUM(Lodging!$F$30)=0,\"\",\"535111 In-state Hotel\")","v":""},null,null,null,null,{"$f":"Lodging!$F$30","v":0},null,null,0]
[null,null,null,null,{"$f":"IF(SUM('Air&RentalCar'!$G$22)=0,\"\",\"535550 Other Non-Employee Travel Air\")","v":""},null,null,null,null,{"$f":"'Air&RentalCar'!$G$22","v":0},null,null,0,null,null,null,null,null,null,null,null,null,null,{"$f":"SUM(X28:X51)","v":0},{"$f":"SUM(Y28:Y51)","v":24},{"$f":"SUM(Z28:Z51)","v":0},null,"CA",null,null,null,{"$f":"IF(SUM(Lodging!$F$31)=0,\"\",\"535211 Out-of-state Hotel\")","v":""},null,null,null,null,{"$f":"Lodging!$F$31","v":0},null,null,0]
[null,null,null,null,{"$f":"IF(SUM(Lodging!$F$30)=0,\"\",\"535111 In-state Hotel\")","v":""},null,null,null,null,{"$f":"Lodging!$F$30","v":0},null,null,0,null,null,null,null,null,null,null,null,null,null,"Speed Type Count",null,"Account Code Count",null,"CO",null,null,null,{"$f":"IF(SUM(Lodging!$F$34)=0,\"\",\"535311 International Hotel\")","v":""},null,null,null,null,{"$f":"Lodging!$F$34","v":0},null,null,0]
[null,null,null,null,{"$f":"IF(SUM(Lodging!$F$31)=0,\"\",\"535211 Out-of-state Hotel\")","v":""},null,null,null,null,{"$f":"Lodging!$F$31","v":0},null,null,0,null,null,null,null,null,null,null,null,null,{"$f":"IF(ISBLANK(B22),\"\",TEXT(B22,\"00000\"))","v":""},{"$f":"IF(LEN(W28)>4,1,IF(LEN(W28)>0,2,0))","v":0},{"$f":"IF(X28=Z28,1,1000)","v":1},{"$f":"IF(LEN(TRIM(E22))>2,1,0)","v":0},null,"CT",null,null,null,{"$f":"IF(SUM(Lodging!$F$32)=0,\"\",\"535411 Student Hotel\")","v":""},null,null,null,null,{"$f":"Lodging!$F$32","v":0},null,null,0]
[null,null,null,null,{"$f":"IF(SUM(Lodging!$F$34)=0,\"\",\"535311 International Hotel\")","v":""},null,null,null,null,{"$f":"Lodging!$F$34","v":0},null,null,0,null,null,null,null,null,null,null,null,null,{"$f":"IF(ISBLANK(B23),\"\",TEXT(B23,\"00000\"))","v":""},0,{"$f":"IF(X29=Z29,1,1000)","v":1},{"$f":"IF(LEN(TRIM(E23))>2,1,0)","v":0},null,"DC",null,null,null,{"$f":"IF(SUM(Lodging!$F$33)=0,\"\",\"535511 Other Non-Employee Hotel\")","v":""},null,null,null,null,{"$f":"Lodging!$F$33","v":0},null,null,0]
[null,null,null,null,{"$f":"IF(SUM(Lodging!$F$32)=0,\"\",\"535411 Student Hotel\")","v":""},null,null,null,null,{"$f":"Lodging!$F$32","v":0},null,null,0,null,null,null,null,null,null,null,null,null,"",0,1,0,null,"DE",null,null,null,{"$f":"IF(SUM('Air&RentalCar'!$G$39)=0,\"\",\"535112 In-state Rental Car\")","v":""},null,null,null,null,{"$f":"'Air&RentalCar'!$G$39","v":0},null,null,0]
[null,null,null,null,{"$f":"IF(SUM(Lodging!$F$33)=0,\"\",\"535511 Other Non-Employee Hotel\")","v":""},null,null,null,null,{"$f":"Lodging!$F$33","v":0},null,null,0,null,null,null,null,null,null,null,null,null,"",0,1,0,null,"FL",null,null,null,{"$f":"IF(SUM('Air&RentalCar'!$G$40)=0,\"\",\"535212 Out-of-state Rental Car\")","v":""},null,null,null,null,{"$f":"'Air&RentalCar'!$G$40","v":0},null,null,0]
[null,null,null,null,{"$f":"IF(SUM('Air&RentalCar'!$G$39)=0,\"\",\"535112 In-state Rental Car\")","v":""},null,null,null,null,{"$f":"'Air&RentalCar'!$G$39","v":0},null,null,0,null,null,null,null,null,null,null,null,null,"",0,1,0,null,"GA",null,null,null,{"$f":"IF(SUM('Air&RentalCar'!$G$43)=0,\"\",\"535312 International Rental Car\")","v":""},null,null,null,null,{"$f":"'Air&RentalCar'!$G$43","v":0},null,null,0]
[null,null,null,null,{"$f":"IF(SUM('Air&RentalCar'!$G$40)=0,\"\",\"535212 Out-of-state Rental Car\")","v":""},null,null,null,null,{"$f":"'Air&RentalCar'!$G$40","v":0},null,null,0,null,null,null,null,null,null,null,null,null,"",0,1,0,null,"HI",null,null,null,{"$f":"IF(SUM('Air&RentalCar'!$G$41)=0,\"\",\"535412 Student Rental Car\")","v":""},null,null,null,null,{"$f":"'Air&RentalCar'!$G$41","v":0},null,null,0]
[null,null,null,null,{"$f":"IF(SUM('Air&RentalCar'!$G$43)=0,\"\",\"535312 International Rental Car\")","v":""},null,null,null,null,{"$f":"'Air&RentalCar'!$G$43","v":0},null,null,0,null,null,null,null,null,null,null,null,null,"",0,1,0,null,"IA",null,null,null,{"$f":"IF(SUM('Air&RentalCar'!$G$42)=0,\"\",\"535552 Other Non-Employee Rental Car\")","v":""},null,null,null,null,{"$f":"'Air&RentalCar'!$G$42","v":0},null,null,0]
[null,null,null,null,{"$f":"IF(SUM('Air&RentalCar'!$G$41)=0,\"\",\"535412 Student Rental Car\")","v":""},null,null,null,null,{"$f":"'Air&RentalCar'!$G$41","v":0},null,null,0,null,null,null,null,null,null,null,null,null,"",0,1,0,null,"ID",null,null,null,{"$f":"IF(SUM(Meals!$N$33:$O$33,Mileage!$K$33,Misc.Expenses!$H$41)=0,\"\",\"535113 In-state Misc. Expenses\")","v":""},null,null,null,null,{"$f":"SUM(Meals!$N$33:$O$33,Mileage!$K$33,Misc.Expenses!$H$41)","v":0},null,null,0]
[null,null,null,null,{"$f":"IF(SUM('Air&RentalCar'!$G$42)=0,\"\",\"535552 Other Non-Employee Rental Car\")","v":""},null,null,null,null,{"$f":"'Air&RentalCar'!$G$42","v":0},null,null,0,null,null,null,null,null,null,null,null,null,"",0,1,0,null,"IL",null,null,null,{"$f":"IF(SUM(Meals!$N$34:$O$34,Mileage!$K$34,Misc.Expenses!$H$42)=0,\"\",\"535213 Out-of-state Travel Misc. Expenses\")","v":""},null,null,null,null,{"$f":"SUM(Meals!$N$34:$O$34,Mileage!$K$34,Misc.Expenses!$H$42)","v":0},null,null,0]
[null,null,null,null,{"$f":"IF(SUM(Meals!$N$33:$O$33,Mileage!$K$33,Misc.Expenses!$H$41)=0,\"\",\"535113 In-state Misc. Expenses\")","v":""},null,null,null,null,{"$f":"SUM(Meals!$N$33:$O$33,Mileage!$K$33,Misc.Expenses!$H$41)","v":0},null,null,0,null,null,null,null,null,null,null,null,null,"",0,1,0,null,"IN",null,null,null,{"$f":"IF(SUM(Meals!$N$37:$O$37,Mileage!$K$37,Misc.Expenses!$H$46)=0,\"\",\"535313 International Travel Misc. Expenses\")","v":""},null,null,null,null,{"$f":"SUM(Meals!$N$37:$O$37,Mileage!$K$37,Misc.Expenses!$H$46)","v":0},null,null,0]
[null,null,null,null,{"$f":"IF(SUM(Meals!$N$34:$O$34,Mileage!$K$34,Misc.Expenses!$H$42)=0,\"\",\"535213 Out-of-state Travel Misc. Expenses\")","v":""},null,null,null,null,{"$f":"SUM(Meals!$N$34:$O$34,Mileage!$K$34,Misc.Expenses!$H$42)","v":0},null,null,0,null,null,null,null,null,null,null,null,null,"",0,1,0,null,"KS",null,null,null,{"$f":"IF(SUM(Meals!$N$35:$O$35,Mileage!$K$35,Misc.Expenses!$H$43)=0,\"\",\"535413 Student Travel Misc. Expenses\")","v":""},null,null,null,null,{"$f":"SUM(Meals!$N$35:$O$35,Mileage!$K$35,Misc.Expenses!$H$43)","v":0},null,null,0]
[null,null,null,null,{"$f":"IF(SUM(Meals!$N$37:$O$37,Mileage!$K$37,Misc.Expenses!$H$46)=0,\"\",\"535313 International Travel Misc. Expenses\")","v":""},null,null,null,null,{"$f":"SUM(Meals!$N$37:$O$37,Mileage!$K$37,Misc.Expenses!$H$46)","v":0},null,null,0,null,null,null,null,null,null,null,null,null,"",0,1,0,null,"KY",null,null,null,{"$f":"IF(SUM(Meals!$N$36:$O$36,Mileage!$K$36,Misc.Expenses!$H$44)=0,\"\",\"535553 Other Non-Employee Travel Misc. Expenses\")","v":""},null,null,null,null,{"$f":"SUM(Meals!$N$36:$O$36,Mileage!$K$36,Misc.Expenses!$H$44)","v":0},null,null,0]
[null,null,null,null,{"$f":"IF(SUM(Meals!$N$35:$O$35,Mileage!$K$35,Misc.Expenses!$H$43)=0,\"\",\"535413 Student Travel Misc. Expenses\")","v":""},null,null,null,null,{"$f":"SUM(Meals!$N$35:$O$35,Mileage!$K$35,Misc.Expenses!$H$43)","v":0},null,null,0,null,null,null,null,null,null,null,null,null,"",0,1,0,null,"LA",null,null,null,{"$f":"IF(SUM(Misc.Expenses!$T$26:$T$39)=0,\"\",\"559000 Business Meals\")","v":""},null,null,null,null,{"$f":"Misc.Expenses!$H$45","v":0},null,null,0]
[null,null,null,null,{"$f":"IF(SUM(Meals!$N$36:$O$36,Mileage!$K$36,Misc.Expenses!$H$44)=0,\"\",\"535553 Other Non-Employee Travel Misc. Expenses\")","v":""},null,null,null,null,{"$f":"SUM(Meals!$N$36:$O$36,Mileage!$K$36,Misc.Expenses!$H$44)","v":0},null,null,0,null,null,null,null,null,null,null,null,null,"",0,1,0,null,"MA",null,null,null,{"$f":"IF(SUM(Misc.Expenses!$O$11:$O$15)=0,\"\",\"552100 Registration\")","v":""},null,null,null,null,{"$f":"SUM(Misc.Expenses!$O$11:$O$15)","v":0},null,null,0]
[null,null,null,null,{"$f":"IF(SUM(Misc.Expenses!$T$26:$T$39)=0,\"\",\"559000 Business Meals\")","v":""},null,null,null,null,{"$f":"Misc.Expenses!$H$45","v":0},null,null,0,null,null,null,null,null,null,null,null,null,"",0,1,0,null,"MD",null,null,null,{"$f":"IF(SUM(Misc.Expenses!$P$11:$P$15)=0,\"\",\"552150 Student Registration\")","v":""},null,null,null,null,{"$f":"SUM(Misc.Expenses!$P$11:$P$15)","v":0},null,null,0]
[null,null,null,null,{"$f":"IF(SUM(Misc.Expenses!$O$11:$O$15)=0,\"\",\"552100 Registration\")","v":""},null,null,null,null,{"$f":"SUM(Misc.Expenses!$O$11:$O$15)","v":0},null,null,0,null,null,null,null,null,null,null,null,null,"",0,1,0,null,"ME",null,null,null,{"$f":"IF(SUM(Misc.Expenses!$Q$11:$Q$15)=0,\"\",\"552500 Submission Fees\")","v":""},null,null,null,null,{"$f":"SUM(Misc.Expenses!$Q$11:$Q$15)","v":0},null,null,0]
[null,null,null,null,{"$f":"IF(SUM(Misc.Expenses!$P$11:$P$15)=0,\"\",\"552150 Student Registration\")","v":""},null,null,null,null,{"$f":"SUM(Misc.Expenses!$P$11:$P$15)","v":0},null,null,0,null,null,null,null,null,null,null,null,null,"",0,1,0,null,"MI"]
[null,null,null,null,{"$f":"IF(SUM(Misc.Expenses!$Q$11:$Q$15)=0,\"\",\"552500 Submission Fees\")","v":""},null,null,null,null,{"$f":"SUM(Misc.Expenses!$Q$11:$Q$15)","v":0},null,null,0,null,null,null,null,null,null,null,null,null,"",0,1,0,null,"MN"]
[null,null,null,null,null,null,null,"Totals for Page 1:",null,{"$f":"SUM(J22:J45)","v":0},null,null,{"$f":"SUM(M22:M45)","v":0},null,null,null,null,null,null,null,null,null,"",0,1,0,null,"MO"]
[null,null,null,null,null,null,null,null,null,null,null,null,null,null,null,null,null,null,null,null,null,null,"",0,1,0,null,"MS"]
[null,null,null,null,null,"Employee/Student Signature",null,null,null,null,null,null,null,null,null,null,null,null,null,null,null,null,"",0,1,0,null,"MT"]
[null,null,null,null,null," Supervisor Signature",null,null,null,null,null,null,null,null,null,null,null,null,null,null,null,null,"",0,1,0,null,"NC"]
[null,null,null,null,null,"Dept. Head (Entertainment Only)",null,null,null,null,null,null,null,null,null,null,null,null,null,null,null,null,"",0,1,0,null,"ND"]
[null,null,null,null,null,null,null,null,null,null,null,null,null,null,null,null,null,null,null,null,null,null,"",0,1,0,null,"NE"]
[null,null,{"$f":"SUM(M22:M45)","v":0},null,null,null,null,null,null,null,null,null,null,null,null,null,null,null,null,null,null,null,null,null,null,null,null,"NH"]
[null,null,null,null,null,null,null,null,null,null,null,null,null,null,null,null,null,null,null,null,null,null,null,null,null,null,null,"NJ"]
[null,null,null,null,null,null,null,null,null,null,null,null,null,null,null,null,null,null,null,null,null,null,null,null,null,null,null,"NM"]
[null,null,null,null,null,null,null,null,null,null,null,null,null,null,null,null,null,null,null,null,null,null,null,null,null,null,null,"NV"]
[null,null,null,null,null,null,null,null,null,null,null,null,null,null,null,null,null,null,null,null,null,null,null,null,null,null,null,"NY"]
[null,null,null,null,null,null,null,null,null,null,null,null,null,null,null,null,null,null,null,null,null,null,null,null,null,null,null,"OH"]
[null,null,null,null,null,null,null,null,null,null,null,null,null,null,null,null,null,null,null,null,null,null,null,null,null,null,null,"OK"]
[null,null,null,null,null,null,null,null,null,null,null,null,null,null,null,null,null,null,null,null,null,null,null,null,null,null,null,"OR"]
[null,null,null,null,null,null,null,null,null,null,null,null,null,null,null,null,null,null,null,null,null,null,null,null,null,null,null,"PA"]
[null,null,null,null,null,null,null,null,null,null,null,null,null,null,null,null,null,null,null,null,null,null,null,null,null,null,null,"RI"]
[null,null,null,null,null,null,null,null,null,null,null,null,null,null,null,null,null,null,null,null,null,null,null,null,null,null,null,"SC"]
[null,null,null,null,null,null,null,null,null,null,null,null,null,null,null,null,null,null,null,null,null,null,null,null,null,null,null,"SD"]
[null,null,null,null,null,null,null,null,null,null,null,null,null,null,null,null,null,null,null,null,null,null,null,null,null,null,null,"TN"]
[null,null,null,null,null,null,null,null,null,null,null,null,null,null,null,null,null,null,null,null,null,null,null,null,null,null,null,"TX"]
[null,null,null,null,null,null,null,null,null,null,null,null,null,null,null,null,null,null,null,null,null,null,null,null,null,null,null,"UT"]
[null,null,null,null,null,null,null,null,null,null,null,null,null,null,null,null,null,null,null,null,null,null,null,null,null,null,null,"VA"]
[null,null,null,null,null,null,null,null,null,null,null,null,null,null,null,null,null,null,null,null,null,null,null,null,null,null,null,"VT"]
[null,null,null,null,null,null,null,null,null,null,null,null,null,null,null,null,null,null,null,null,null,null,null,null,null,null,null,"WA"]
[null,null,null,null,null,null,null,null,null,null,null,null,null,null,null,null,null,null,null,null,null,null,null,null,null,null,null,"WI"]
[null,null,null,null,null,null,null,null,null,null,null,null,null,null,null,null,null,null,null,null,null,null,null,null,null,null,null,"WV"]
[null,null,null,null,null,null,null,null,null,null,null,null,null,null,null,null,null,null,null,null,null,null,null,null,null,null,null,"WY"]
[null,null,null,null,null,null,null,null,null,null,null,null,null,null,null,null,null,null,null,null,null,null,null,null,null,null,null,"American_Samoa"]
[null,null,null,null,null,null,null,null,null,null,null,null,null,null,null,null,null,null,null,null,null,null,null,null,null,null,null,"Guam"]
[null,null,null,null,null,null,null,null,null,null,null,null,null,null,null,null,null,null,null,null,null,null,null,null,null,null,null,"Marshall_Islands"]
[null,null,null,null,null,null,null,null,null,null,null,null,null,null,null,null,null,null,null,null,null,null,null,null,null,null,null,"Midway_Island"]
[null,null,null,null,null,null,null,null,null,null,null,null,null,null,null,null,null,null,null,null,null,null,null,null,null,null,null,"Northern_Mariana_Islands"]
[null,null,null,null,null,null,null,null,null,null,null,null,null,null,null,null,null,null,null,null,null,null,null,null,null,null,null,"Puerto_Rico"]
[null,null,null,null,null,null,null,null,null,null,null,null,null,null,null,null,null,null,null,null,null,null,null,null,null,null,null,"Virgin_Islands_US"]

{"sheet":"Meals","index":1,"n_rows":516,"n_cols":26,"rows_kept":516,"cut":false,"hidden":false,"merged":[[11,13,11,14],[12,13,12,14],[44,5,44,6],[44,7,44,8],[12,10,12,11],[19,10,19,11],[20,10,20,11],[21,10,21,11],[22,10,22,11],[11,10,11,11],[21,13,21,14],[22,13,22,14],[32,13,32,14],[19,13,19,14],[16,13,16,14],[15,10,15,11],[0,0,0,14],[1,0,1,14],[9,6,9,8],[4,5,4,8],[4,9,4,12],[9,13,9,14],[8,10,8,11],[9,10,9,11],[5,11,5,13],[5,6,5,9],[6,6,6,9],[6,11,6,13],[28,0,28,4],[25,13,25,14],[26,13,26,14],[23,13,23,14],[24,10,24,11],[25,10,25,11],[23,10,23,11],[26,10,26,11],[28,13,28,14],[24,13,24,14],[20,13,20,14],[15,13,15,14],[13,13,13,14],[14,13,14,14],[17,10,17,11],[16,10,16,11],[13,10,13,11],[17,13,17,14],[18,10,18,11],[14,10,14,11],[53,13,53,14],[47,13,47,14],[48,13,48,14],[49,13,49,14],[50,13,50,14],[51,13,51,14],[51,2,52,2],[43,9,43,10],[44,9,44,10],[43,5,43,6],[43,7,43,8],[47,0,47,4],[47,5,47,6],[46,9,46,10],[46,0,46,1],[46,5,46,6],[45,5,45,6],[45,7,45,8],[45,9,45,10],[46,7,46,8],[45,0,45,1],[44,0,44,1],[43,0,43,1],[45,13,45,14],[43,13,43,14],[44,13,44,14],[18,13,18,14],[41,0,41,6],[40,0,40,8],[33,0,34,1],[33,4,34,4],[35,4,36,4],[35,3,36,3],[35,2,36,2],[38,0,38,4],[35,0,36,1],[37,13,37,14],[38,13,38,14],[36,13,36,14],[34,13,34,14],[35,13,35,14],[33,13,33,14],[29,0,30,4],[31,0,31,4],[33,2,34,2],[33,3,34,3]]}
["University of Louisville - Travel Expense Voucher"]
["Meals"]
[]
[null,null,null,null,"Employee/Student Name:",{"$f":"TitlePage!F6","v":0}]
[null,null,null,null,"Department:",{"$f":"TitlePage!Q6","v":0}]
[null,null,null,"Dates of Travel",null,"Departure Date:",{"$f":"TitlePage!G11","v":"00:00:00"},null,null,null,"Return Date:",{"$f":"TitlePage!Q11","v":"00:00:00"}]
[null,null,null,null,null,"Departure Time:",{"$f":"TitlePage!G12","v":"00:00:00"},null,null,null,"Return Time:",{"$f":"TitlePage!Q12","v":"00:00:00"},null,null,null,null,null,{"$f":"IF(C13=\"KY\",MEAL_IN,IF(LEN(TRIM(C13))>1,MEAL_OUT,\"\"))","v":""}]
["Meals - Use a separate line for each day."]
[null,null,null,null,"Maximum",null,"Breakfast","Lunch","Dinner",null,"ACCOUNT CODE"]
["DATE",null,"STATE","CITY","Daily Rate",null,"See Chart Below for Rates",null,null,null,"Select Code from List",null,null,"AMOUNT ",null,null,null,"InState","OutofState","International","Student","Nonemployee"]
[]
[null,null,null,null,{"$f":"IF(D12=\"\",\"\",LOOKUP(D12,perdiem!Q$3:S$517))","v":""},null,null,null,null,null,null,null,null,{"$f":"SUM(G12:I12)","v":0},null,null,null,{"$f":"IF($K12=\"535113 In-state Travel Misc. Expenses\",$N12,\" \")","v":" "},{"$f":"IF($K12=\"535213 Out-of-state Travel Misc. Expenses\",$N12,\" \")","v":" "},{"$f":"IF($K12=\"535313 International Travel Misc. Expenses\",$N12,\" \")","v":" "},{"$f":"IF($K12=\"535413 Student Travel Misc. Expenses\",$N12,\" \")","v":" "},{"$f":"IF($K12=\"535553 Other Non-Employee Travel Misc. Expenses\",$N12,\" \")","v":" "}]
[null,null,null,null,{"$f":"IF(D13=\"\",\"\",LOOKUP(D13,perdiem!Q$3:S$517))","v":""},null,null,null,null,null,null,null,null,{"$f":"SUM(G13:I13)","v":0},null,null,null,{"$f":"IF($K13=\"535113 In-state Travel Misc. Expenses\",$N13,\" \")","v":" "},{"$f":"IF($K13=\"535213 Out-of-state Travel Misc. Expenses\",$N13,\" \")","v":" "},{"$f":"IF($K13=\"535313 International Travel Misc. Expenses\",$N13,\" \")","v":" "},{"$f":"IF($K13=\"535413 Student Travel Misc. Expenses\",$N13,\" \")","v":" "},{"$f":"IF($K13=\"535553 Other Non-Employee Travel Misc. Expenses\",$N13,\" \")","v":" "}]
[null,null,null,null,{"$f":"IF(D14=\"\",\"\",LOOKUP(D14,perdiem!Q$3:S$517))","v":""},null,null,null,null,null,null,null,null,0,null,null,null," "," "," "," "," "]
[null,null,null,null,{"$f":"IF(D15=\"\",\"\",LOOKUP(D15,perdiem!Q$3:S$517))","v":""},null,null,null,null,null,null,null,null,0,null,null,null," "," "," "," "," "]
[null,null,null,null,{"$f":"IF(D16=\"\",\"\",LOOKUP(D16,perdiem!Q$3:S$517))","v":""},null,null,null,null,null,null,null,null,0,null,null,null," "," "," "," "," "]
[null,null,null,null,{"$f":"IF(D17=\"\",\"\",LOOKUP(D17,perdiem!Q$3:S$517))","v":""},null,null,null,null,null,null,null,null,0,null,null,null," "," "," "," "," "]
[null,null,null,null,{"$f":"IF(D18=\"\",\"\",LOOKUP(D18,perdiem!Q$3:S$517))","v":""},null,null,null,null,null,null,null,null,0,null,null,null," "," "," "," "," "]
[null,null,null,null,{"$f":"IF(D19=\"\",\"\",LOOKUP(D19,perdiem!Q$3:S$517))","v":""},null,null,null,null,null,null,null,null,0,null,null,null," "," "," "," "," "]
[null,null,null,null,{"$f":"IF(D20=\"\",\"\",LOOKUP(D20,perdiem!Q$3:S$517))","v":""},null,null,null,null,null,null,null,null,0,null,null,null," "," "," "," "," "]
[null,null,null,null,{"$f":"IF(D21=\"\",\"\",LOOKUP(D21,perdiem!Q$3:S$517))","v":""},null,null,null,null,null,null,null,null,0,null,null,null," "," "," "," "," "]
[null,null,null,null,{"$f":"IF(D22=\"\",\"\",LOOKUP(D22,perdiem!Q$3:S$517))","v":""},null,null,null,null,null,null,null,null,0,null,null,null," "," "," "," "," "]
[null,null,null,null,{"$f":"IF(D23=\"\",\"\",LOOKUP(D23,perdiem!Q$3:S$517))","v":""},null,null,null,null,null,null,null,null,0,null,null,null," "," "," "," "," "]
[null,null,null,null,{"$f":"IF(D24=\"\",\"\",LOOKUP(D24,perdiem!Q$3:S$517))","v":""},null,null,null,null,null,null,null,null,0,null,null,null," "," "," "," "," "]
[null,null,null,null,{"$f":"IF(D25=\"\",\"\",LOOKUP(D25,perdiem!Q$3:S$517))","v":""},null,null,null,null,null,null,null,null,0,null,null,null," "," "," "," "," "]
[null,null,null,null,{"$f":"IF(D26=\"\",\"\",LOOKUP(D26,perdiem!Q$3:S$517))","v":""},null,null,null,null,null,null,null,null,0,null,null,null," "," "," "," "," "]
[null,null,null,null,{"$f":"IF(D27=\"\",\"\",LOOKUP(D27,perdiem!Q$3:S$517))","v":""},null,null,null,null,null,null,null,null,0,null,null,null," "," "," "," "," "]
[]
["Meal Reimbursement Chart",null,null,null,null,null,null,null,null,null,null,"Grand Total:",null,{"$f":"SUM(N12:N27)","v":0},null,null,null,{"$f":"SUM(R12:R27)","v":0},{"$f":"SUM(S12:S27)","v":0},{"$f":"SUM(T12:T27)","v":0},{"$f":"SUM(U12:U27)","v":0},{"$f":"SUM(V12:V27)","v":0}]
["Travel must be authorized and include overnight lodging."]
[]
["Traveler must depart by and return after the times listed. "]
[null,null,"Breakfast","Lunch","Dinner",null,"535113 In-state Travel Misc. Expenses",null,null,null,null,"Totals for this page:",null,{"$f":"(R29)","v":0}]
["Departure must be prior to:",null,"06:30:00","11:00:00","17:00:00",null,"535213 Out-of-state Travel Misc. Expenses",null,null,null,null,null,null,{"$f":"(S29)","v":0},null,null,null,null,null,null,null,null,null,null,null,"535113 In-state Travel Misc. Expenses"]
[null,null,null,null,null,null,"535413 Student Travel Misc. Expenses",null,null,null,null,null,null,{"$f":"U29","v":0},null,null,null,null,{"$f":"C12","v":0},null,null,null,null,null,null,"535413 Student Travel Misc. Expenses"]
["Return must be after:",null,"09:00:00","14:00:00","21:00:00",null,"535553 Other Non-Employee Travel Misc. Expenses",null,null,null,null,null,null,{"$f":"V29","v":0},null,null,null,null,null,null,null,null,null,null,null,"535553 Other Non-Employee Travel Misc. Expenses"]
[null,null,null,null,null,null,"599999 Personal Day - No Reimbursement",null,null,null,null,null,null,null,null,null,null,null,null,null,null,null,null,null,null,"599999 Personal Day - No Reimbursement"]
[null,null,null,null,null,null,"Business/Not Claiming Meals",null,null,null,null,null,null,null,null,null,null,null,null,null,null,null,null,null,null,"Business/Not Claiming Meals"]
["Do not include any meals included in registration fees",null,null,null,null,null,null,null,null,null,null,"Grand Total for this page:",null,{"$f":"SUM(N33:O37)","v":0}]
[]
["Select the state and city of travel above to determine the maximum per diem for meals.  Refer to the chart below to determine reimbursement rate per meal. "]
["Departments may choose to reimburse at a lower per diem rate. "]
["For Alaska, Hawaii, and US Territory Possessions: Calculate rate per meal at 20% for breakfast, 30% for lunch and 50% for dinner. "]
[46,null,51,56,61,66,null,71,null,"Maximum per Day"]
[9,null,10,11,12,13,null,14,null,"Breakfast"]
[14,null,15,17,18,20,null,21,null,"Lunch"]
[23,null,26,28,31,33,null,36,null,"Dinner"]
[]
[]
[]
[]
[]
[null,null,null,null,null,null,null,null,null,null,null,null,null,null,null,null,null,null,null,null,null,"FY2013 Domestic Per Diem Rates "]
[null,null,null,null,null,null,null,null,null,null,null,null,null,null,null,null,null,null,null,null,null,"State","Primary Destination"]
[null,null,null,null,null,null,null,null,null,null,null,null,null,null,null,null,null,null,null,null,null,null,"Standard CONUS Rate applies to all destinations or counties not specifically listed"]
[null,null,null,null,null,null,null,null,null,null,null,null,null,null,null,null,null,null,null,null,null,"Alabama","Birmingham",null,"Location"]
[null,null,null,null,null,null,null,null,null,null,null,null,null,null,null,null,null,null,null,"KY",null,"Alabama","Gulf Shores",null,"Marshall Islands"]
[null,null,null,null,null,null,null,null,null,null,null,null,null,null,null,null,null,null,null,"AK",null,"Alabama","Huntsville",null,"KWAJALEIN ATOLL"]
[null,null,null,null,null,null,null,null,null,null,null,null,null,null,null,null,null,null,null,"AL",null,"Alabama","Mobile",null,"LIKIEP ATOLL"]
[null,null,null,null,null,null,null,null,null,null,null,null,null,null,null,null,null,null,null,"AR",null,"Alabama","Montgomery",null,"MAJURO"]
[null,null,null,null,null,null,null,null,null,null,null,null,null,null,null,null,null,null,null,"AZ",null,null,"Other"]
[null,null,null,null,null,null,null,null,null,null,null,null,null,null,null,null,null,null,null,"CA",null,"Arizona","Grand Canyon / Flagstaff"]
[null,null,null,null,null,null,null,null,null,null,null,null,null,null,null,null,null,null,null,"CO",null,"Arizona","Kayenta",null,"Guam"]
[null,null,null,null,null,null,null,null,null,null,null,null,null,null,null,null,null,null,null,"CT",null,"Arizona","Phoenix / Scottsdale"]
[null,null,null,null,null,null,null,null,null,null,null,null,null,null,null,null,null,null,null,"DC",null,"Arizona","Sedona",null,"American Samoa"]
[null,null,null,null,null,null,null,null,null,null,null,null,null,null,null,null,null,null,null,"DE",null,"Arizona","Sierra Vista"]
[null,null,null,null,null,null,null,null,null,null,null,null,null,null,null,null,null,null,null,"FL",null,"Arizona","Tucson",null,"Midway Island"]
[null,null,null,null,null,null,null,null,null,null,null,null,null,null,null,null,null,null,null,"GA",null,"Arizona","Yuma"]
[null,null,null,null,null,null,null,null,null,null,null,null,null,null,null,null,null,null,null,"HI",null,null,"Other",null,"Northern Mariana Islands"]
[null,null,null,null,null,null,null,null,null,null,null,null,null,null,null,null,null,null,null,"IA",null,"Arkansas","Hot Springs",null,"ROTA"]
[null,null,null,null,null,null,null,null,null,null,null,null,null,null,null,null,null,null,null,"ID",null,"Arkansas","Little Rock",null,"SAIPAN"]
[null,null,null,null,null,null,null,null,null,null,null,null,null,null,null,null,null,null,null,"IL",null,null,"Other",null,"TINIAN"]
[null,null,null,null,null,null,null,null,null,null,null,null,null,null,null,null,null,null,null,"IN",null,"California","Antioch / Brentwood / Concord"]
[null,null,null,null,null,null,null,null,null,null,null,null,null,null,null,null,null,null,null,"KS",null,"California","Bakersfield / Ridgecrest"]
[null,null,null,null,null,null,null,null,null,null,null,null,null,null,null,null,null,null,null,"KY",null,"California","Barstow / Ontario / Victorville",null,"Virgin Islands (US)"]
[null,null,null,null,null,null,null,null,null,null,null,null,null,null,null,null,null,null,null,"LA",null,"California","Benicia / Dixon / Fairfield",null,"ST. CROIX"]
[null,null,null,null,null,null,null,null,null,null,null,null,null,null,null,null,null,null,null,"MA",null,"California","Brawley / Calexico / El Centro",null,"ST. JOHN"]
[null,null,null,null,null,null,null,null,null,null,null,null,null,null,null,null,null,null,null,"MD",null,"California","Death Valley",null,"ST. THOMAS"]
[null,null,null,null,null,null,null,null,null,null,null,null,null,null,null,null,null,null,null,"ME",null,"California","Eureka / Arcata / McKinleyville"]
[null,null,null,null,null,null,null,null,null,null,null,null,null,null,null,null,null,null,null,"MI",null,"California","Fresno",null,"Canada"]
[null,null,null,null,null,null,null,null,null,null,null,null,null,null,null,null,null,null,null,"MN",null,"California","Los Angeles",null,"BANFF"]
[null,null,null,null,null,null,null,null,null,null,null,null,null,null,null,null,null,null,null,"MO",null,"California","Mammoth Lakes",null,"CALGARY"]
[null,null,null,null,null,null,null,null,null,null,null,null,null,null,null,null,null,null,null,"MS",null,"California","Mill Valley / San Rafael / Novato",null,"DARTMOUTH"]
[null,null,null,null,null,null,null,null,null,null,null,null,null,null,null,null,null,null,null,"MT",null,"California","Modesto",null,"EAST YORK"]
[null,null,null,null,null,null,null,null,null,null,null,null,null,null,null,null,null,null,null,"NC",null,"California","Monterey",null,"EDMONTON"]
[null,null,null,null,null,null,null,null,null,null,null,null,null,null,null,null,null,null,null,"ND",null,"California","Napa",null,"ETOBICOKE"]
[null,null,null,null,null,null,null,null,null,null,null,null,null,null,null,null,null,null,null,"NE",null,"California","Oakhurst",null,"FORT MCMURRAY, ALBERTA"]
[null,null,null,null,null,null,null,null,null,null,null,null,null,null,null,null,null,null,null,"NH",null,"California","Oakland",null,"FREDERICTON"]
[null,null,null,null,null,null,null,null,null,null,null,null,null,null,null,null,null,null,null,"NJ",null,"California","Palm Springs",null,"GANDER, NEWFOUNDLAND"]
[null,null,null,null,null,null,null,null,null,null,null,null,null,null,null,null,null,null,null,"NM",null,"California","Point Arena / Gualala",null,"HALIFAX"]
[null,null,null,null,null,null,null,null,null,null,null,null,null,null,null,null,null,null,null,"NV",null,"California","Redding",null,"MISSISSAUGA"]
[null,null,null,null,null,null,null,null,null,null,null,null,null,null,null,null,null,null,null,"NY",null,"California","Sacramento",null,"MONCTON"]
[null,null,null,null,null,null,null,null,null,null,null,null,null,null,null,null,null,null,null,"OH",null,"California","San Diego",null,"MONTREAL"]
[null,null,null,null,null,null,null,null,null,null,null,null,null,null,null,null,null,null,null,"OK",null,"California","San Francisco",null,"NORTH YORK"]
[null,null,null,null,null,null,null,null,null,null,null,null,null,null,null,null,null,null,null,"OR",null,"California","San Luis Obispo",null,"NORTHWEST TERRITORIES"]
[null,null,null,null,null,null,null,null,null,null,null,null,null,null,null,null,null,null,null,"PA",null,"California","San Mateo / Foster City / Belmont",null,"OTTAWA"]
[null,null,null,null,null,null,null,null,null,null,null,null,null,null,null,null,null,null,null,"RI",null,"California","Santa Barbara",null,"PRINCE EDWARD ISLAND"]
[null,null,null,null,null,null,null,null,null,null,null,null,null,null,null,null,null,null,null,"SC",null,"California","Santa Cruz",null,"QUEBEC"]
[null,null,null,null,null,null,null,null,null,null,null,null,null,null,null,null,null,null,null,"SD",null,"California","Santa Monica ",null,"REGINA, SASKATCHEWAN"]
[null,null,null,null,null,null,null,null,null,null,null,null,null,null,null,null,null,null,null,"TN",null,"California","Santa Rosa",null,"RICHMOND"]
[null,null,null,null,null,null,null,null,null,null,null,null,null,null,null,null,null,null,null,"TX",null,"California","South Lake Tahoe",null,"SASKATOON, SASKATCHEWAN"]
[null,null,null,null,null,null,null,null,null,null,null,null,null,null,null,null,null,null,null,"UT",null,"California","Stockton ",null,"SIDNEY"]
[null,null,null,null,null,null,null,null,null,null,null,null,null,null,null,null,null,null,null,"VA",null,"California","Sunnyvale / Palo Alto / San Jose",null,"ST. JOHN'S, NEWFOUNDLAND"]
[null,null,null,null,null,null,null,null,null,null,null,null,null,null,null,null,null,null,null,"VT",null,"California","Tahoe City",null,"TORONTO"]
[null,null,null,null,null,null,null,null,null,null,null,null,null,null,null,null,null,null,null,"WA",null,"California","Truckee",null,"VANCOUVER"]
[null,null,null,null,null,null,null,null,null,null,null,null,null,null,null,null,null,null,null,"WI",null,"California","Visalia / Lemoore",null,"VICTORIA"]
[null,null,null,null,null,null,null,null,null,null,null,null,null,null,null,null,null,null,null,"WV",null,"California","West Sacramento",null,"WINNIPEG"]
[null,null,null,null,null,null,null,null,null,null,null,null,null,null,null,null,null,null,null,"WY",null,"California","Yosemite National Park",null,"YORK & SCARBOROUGH"]
[null,null,null,null,null,null,null,null,null,null,null,null,null,null,null,null,null,null,null,"American_Samoa",null,null,"Other"]
[null,null,null,null,null,null,null,null,null,null,null,null,null,null,null,null,null,null,null,"Guam",null,"Colorado","Aspen",null,"Puerto Rico"]
[null,null,null,null,null,null,null,null,null,null,null,null,null,null,null,null,null,null,null,"Marshall_Islands",null,"Colorado","Boulder / Broomfield",null,"AGUADILLA"]
[null,null,null,null,null,null,null,null,null,null,null,null,null,null,null,null,null,null,null,"Midway_Island",null,"Colorado","Colorado Springs",null,"BAYAMON"]
[null,null,null,null,null,null,null,null,null,null,null,null,null,null,null,null,null,null,null,"Northern_Mariana_Islands",null,"Colorado","Cortez",null,"CAROLINA"]
[null,null,null,null,null,null,null,null,null,null,null,null,null,null,null,null,null,null,null,"Puerto_Rico",null,"Colorado","Crested Butte / Gunnison",null,"CEIBA"]
[null,null,null,null,null,null,null,null,null,null,null,null,null,null,null,null,null,null,null,"Virgin_Islands_US",null,"Colorado","Denver / Aurora",null,"FAJARDO [INCL ROOSEVELT RDS NAVSTAT]"]
[null,null,null,null,null,null,null,null,null,null,null,null,null,null,null,null,null,null,null,null,null,"Colorado","Douglas County",null,"FT. BUCHANAN [INCL GSA SVC CTR, GUAYNABO]"]
[null,null,null,null,null,null,null,null,null,null,null,null,null,null,null,null,null,null,null,null,null,"Colorado","Durango",null,"HUMACAO"]
[null,null,null,null,null,null,null,null,null,null,null,null,null,null,null,null,null,null,null,null,null,"Colorado","Fort Collins / Loveland",null,"LUQUILLO"]
[null,null,null,null,null,null,null,null,null,null,null,null,null,null,null,null,null,null,null,null,null,"Colorado","Glenwood Springs / Grand Junction",null,"MAYAGUEZ"]
[null,null,null,null,null,null,null,null,null,null,null,null,null,null,null,null,null,null,null,null,null,"Colorado","Montrose",null,"PONCE"]
[null,null,null,null,null,null,null,null,null,null,null,null,null,null,null,null,null,null,null,null,null,"Colorado","Silverthorne / Breckenridge",null,"SABANA SECA [INCL ALL MILITARY]"]
[null,null,null,null,null,null,null,null,null,null,null,null,null,null,null,null,null,null,null,null,null,"Colorado","Steamboat Springs",null,"SAN JUAN & NAV RES STA"]
[null,null,null,null,null,null,null,null,null,null,null,null,null,null,null,null,null,null,null,null,null,"Colorado","Telluride"]
[null,null,null,null,null,null,null,null,null,null,null,null,null,null,null,null,null,null,null,null,null,"Colorado","Vail"]
[null,null,null,null,null,null,null,null,null,null,null,null,null,null,null,null,null,null,null,null,null,null,"Other"]
[null,null,null,null,null,null,null,null,null,null,null,null,null,null,null,null,null,null,null,null,null,"Connecticut","Bridgeport / Danbury"]
[null,null,null,null,null,null,null,null,null,null,null,null,null,null,null,null,null,null,null,null,null,"Connecticut","Cromwell / Old Saybrook",null,"ADAK"]
[null,null,null,null,null,null,null,null,null,null,null,null,null,null,null,null,null,null,null,null,null,"Connecticut","Hartford",null,"ANCHORAGE [INCL NAV RES]"]
[null,null,null,null,null,null,null,null,null,null,null,null,null,null,null,null,null,null,null,null,null,"Connecticut","Lakeville / Salisbury",null,"BARROW"]
[null,null,null,null,null,null,null,null,null,null,null,null,null,null,null,null,null,null,null,null,null,"Connecticut","New Haven",null,"BETHEL"]
[null,null,null,null,null,null,null,null,null,null,null,null,null,null,null,null,null,null,null,null,null,"Connecticut","New London / Groton",null,"BETTLES"]
[null,null,null,null,null,null,null,null,null,null,null,null,null,null,null,null,null,null,null,null,null,"Connecticut","Putnam / Danielson / Storrs",null,"COLDFOOT"]
[null,null,null,null,null,null,null,null,null,null,null,null,null,null,null,null,null,null,null,null,null,null,"Other",null,"COPPER CENTER"]
[null,null,null,null,null,null,null,null,null,null,null,null,null,null,null,null,null,null,null,null,null,"Delaware","Dover",null,"CORDOVA"]
[null,null,null,null,null,null,null,null,null,null,null,null,null,null,null,null,null,null,null,null,null,"Delaware","Lewes",null,"CRAIG"]
[null,null,null,null,null,null,null,null,null,null,null,null,null,null,null,null,null,null,null,null,null,"Delaware","WilmingtonDE",null,"DELTA JUNCTION"]
[null,null,null,null,null,null,null,null,null,null,null,null,null,null,null,null,null,null,null,null,null,null,"Other",null,"DENALI NATIONAL PARK"]
[null,null,null,null,null,null,null,null,null,null,null,null,null,null,null,null,null,null,null,null,null,null,"District of Columbia",null,"DILLINGHAM"]
[null,null,null,null,null,null,null,null,null,null,null,null,null,null,null,null,null,null,null,null,null,"Florida","Altamonte Springs",null,"DUTCH HARBOR-UNALASKA"]
[null,null,null,null,null,null,null,null,null,null,null,null,null,null,null,null,null,null,null,null,null,"Florida","Boca Raton / Delray Beach / Jupiter",null,"FAIRBANKS"]
[null,null,null,null,null,null,null,null,null,null,null,null,null,null,null,null,null,null,null,null,null,"Florida","Bradenton",null,"FOOTLOOSE"]
[null,null,null,null,null,null,null,null,null,null,null,null,null,null,null,null,null,null,null,null,null,"Florida","Cocoa Beach",null,"GLENNALLEN"]
[null,null,null,null,null,null,null,null,null,null,null,null,null,null,null,null,null,null,null,null,null,"Florida","Daytona Beach",null,"HAINES"]
[null,null,null,null,null,null,null,null,null,null,null,null,null,null,null,null,null,null,null,null,null,"Florida","Fort Lauderdale",null,"HEALY"]
[null,null,null,null,null,null,null,null,null,null,null,null,null,null,null,null,null,null,null,null,null,"Florida","Fort Myers",null,"HOMER"]
[null,null,null,null,null,null,null,null,null,null,null,null,null,null,null,null,null,null,null,null,null,"Florida","Fort Pierce",null,"JUNEAU"]
[null,null,null,null,null,null,null,null,null,null,null,null,null,null,null,null,null,null,null,null,null,"Florida","Fort Walton Beach / De Funiak Springs",null,"KAKTOVIK"]
[null,null,null,null,null,null,null,null,null,null,null,null,null,null,null,null,null,null,null,null,null,"Florida","Gainesville",null,"KAVIK CAMP"]
[null,null,null,null,null,null,null,null,null,null,null,null,null,null,null,null,null,null,null,null,null,"Florida","Gulf Breeze",null,"KENAI-SOLDOTNA"]
[null,null,null,null,null,null,null,null,null,null,null,null,null,null,null,null,null,null,null,null,null,"Florida","Jacksonville / Jacksonville Beach / Mayport Naval Station",null,"KENNICOTT"]
[null,null,null,null,null,null,null,null,null,null,null,null,null,null,null,null,null,null,null,null,null,"Florida","Key West",null,"KETCHIKAN"]
[null,null,null,null,null,null,null,null,null,null,null,null,null,null,null,null,null,null,null,null,null,"Florida","Kissimmee",null,"KING SALMON"]
[null,null,null,null,null,null,null,null,null,null,null,null,null,null,null,null,null,null,null,null,null,"Florida","Lakeland",null,"KLAWOCK"]
[null,null,null,null,null,null,null,null,null,null,null,null,null,null,null,null,null,null,null,null,null,"Florida","Leesburg",null,"KODIAK"]
[null,null,null,null,null,null,null,null,null,null,null,null,null,null,null,null,null,null,null,null,null,"Florida","Miami",null,"KOTZEBUE"]
[null,null,null,null,null,null,null,null,null,null,null,null,null,null,null,null,null,null,null,null,null,"Florida","Naples",null,"MCCARTHY"]
[null,null,null,null,null,null,null,null,null,null,null,null,null,null,null,null,null,null,null,null,null,"Florida","Ocala",null,"MCGRATH"]
[null,null,null,null,null,null,null,null,null,null,null,null,null,null,null,null,null,null,null,null,null,"Florida","Orlando",null,"MURPHY DOME"]
[null,null,null,null,null,null,null,null,null,null,null,null,null,null,null,null,null,null,null,null,null,"Florida","Panama City",null,"NOME"]
[null,null,null,null,null,null,null,null,null,null,null,null,null,null,null,null,null,null,null,null,null,"Florida","Pensacola / Pensacola Beach",null,"NUIQSUT"]
[null,null,null,null,null,null,null,null,null,null,null,null,null,null,null,null,null,null,null,null,null,"Florida","Punta Gorda",null,"PETERSBURG"]
[null,null,null,null,null,null,null,null,null,null,null,null,null,null,null,null,null,null,null,null,null,"Florida","Sarasota",null,"PORT ALSWORTH"]
[null,null,null,null,null,null,null,null,null,null,null,null,null,null,null,null,null,null,null,null,null,"Florida","Sebring",null,"SELDOVIA"]
[null,null,null,null,null,null,null,null,null,null,null,null,null,null,null,null,null,null,null,null,null,"Florida","St. Augustine",null,"SEWARD"]
[null,null,null,null,null,null,null,null,null,null,null,null,null,null,null,null,null,null,null,null,null,"Florida","Stuart",null,"SITKA-MT. EDGECUMBE"]
[null,null,null,null,null,null,null,null,null,null,null,null,null,null,null,null,null,null,null,null,null,"Florida","Tallahassee",null,"SKAGWAY"]
[null,null,null,null,null,null,null,null,null,null,null,null,null,null,null,null,null,null,null,null,null,"Florida","Tampa / St. Petersburg",null,"SLANA"]
[null,null,null,null,null,null,null,null,null,null,null,null,null,null,null,null,null,null,null,null,null,"Florida","Vero Beach",null,"SPRUCE CAPE"]
[null,null,null,null,null,null,null,null,null,null,null,null,null,null,null,null,null,null,null,null,null,"Florida","Other",null,"ST. GEORGE"]
[null,null,null,null,null,null,null,null,null,null,null,null,null,null,null,null,null,null,null,null,null,"Georgia","Athens",null,"TALKEETNA"]
[null,null,null,null,null,null,null,null,null,null,null,null,null,null,null,null,null,null,null,null,null,"Georgia","Atlanta",null,"TANANA"]
[null,null,null,null,null,null,null,null,null,null,null,null,null,null,null,null,null,null,null,null,null,"Georgia","Augusta",null,"TOGIAK"]
[null,null,null,null,null,null,null,null,null,null,null,null,null,null,null,null,null,null,null,null,null,"Georgia","ColumbusGA",null,"TOK"]
[null,null,null,null,null,null,null,null,null,null,null,null,null,null,null,null,null,null,null,null,null,"Georgia","Conyers",null,"UMIAT"]
[null,null,null,null,null,null,null,null,null,null,null,null,null,null,null,null,null,null,null,null,null,"Georgia","Duluth / Norcross / Lawrenceville ",null,"VALDEZ"]
[null,null,null,null,null,null,null,null,null,null,null,null,null,null,null,null,null,null,null,null,null,"Georgia","Jekyll Island / Brunswick",null,"WASILLA"]
[null,null,null,null,null,null,null,null,null,null,null,null,null,null,null,null,null,null,null,null,null,"Georgia","Peachtree City / Jonesboro / Morrow",null,"WRANGELL"]
[null,null,null,null,null,null,null,null,null,null,null,null,null,null,null,null,null,null,null,null,null,"Georgia","Savannah",null,"YAKUTAT"]
[null,null,null,null,null,null,null,null,null,null,null,null,null,null,null,null,null,null,null,null,null,null,"Other",null,"Other in Alaska"]
[null,null,null,null,null,null,null,null,null,null,null,null,null,null,null,null,null,null,null,null,null,"Idaho","Bonner's Ferry/Sandpoint"]
[null,null,null,null,null,null,null,null,null,null,null,null,null,null,null,null,null,null,null,null,null,"Idaho","Boise"]
[null,null,null,null,null,null,null,null,null,null,null,null,null,null,null,null,null,null,null,null,null,"Idaho","Coeur d'Alene",null,"ISLE OF HAWAII: HILO"]
[null,null,null,null,null,null,null,null,null,null,null,null,null,null,null,null,null,null,null,null,null,"Idaho","Driggs/Idaho Falls",null,"ISLE OF HAWAII: OTHER"]
[null,null,null,null,null,null,null,null,null,null,null,null,null,null,null,null,null,null,null,null,null,"Idaho","Sun Valley / Ketchum",null,"ISLE OF KAUAI"]
[null,null,null,null,null,null,null,null,null,null,null,null,null,null,null,null,null,null,null,null,null,"Idaho","Twin Falls",null,"ISLE OF MAUI"]
[null,null,null,null,null,null,null,null,null,null,null,null,null,null,null,null,null,null,null,null,null,null,"Other",null,"ISLE OF OAHU"]
[null,null,null,null,null,null,null,null,null,null,null,null,null,null,null,null,null,null,null,null,null,"Illinois","Bolingbrook / Romeoville / Lemont",null,"LANAI"]
[null,null,null,null,null,null,null,null,null,null,null,null,null,null,null,null,null,null,null,null,null,"Illinois","Chicago",null,"LUALUALEI NAVAL MAGAZINE"]
[null,null,null,null,null,null,null,null,null,null,null,null,null,null,null,null,null,null,null,null,null,"Illinois","Elgin / Aurora",null,"MOLOKAI"]
[null,null,null,null,null,null,null,null,null,null,null,null,null,null,null,null,null,null,null,null,null,"Illinois","Oak Brook Terrace",null,"Other in Hawaii "]
[null,null,null,null,null,null,null,null,null,null,null,null,null,null,null,null,null,null,null,null,null,"Illinois","O'Fallon / Fairview Heights / Collinsville"]
[null,null,null,null,null,null,null,null,null,null,null,null,null,null,null,null,null,null,null,null,null,"Illinois","SpringfieldIL"]
[null,null,null,null,null,null,null,null,null,null,null,null,null,null,null,null,null,null,null,null,null,null,"Other"]
[null,null,null,null,null,null,null,null,null,null,null,null,null,null,null,null,null,null,null,null,null,"Indiana","Bloomington "]
[null,null,null,null,null,null,null,null,null,null,null,null,null,null,null,null,null,null,null,null,null,"Indiana","Brownsburg / Plainfield"]
[null,null,null,null,null,null,null,null,null,null,null,null,null,null,null,null,null,null,null,null,null,"Indiana","Ft. Wayne"]
[null,null,null,null,null,null,null,null,null,null,null,null,null,null,null,null,null,null,null,null,null,"Indiana","Hammond / Munster / Merrillville"]
[null,null,null,null,null,null,null,null,null,null,null,null,null,null,null,null,null,null,null,null,null,"Indiana","Indianapolis / Carmel"]
[null,null,null,null,null,null,null,null,null,null,null,null,null,null,null,null,null,null,null,null,null,"Indiana","LafayetteIN"]
[null,null,null,null,null,null,null,null,null,null,null,null,null,null,null,null,null,null,null,null,null,"Indiana","Michigan City"]
[null,null,null,null,null,null,null,null,null,null,null,null,null,null,null,null,null,null,null,null,null,"Indiana","South Bend"]
[null,null,null,null,null,null,null,null,null,null,null,null,null,null,null,null,null,null,null,null,null,"Indiana","Valparaiso / Burlington Beach"]
[null,null,null,null,null,null,null,null,null,null,null,null,null,null,null,null,null,null,null,null,null,null,"Other"]
[null,null,null,null,null,null,null,null,null,null,null,null,null,null,null,null,null,null,null,null,null,"Iowa","Cedar Rapids"]
[null,null,null,null,null,null,null,null,null,null,null,null,null,null,null,null,null,null,null,null,null,"Iowa","Des Moines"]
[null,null,null,null,null,null,null,null,null,null,null,null,null,null,null,null,null,null,null,null,null,null,"Other"]
[null,null,null,null,null,null,null,null,null,null,null,null,null,null,null,null,null,null,null,null,null,"Kansas","Kansas City / Overland Park"]
[null,null,null,null,null,null,null,null,null,null,null,null,null,null,null,null,null,null,null,null,null,"Kansas","Wichita"]
[null,null,null,null,null,null,null,null,null,null,null,null,null,null,null,null,null,null,null,null,null,null,"Other"]
[null,null,null,null,null,null,null,null,null,null,null,null,null,null,null,null,null,null,null,null,null,"Kentucky","Boone County"]
[null,null,null,null,null,null,null,null,null,null,null,null,null,null,null,null,null,null,null,null,null,"Kentucky","Kenton County"]
[null,null,null,null,null,null,null,null,null,null,null,null,null,null,null,null,null,null,null,null,null,"Kentucky","Lexington"]
[null,null,null,null,null,null,null,null,null,null,null,null,null,null,null,null,null,null,null,null,null,"Kentucky","Louisville"]
[null,null,null,null,null,null,null,null,null,null,null,null,null,null,null,null,null,null,null,null,null,null,"Other"]
[null,null,null,null,null,null,null,null,null,null,null,null,null,null,null,null,null,null,null,null,null,"Louisiana","Baton Rouge"]
[null,null,null,null,null,null,null,null,null,null,null,null,null,null,null,null,null,null,null,null,null,"Louisiana","Covington / Slidell"]
[null,null,null,null,null,null,null,null,null,null,null,null,null,null,null,null,null,null,null,null,null,"Louisiana","LafayetteLA"]
[null,null,null,null,null,null,null,null,null,null,null,null,null,null,null,null,null,null,null,null,null,"Louisiana","Lake Charles"]
[null,null,null,null,null,null,null,null,null,null,null,null,null,null,null,null,null,null,null,null,null,"Louisiana","New Orleans"]
[null,null,null,null,null,null,null,null,null,null,null,null,null,null,null,null,null,null,null,null,null,null,"Other"]
[null,null,null,null,null,null,null,null,null,null,null,null,null,null,null,null,null,null,null,null,null,"Maine","Bar Harbor"]
[null,null,null,null,null,null,null,null,null,null,null,null,null,null,null,null,null,null,null,null,null,"Maine","Kennebunk / Kittery / Sanford"]
[null,null,null,null,null,null,null,null,null,null,null,null,null,null,null,null,null,null,null,null,null,"Maine","PortlandME"]
[null,null,null,null,null,null,null,null,null,null,null,null,null,null,null,null,null,null,null,null,null,"Maine","Rockport"]
[null,null,null,null,null,null,null,null,null,null,null,null,null,null,null,null,null,null,null,null,null,null,"Other"]
[null,null,null,null,null,null,null,null,null,null,null,null,null,null,null,null,null,null,null,null,null,"Maryland","Aberdeen / Bel Air / Belcamp"]
[null,null,null,null,null,null,null,null,null,null,null,null,null,null,null,null,null,null,null,null,null,"Maryland","Annapolis"]
[null,null,null,null,null,null,null,null,null,null,null,null,null,null,null,null,null,null,null,null,null,"Maryland","Baltimore City"]
[null,null,null,null,null,null,null,null,null,null,null,null,null,null,null,null,null,null,null,null,null,"Maryland","Baltimore County"]
[null,null,null,null,null,null,null,null,null,null,null,null,null,null,null,null,null,null,null,null,null,"Maryland","Cambridge / St. Michaels"]
[null,null,null,null,null,null,null,null,null,null,null,null,null,null,null,null,null,null,null,null,null,"Maryland","Centreville"]
[null,null,null,null,null,null,null,null,null,null,null,null,null,null,null,null,null,null,null,null,null,"Maryland","ColumbiaMD"]
[null,null,null,null,null,null,null,null,null,null,null,null,null,null,null,null,null,null,null,null,null,"Maryland","Frederick"]
[null,null,null,null,null,null,null,null,null,null,null,null,null,null,null,null,null,null,null,null,null,"Maryland","Hagerstown"]
[null,null,null,null,null,null,null,null,null,null,null,null,null,null,null,null,null,null,null,null,null,"Maryland","La Plata / Indian Head "]
[null,null,null,null,null,null,null,null,null,null,null,null,null,null,null,null,null,null,null,null,null,"Maryland","Lexington Park / Leonardtown / Lusby"]
[null,null,null,null,null,null,null,null,null,null,null,null,null,null,null,null,null,null,null,null,null,"Maryland","Ocean City"]
[null,null,null,null,null,null,null,null,null,null,null,null,null,null,null,null,null,null,null,null,null,"Maryland","Washington, DC Metro Area"]
[null,null,null,null,null,null,null,null,null,null,null,null,null,null,null,null,null,null,null,null,null,null,"Other"]
[null,null,null,null,null,null,null,null,null,null,null,null,null,null,null,null,null,null,null,null,null,"Massachusetts","Andover"]
[null,null,null,null,null,null,null,null,null,null,null,null,null,null,null,null,null,null,null,null,null,"Massachusetts","Boston / Cambridge"]
[null,null,null,null,null,null,null,null,null,null,null,null,null,null,null,null,null,null,null,null,null,"Massachusetts","Burlington / Woburn"]
[null,null,null,null,null,null,null,null,null,null,null,null,null,null,null,null,null,null,null,null,null,"Massachusetts","Falmouth"]
[null,null,null,null,null,null,null,null,null,null,null,null,null,null,null,null,null,null,null,null,null,"Massachusetts","Hyannis"]
[null,null,null,null,null,null,null,null,null,null,null,null,null,null,null,null,null,null,null,null,null,"Massachusetts","Martha's Vineyard"]
[null,null,null,null,null,null,null,null,null,null,null,null,null,null,null,null,null,null,null,null,null,"Massachusetts","Nantucket"]
[null,null,null,null,null,null,null,null,null,null,null,null,null,null,null,null,null,null,null,null,null,"Massachusetts","Northampton"]
[null,null,null,null,null,null,null,null,null,null,null,null,null,null,null,null,null,null,null,null,null,"Massachusetts","Pittsfield"]
[null,null,null,null,null,null,null,null,null,null,null,null,null,null,null,null,null,null,null,null,null,"Massachusetts","Plymouth / Taunton / New Bedford"]
[null,null,null,null,null,null,null,null,null,null,null,null,null,null,null,null,null,null,null,null,null,"Massachusetts","Quincy"]
[null,null,null,null,null,null,null,null,null,null,null,null,null,null,null,null,null,null,null,null,null,"Massachusetts","SpringfieldMA"]
[null,null,null,null,null,null,null,null,null,null,null,null,null,null,null,null,null,null,null,null,null,"Massachusetts","Worcester"]
[null,null,null,null,null,null,null,null,null,null,null,null,null,null,null,null,null,null,null,null,null,null,"Other"]
[null,null,null,null,null,null,null,null,null,null,null,null,null,null,null,null,null,null,null,null,null,"Michigan","Ann Arbor"]
[null,null,null,null,null,null,null,null,null,null,null,null,null,null,null,null,null,null,null,null,null,"Michigan","Benton Harbor / St. Joseph / Stevensville"]
[null,null,null,null,null,null,null,null,null,null,null,null,null,null,null,null,null,null,null,null,null,"Michigan","Charlevoix"]
[null,null,null,null,null,null,null,null,null,null,null,null,null,null,null,null,null,null,null,null,null,"Michigan","Detroit"]
[null,null,null,null,null,null,null,null,null,null,null,null,null,null,null,null,null,null,null,null,null,"Michigan","East Lansing / Lansing"]
[null,null,null,null,null,null,null,null,null,null,null,null,null,null,null,null,null,null,null,null,null,"Michigan","Flint"]
[null,null,null,null,null,null,null,null,null,null,null,null,null,null,null,null,null,null,null,null,null,"Michigan","Grand Rapids"]
[null,null,null,null,null,null,null,null,null,null,null,null,null,null,null,null,null,null,null,null,null,"Michigan","Holland"]
[null,null,null,null,null,null,null,null,null,null,null,null,null,null,null,null,null,null,null,null,null,"Michigan","Kalamazoo / Battle Creek "]
[null,null,null,null,null,null,null,null,null,null,null,null,null,null,null,null,null,null,null,null,null,"Michigan","Mackinac Island"]
[null,null,null,null,null,null,null,null,null,null,null,null,null,null,null,null,null,null,null,null,null,"Michigan","Midland"]
[null,null,null,null,null,null,null,null,null,null,null,null,null,null,null,null,null,null,null,null,null,"Michigan","Mount Pleasant"]
[null,null,null,null,null,null,null,null,null,null,null,null,null,null,null,null,null,null,null,null,null,"Michigan","Muskegon"]
[null,null,null,null,null,null,null,null,null,null,null,null,null,null,null,null,null,null,null,null,null,"Michigan","Ontonagon / Baraga / Houghton "]
[null,null,null,null,null,null,null,null,null,null,null,null,null,null,null,null,null,null,null,null,null,"Michigan","Petoskey"]
[null,null,null,null,null,null,null,null,null,null,null,null,null,null,null,null,null,null,null,null,null,"Michigan","Pontiac / Auburn Hills "]
[null,null,null,null,null,null,null,null,null,null,null,null,null,null,null,null,null,null,null,null,null,"Michigan","South Haven"]
[null,null,null,null,null,null,null,null,null,null,null,null,null,null,null,null,null,null,null,null,null,"Michigan","Traverse City and Leland"]
[null,null,null,null,null,null,null,null,null,null,null,null,null,null,null,null,null,null,null,null,null,"Michigan","Warren"]
[null,null,null,null,null,null,null,null,null,null,null,null,null,null,null,null,null,null,null,null,null,null,"Other"]
[null,null,null,null,null,null,null,null,null,null,null,null,null,null,null,null,null,null,null,null,null,"Minnesota","Duluth"]
[null,null,null,null,null,null,null,null,null,null,null,null,null,null,null,null,null,null,null,null,null,"Minnesota","Eagan / Burnsville / Mendota Heights"]
[null,null,null,null,null,null,null,null,null,null,null,null,null,null,null,null,null,null,null,null,null,"Minnesota","Minneapolis / St. Paul"]
[null,null,null,null,null,null,null,null,null,null,null,null,null,null,null,null,null,null,null,null,null,"Minnesota","Rochester"]
[null,null,null,null,null,null,null,null,null,null,null,null,null,null,null,null,null,null,null,null,null,null,"Other"]
[null,null,null,null,null,null,null,null,null,null,null,null,null,null,null,null,null,null,null,null,null,"Mississippi","Grenada"]
[null,null,null,null,null,null,null,null,null,null,null,null,null,null,null,null,null,null,null,null,null,"Mississippi","Gulfport / Biloxi"]
[null,null,null,null,null,null,null,null,null,null,null,null,null,null,null,null,null,null,null,null,null,"Mississippi","Hattiesburg"]
[null,null,null,null,null,null,null,null,null,null,null,null,null,null,null,null,null,null,null,null,null,"Mississippi","Picayune"]
[null,null,null,null,null,null,null,null,null,null,null,null,null,null,null,null,null,null,null,null,null,"Mississippi","Robinsonville"]
[null,null,null,null,null,null,null,null,null,null,null,null,null,null,null,null,null,null,null,null,null,"Mississippi","Southaven"]
[null,null,null,null,null,null,null,null,null,null,null,null,null,null,null,null,null,null,null,null,null,"Mississippi","Starkville "]
[null,null,null,null,null,null,null,null,null,null,null,null,null,null,null,null,null,null,null,null,null,null,"Other"]
[null,null,null,null,null,null,null,null,null,null,null,null,null,null,null,null,null,null,null,null,null,"Missouri","ColumbiaMO"]
[null,null,null,null,null,null,null,null,null,null,null,null,null,null,null,null,null,null,null,null,null,"Missouri","Kansas City"]
[null,null,null,null,null,null,null,null,null,null,null,null,null,null,null,null,null,null,null,null,null,"Missouri","SpringfieldMO"]
[null,null,null,null,null,null,null,null,null,null,null,null,null,null,null,null,null,null,null,null,null,"Missouri","St. Louis"]
[null,null,null,null,null,null,null,null,null,null,null,null,null,null,null,null,null,null,null,null,null,"Missouri","St. Robert"]
[null,null,null,null,null,null,null,null,null,null,null,null,null,null,null,null,null,null,null,null,null,null,"Other"]
[null,null,null,null,null,null,null,null,null,null,null,null,null,null,null,null,null,null,null,null,null,"Montana","Big Sky / West Yellowstone"]
[null,null,null,null,null,null,null,null,null,null,null,null,null,null,null,null,null,null,null,null,null,"Montana","Butte"]
[null,null,null,null,null,null,null,null,null,null,null,null,null,null,null,null,null,null,null,null,null,"Montana","Helena"]
[null,null,null,null,null,null,null,null,null,null,null,null,null,null,null,null,null,null,null,null,null,"Montana","Missoula / Polson / Kalispell"]
[null,null,null,null,null,null,null,null,null,null,null,null,null,null,null,null,null,null,null,null,null,null,"Other"]
[null,null,null,null,null,null,null,null,null,null,null,null,null,null,null,null,null,null,null,null,null,"Nebraska","Omaha"]
[null,null,null,null,null,null,null,null,null,null,null,null,null,null,null,null,null,null,null,null,null,null,"Other"]
[null,null,null,null,null,null,null,null,null,null,null,null,null,null,null,null,null,null,null,null,null,"Nevada","Incline Village / Reno / Sparks"]
[null,null,null,null,null,null,null,null,null,null,null,null,null,null,null,null,null,null,null,null,null,"Nevada","Las Vegas"]
[null,null,null,null,null,null,null,null,null,null,null,null,null,null,null,null,null,null,null,null,null,"Nevada","Stateline, Carson City"]
[null,null,null,null,null,null,null,null,null,null,null,null,null,null,null,null,null,null,null,null,null,null,"Other"]
[null,null,null,null,null,null,null,null,null,null,null,null,null,null,null,null,null,null,null,null,null,"New Hampshire","Concord"]
[null,null,null,null,null,null,null,null,null,null,null,null,null,null,null,null,null,null,null,null,null,"New Hampshire","Conway"]
[null,null,null,null,null,null,null,null,null,null,null,null,null,null,null,null,null,null,null,null,null,"New Hampshire","DurhamNH"]
[null,null,null,null,null,null,null,null,null,null,null,null,null,null,null,null,null,null,null,null,null,"New Hampshire","Laconia"]
[null,null,null,null,null,null,null,null,null,null,null,null,null,null,null,null,null,null,null,null,null,"New Hampshire","Lebanon / Lincoln / West Lebanon"]
[null,null,null,null,null,null,null,null,null,null,null,null,null,null,null,null,null,null,null,null,null,"New Hampshire","ManchesterNH"]
[null,null,null,null,null,null,null,null,null,null,null,null,null,null,null,null,null,null,null,null,null,"New Hampshire","Portsmouth"]
[null,null,null,null,null,null,null,null,null,null,null,null,null,null,null,null,null,null,null,null,null,null,"Other"]
[null,null,null,null,null,null,null,null,null,null,null,null,null,null,null,null,null,null,null,null,null,"New Jersey","Atlantic City / Ocean City / Cape May"]
[null,null,null,null,null,null,null,null,null,null,null,null,null,null,null,null,null,null,null,null,null,"New Jersey","Belle Mead"]
[null,null,null,null,null,null,null,null,null,null,null,null,null,null,null,null,null,null,null,null,null,"New Jersey","Cherry Hill / Moorestown"]
[null,null,null,null,null,null,null,null,null,null,null,null,null,null,null,null,null,null,null,null,null,"New Jersey","Eatontown / Freehold"]
[null,null,null,null,null,null,null,null,null,null,null,null,null,null,null,null,null,null,null,null,null,"New Jersey","Edison / Piscataway"]
[null,null,null,null,null,null,null,null,null,null,null,null,null,null,null,null,null,null,null,null,null,"New Jersey","Flemington"]
[null,null,null,null,null,null,null,null,null,null,null,null,null,null,null,null,null,null,null,null,null,"New Jersey","Newark"]
[null,null,null,null,null,null,null,null,null,null,null,null,null,null,null,null,null,null,null,null,null,"New Jersey","Parsippany"]
[null,null,null,null,null,null,null,null,null,null,null,null,null,null,null,null,null,null,null,null,null,"New Jersey","Princeton / Trenton"]
[null,null,null,null,null,null,null,null,null,null,null,null,null,null,null,null,null,null,null,null,null,"New Jersey","Springfield / Cranford / New Providence"]
[null,null,null,null,null,null,null,null,null,null,null,null,null,null,null,null,null,null,null,null,null,"New Jersey","Tom’s River"]
[null,null,null,null,null,null,null,null,null,null,null,null,null,null,null,null,null,null,null,null,null,null,"Other"]
[null,null,null,null,null,null,null,null,null,null,null,null,null,null,null,null,null,null,null,null,null,"New Mexico","Albuquerque"]
[null,null,null,null,null,null,null,null,null,null,null,null,null,null,null,null,null,null,null,null,null,"New Mexico","Carlsbad"]
[null,null,null,null,null,null,null,null,null,null,null,null,null,null,null,null,null,null,null,null,null,"New Mexico","Los Alamos"]
[null,null,null,null,null,null,null,null,null,null,null,null,null,null,null,null,null,null,null,null,null,"New Mexico","Las Cruces"]
[null,null,null,null,null,null,null,null,null,null,null,null,null,null,null,null,null,null,null,null,null,"New Mexico","Santa Fe"]
[null,null,null,null,null,null,null,null,null,null,null,null,null,null,null,null,null,null,null,null,null,"New Mexico","Taos"]
[null,null,null,null,null,null,null,null,null,null,null,null,null,null,null,null,null,null,null,null,null,null,"Other"]
[null,null,null,null,null,null,null,null,null,null,null,null,null,null,null,null,null,null,null,null,null,"New York","Albany"]
[null,null,null,null,null,null,null,null,null,null,null,null,null,null,null,null,null,null,null,null,null,"New York","Binghamton / Owego"]
[null,null,null,null,null,null,null,null,null,null,null,null,null,null,null,null,null,null,null,null,null,"New York","Buffalo"]
[null,null,null,null,null,null,null,null,null,null,null,null,null,null,null,null,null,null,null,null,null,"New York","Floral Park / Garden City / Great Neck"]
[null,null,null,null,null,null,null,null,null,null,null,null,null,null,null,null,null,null,null,null,null,"New York","Glens Falls"]
[null,null,null,null,null,null,null,null,null,null,null,null,null,null,null,null,null,null,null,null,null,"New York","Ithaca / Waterloo / Romulus"]
[null,null,null,null,null,null,null,null,null,null,null,null,null,null,null,null,null,null,null,null,null,"New York","Kingston"]
[null,null,null,null,null,null,null,null,null,null,null,null,null,null,null,null,null,null,null,null,null,"New York","Lake Placid"]
[null,null,null,null,null,null,null,null,null,null,null,null,null,null,null,null,null,null,null,null,null,"New York","Manhattan (includes the boroughs of Manhattan, Brooklyn, the Bronx, Queens and Staten Island)"]
[null,null,null,null,null,null,null,null,null,null,null,null,null,null,null,null,null,null,null,null,null,"New York","Niagara Falls"]
[null,null,null,null,null,null,null,null,null,null,null,null,null,null,null,null,null,null,null,null,null,"New York","Nyack / Palisades"]
[null,null,null,null,null,null,null,null,null,null,null,null,null,null,null,null,null,null,null,null,null,"New York","Poughkeepsie"]
[null,null,null,null,null,null,null,null,null,null,null,null,null,null,null,null,null,null,null,null,null,"New York","Riverhead / Ronkonkoma / Melville"]
[null,null,null,null,null,null,null,null,null,null,null,null,null,null,null,null,null,null,null,null,null,"New York","Rochester"]
[null,null,null,null,null,null,null,null,null,null,null,null,null,null,null,null,null,null,null,null,null,"New York","Saratoga Springs / Schenectady"]
[null,null,null,null,null,null,null,null,null,null,null,null,null,null,null,null,null,null,null,null,null,"New York","Syracuse / Oswego"]
[null,null,null,null,null,null,null,null,null,null,null,null,null,null,null,null,null,null,null,null,null,"New York","Tarrytown / White Plains / New Rochelle"]
[null,null,null,null,null,null,null,null,null,null,null,null,null,null,null,null,null,null,null,null,null,"New York","Troy "]
[null,null,null,null,null,null,null,null,null,null,null,null,null,null,null,null,null,null,null,null,null,"New York","Watertown"]
[null,null,null,null,null,null,null,null,null,null,null,null,null,null,null,null,null,null,null,null,null,"New York","West Point"]
[null,null,null,null,null,null,null,null,null,null,null,null,null,null,null,null,null,null,null,null,null,null,"Other"]
[null,null,null,null,null,null,null,null,null,null,null,null,null,null,null,null,null,null,null,null,null,"North Carolina","Asheville "]
[null,null,null,null,null,null,null,null,null,null,null,null,null,null,null,null,null,null,null,null,null,"North Carolina","Atlantic Beach / Morehead City"]
[null,null,null,null,null,null,null,null,null,null,null,null,null,null,null,null,null,null,null,null,null,"North Carolina","Chapel Hill"]
[null,null,null,null,null,null,null,null,null,null,null,null,null,null,null,null,null,null,null,null,null,"North Carolina","Charlotte"]
[null,null,null,null,null,null,null,null,null,null,null,null,null,null,null,null,null,null,null,null,null,"North Carolina","Durham"]
[null,null,null,null,null,null,null,null,null,null,null,null,null,null,null,null,null,null,null,null,null,"North Carolina","Fayetteville"]
[null,null,null,null,null,null,null,null,null,null,null,null,null,null,null,null,null,null,null,null,null,"North Carolina","Greensboro"]
[null,null,null,null,null,null,null,null,null,null,null,null,null,null,null,null,null,null,null,null,null,"North Carolina","GreenvilleNC"]
[null,null,null,null,null,null,null,null,null,null,null,null,null,null,null,null,null,null,null,null,null,"North Carolina","Kill Devil"]
[null,null,null,null,null,null,null,null,null,null,null,null,null,null,null,null,null,null,null,null,null,"North Carolina","New Bern / Havelock"]
[null,null,null,null,null,null,null,null,null,null,null,null,null,null,null,null,null,null,null,null,null,"North Carolina","Raleigh"]
[null,null,null,null,null,null,null,null,null,null,null,null,null,null,null,null,null,null,null,null,null,"North Carolina","WilmingtonNC"]
[null,null,null,null,null,null,null,null,null,null,null,null,null,null,null,null,null,null,null,null,null,"North Carolina","Winston-Salem"]
[null,null,null,null,null,null,null,null,null,null,null,null,null,null,null,null,null,null,null,null,null,null,"Other"]
[null,null,null,null,null,null,null,null,null,null,null,null,null,null,null,null,null,null,null,null,null,"North Dakota","Dickinson / Beulah"]
[null,null,null,null,null,null,null,null,null,null,null,null,null,null,null,null,null,null,null,null,null,"North Dakota","Minot"]
[null,null,null,null,null,null,null,null,null,null,null,null,null,null,null,null,null,null,null,null,null,"North Dakota","Williston"]
[null,null,null,null,null,null,null,null,null,null,null,null,null,null,null,null,null,null,null,null,null,null,"Other"]
[null,null,null,null,null,null,null,null,null,null,null,null,null,null,null,null,null,null,null,null,null,"Ohio","Akron"]
[null,null,null,null,null,null,null,null,null,null,null,null,null,null,null,null,null,null,null,null,null,"Ohio","Canton"]
[null,null,null,null,null,null,null,null,null,null,null,null,null,null,null,null,null,null,null,null,null,"Ohio","Cincinnati"]
[null,null,null,null,null,null,null,null,null,null,null,null,null,null,null,null,null,null,null,null,null,"Ohio","Cleveland"]
[null,null,null,null,null,null,null,null,null,null,null,null,null,null,null,null,null,null,null,null,null,"Ohio","ColumbusOH"]
[null,null,null,null,null,null,null,null,null,null,null,null,null,null,null,null,null,null,null,null,null,"Ohio","Dayton / Fairborn"]
[null,null,null,null,null,null,null,null,null,null,null,null,null,null,null,null,null,null,null,null,null,"Ohio","Hamilton"]
[null,null,null,null,null,null,null,null,null,null,null,null,null,null,null,null,null,null,null,null,null,"Ohio","Mentor"]
[null,null,null,null,null,null,null,null,null,null,null,null,null,null,null,null,null,null,null,null,null,"Ohio","Rittman"]
[null,null,null,null,null,null,null,null,null,null,null,null,null,null,null,null,null,null,null,null,null,"Ohio","Sandusky / Bellevue"]
[null,null,null,null,null,null,null,null,null,null,null,null,null,null,null,null,null,null,null,null,null,"Ohio","Toledo"]
[null,null,null,null,null,null,null,null,null,null,null,null,null,null,null,null,null,null,null,null,null,"Ohio","Youngstown"]
[null,null,null,null,null,null,null,null,null,null,null,null,null,null,null,null,null,null,null,null,null,null,"Other"]
[null,null,null,null,null,null,null,null,null,null,null,null,null,null,null,null,null,null,null,null,null,"Oklahoma","Oklahoma City"]
[null,null,null,null,null,null,null,null,null,null,null,null,null,null,null,null,null,null,null,null,null,"Oklahoma","Tulsa "]
[null,null,null,null,null,null,null,null,null,null,null,null,null,null,null,null,null,null,null,null,null,null,"Other"]
[null,null,null,null,null,null,null,null,null,null,null,null,null,null,null,null,null,null,null,null,null,"Oregon","Ashland / Crater Lake"]
[null,null,null,null,null,null,null,null,null,null,null,null,null,null,null,null,null,null,null,null,null,"Oregon","Beaverton"]
[null,null,null,null,null,null,null,null,null,null,null,null,null,null,null,null,null,null,null,null,null,"Oregon","Bend"]
[null,null,null,null,null,null,null,null,null,null,null,null,null,null,null,null,null,null,null,null,null,"Oregon","Clackamas"]
[null,null,null,null,null,null,null,null,null,null,null,null,null,null,null,null,null,null,null,null,null,"Oregon","Eugene / Florence"]
[null,null,null,null,null,null,null,null,null,null,null,null,null,null,null,null,null,null,null,null,null,"Oregon","Lincoln City"]
[null,null,null,null,null,null,null,null,null,null,null,null,null,null,null,null,null,null,null,null,null,"Oregon","PortlandOR"]
[null,null,null,null,null,null,null,null,null,null,null,null,null,null,null,null,null,null,null,null,null,"Oregon","Seaside"]
[null,null,null,null,null,null,null,null,null,null,null,null,null,null,null,null,null,null,null,null,null,null,"Other"]
[null,null,null,null,null,null,null,null,null,null,null,null,null,null,null,null,null,null,null,null,null,"Pennsylvania","Allentown / Easton / Bethlehem"]
[null,null,null,null,null,null,null,null,null,null,null,null,null,null,null,null,null,null,null,null,null,"Pennsylvania","Bucks County"]
[null,null,null,null,null,null,null,null,null,null,null,null,null,null,null,null,null,null,null,null,null,"Pennsylvania","Chester / Radnor / Essington"]
[null,null,null,null,null,null,null,null,null,null,null,null,null,null,null,null,null,null,null,null,null,"Pennsylvania","Erie"]
[null,null,null,null,null,null,null,null,null,null,null,null,null,null,null,null,null,null,null,null,null,"Pennsylvania","Gettysburg"]
[null,null,null,null,null,null,null,null,null,null,null,null,null,null,null,null,null,null,null,null,null,"Pennsylvania","Harrisburg"]
[null,null,null,null,null,null,null,null,null,null,null,null,null,null,null,null,null,null,null,null,null,"Pennsylvania","Hershey"]
[null,null,null,null,null,null,null,null,null,null,null,null,null,null,null,null,null,null,null,null,null,"Pennsylvania","Lancaster"]
[null,null,null,null,null,null,null,null,null,null,null,null,null,null,null,null,null,null,null,null,null,"Pennsylvania","Malvern / Frazer / Berwyn "]
[null,null,null,null,null,null,null,null,null,null,null,null,null,null,null,null,null,null,null,null,null,"Pennsylvania","Mechanicsburg"]
[null,null,null,null,null,null,null,null,null,null,null,null,null,null,null,null,null,null,null,null,null,"Pennsylvania","Montgomery County"]
[null,null,null,null,null,null,null,null,null,null,null,null,null,null,null,null,null,null,null,null,null,"Pennsylvania","Philadelphia"]
[null,null,null,null,null,null,null,null,null,null,null,null,null,null,null,null,null,null,null,null,null,"Pennsylvania","Pittsburgh"]
[null,null,null,null,null,null,null,null,null,null,null,null,null,null,null,null,null,null,null,null,null,"Pennsylvania","Reading"]
[null,null,null,null,null,null,null,null,null,null,null,null,null,null,null,null,null,null,null,null,null,"Pennsylvania","Scranton"]
[null,null,null,null,null,null,null,null,null,null,null,null,null,null,null,null,null,null,null,null,null,"Pennsylvania","State College "]
[null,null,null,null,null,null,null,null,null,null,null,null,null,null,null,null,null,null,null,null,null,null,"Other"]
[null,null,null,null,null,null,null,null,null,null,null,null,null,null,null,null,null,null,null,null,null,"Rhode Island","East Greenwich / Warwick / North Kingstown"]
[null,null,null,null,null,null,null,null,null,null,null,null,null,null,null,null,null,null,null,null,null,"Rhode Island","Jamestown / Middletown / Newport"]
[null,null,null,null,null,null,null,null,null,null,null,null,null,null,null,null,null,null,null,null,null,"Rhode Island","Providence / Bristol"]
[null,null,null,null,null,null,null,null,null,null,null,null,null,null,null,null,null,null,null,null,null,null,"Other"]
[null,null,null,null,null,null,null,null,null,null,null,null,null,null,null,null,null,null,null,null,null,"South Carolina","Aiken"]
[null,null,null,null,null,null,null,null,null,null,null,null,null,null,null,null,null,null,null,null,null,"South Carolina","CharlestonSC"]
[null,null,null,null,null,null,null,null,null,null,null,null,null,null,null,null,null,null,null,null,null,"South Carolina","ColumbiaSC"]
[null,null,null,null,null,null,null,null,null,null,null,null,null,null,null,null,null,null,null,null,null,"South Carolina","GreenvilleSC"]
[null,null,null,null,null,null,null,null,null,null,null,null,null,null,null,null,null,null,null,null,null,"South Carolina","Hilton Head"]
[null,null,null,null,null,null,null,null,null,null,null,null,null,null,null,null,null,null,null,null,null,"South Carolina","Myrtle Beach"]
[null,null,null,null,null,null,null,null,null,null,null,null,null,null,null,null,null,null,null,null,null,null,"Other"]
[null,null,null,null,null,null,null,null,null,null,null,null,null,null,null,null,null,null,null,null,null,"South Dakota","Hot SpringsSD"]
[null,null,null,null,null,null,null,null,null,null,null,null,null,null,null,null,null,null,null,null,null,"South Dakota","Rapid City"]
[null,null,null,null,null,null,null,null,null,null,null,null,null,null,null,null,null,null,null,null,null,"South Dakota","Sturgis / Spearfish "]
[null,null,null,null,null,null,null,null,null,null,null,null,null,null,null,null,null,null,null,null,null,null,"Other"]
[null,null,null,null,null,null,null,null,null,null,null,null,null,null,null,null,null,null,null,null,null,"Tennessee","Brentwood / Franklin"]
[null,null,null,null,null,null,null,null,null,null,null,null,null,null,null,null,null,null,null,null,null,"Tennessee","Chattanooga "]
[null,null,null,null,null,null,null,null,null,null,null,null,null,null,null,null,null,null,null,null,null,"Tennessee","Knoxville"]
[null,null,null,null,null,null,null,null,null,null,null,null,null,null,null,null,null,null,null,null,null,"Tennessee","Memphis"]
[null,null,null,null,null,null,null,null,null,null,null,null,null,null,null,null,null,null,null,null,null,"Tennessee","Nashville"]
[null,null,null,null,null,null,null,null,null,null,null,null,null,null,null,null,null,null,null,null,null,"Tennessee","Oak Ridge"]
[null,null,null,null,null,null,null,null,null,null,null,null,null,null,null,null,null,null,null,null,null,null,"Other"]
[null,null,null,null,null,null,null,null,null,null,null,null,null,null,null,null,null,null,null,null,null,"Texas","Arlington / Fort Worth / Grapevine"]
[null,null,null,null,null,null,null,null,null,null,null,null,null,null,null,null,null,null,null,null,null,"Texas","Austin"]
[null,null,null,null,null,null,null,null,null,null,null,null,null,null,null,null,null,null,null,null,null,"Texas","Beaumont"]
[null,null,null,null,null,null,null,null,null,null,null,null,null,null,null,null,null,null,null,null,null,"Texas","College Station"]
[null,null,null,null,null,null,null,null,null,null,null,null,null,null,null,null,null,null,null,null,null,"Texas","Corpus Christi"]
[null,null,null,null,null,null,null,null,null,null,null,null,null,null,null,null,null,null,null,null,null,"Texas","Dallas"]
[null,null,null,null,null,null,null,null,null,null,null,null,null,null,null,null,null,null,null,null,null,"Texas","El Paso"]
[null,null,null,null,null,null,null,null,null,null,null,null,null,null,null,null,null,null,null,null,null,"Texas","Galveston"]
[null,null,null,null,null,null,null,null,null,null,null,null,null,null,null,null,null,null,null,null,null,"Texas","Houston (L.B. Johnson Space Center)"]
[null,null,null,null,null,null,null,null,null,null,null,null,null,null,null,null,null,null,null,null,null,"Texas","Hunt County"]
[null,null,null,null,null,null,null,null,null,null,null,null,null,null,null,null,null,null,null,null,null,"Texas","Laredo"]
[null,null,null,null,null,null,null,null,null,null,null,null,null,null,null,null,null,null,null,null,null,"Texas","McAllen"]
[null,null,null,null,null,null,null,null,null,null,null,null,null,null,null,null,null,null,null,null,null,"Texas","MidlandTX"]
[null,null,null,null,null,null,null,null,null,null,null,null,null,null,null,null,null,null,null,null,null,"Texas","Plano"]
[null,null,null,null,null,null,null,null,null,null,null,null,null,null,null,null,null,null,null,null,null,"Texas","Round Rock "]
[null,null,null,null,null,null,null,null,null,null,null,null,null,null,null,null,null,null,null,null,null,"Texas","San Antonio"]
[null,null,null,null,null,null,null,null,null,null,null,null,null,null,null,null,null,null,null,null,null,"Texas","South Padre Island"]
[null,null,null,null,null,null,null,null,null,null,null,null,null,null,null,null,null,null,null,null,null,"Texas","Waco"]
[null,null,null,null,null,null,null,null,null,null,null,null,null,null,null,null,null,null,null,null,null,null,"Other"]
[null,null,null,null,null,null,null,null,null,null,null,null,null,null,null,null,null,null,null,null,null,"Utah","Moab"]
[null,null,null,null,null,null,null,null,null,null,null,null,null,null,null,null,null,null,null,null,null,"Utah","Park City"]
[null,null,null,null,null,null,null,null,null,null,null,null,null,null,null,null,null,null,null,null,null,"Utah","Provo"]
[null,null,null,null,null,null,null,null,null,null,null,null,null,null,null,null,null,null,null,null,null,"Utah","Salt Lake City"]
[null,null,null,null,null,null,null,null,null,null,null,null,null,null,null,null,null,null,null,null,null,null,"Other"]
[null,null,null,null,null,null,null,null,null,null,null,null,null,null,null,null,null,null,null,null,null,"Vermont","Burlington / St. Albans"]
[null,null,null,null,null,null,null,null,null,null,null,null,null,null,null,null,null,null,null,null,null,"Vermont","ManchesterVT"]
[null,null,null,null,null,null,null,null,null,null,null,null,null,null,null,null,null,null,null,null,null,"Vermont","Middlebury"]
[null,null,null,null,null,null,null,null,null,null,null,null,null,null,null,null,null,null,null,null,null,"Vermont","Montpelier"]
[null,null,null,null,null,null,null,null,null,null,null,null,null,null,null,null,null,null,null,null,null,"Vermont","Stowe "]
[null,null,null,null,null,null,null,null,null,null,null,null,null,null,null,null,null,null,null,null,null,"Vermont","White River Junction"]
[null,null,null,null,null,null,null,null,null,null,null,null,null,null,null,null,null,null,null,null,null,null,"Other"]
[null,null,null,null,null,null,null,null,null,null,null,null,null,null,null,null,null,null,null,null,null,"Virginia","Abingdon"]
[null,null,null,null,null,null,null,null,null,null,null,null,null,null,null,null,null,null,null,null,null,"Virginia","Blacksburg"]
[null,null,null,null,null,null,null,null,null,null,null,null,null,null,null,null,null,null,null,null,null,"Virginia","Charlottesville"]
[null,null,null,null,null,null,null,null,null,null,null,null,null,null,null,null,null,null,null,null,null,"Virginia","Chesapeake / Suffolk"]
[null,null,null,null,null,null,null,null,null,null,null,null,null,null,null,null,null,null,null,null,null,"Virginia","Chesterfield / Henrico Counties"]
[null,null,null,null,null,null,null,null,null,null,null,null,null,null,null,null,null,null,null,null,null,"Virginia","Fredericksburg"]
[null,null,null,null,null,null,null,null,null,null,null,null,null,null,null,null,null,null,null,null,null,"Virginia","Hampton City / Newport News"]
[null,null,null,null,null,null,null,null,null,null,null,null,null,null,null,null,null,null,null,null,null,"Virginia","James City and York Counties, Williamsburg"]
[null,null,null,null,null,null,null,null,null,null,null,null,null,null,null,null,null,null,null,null,null,"Virginia","Loudoun County"]
[null,null,null,null,null,null,null,null,null,null,null,null,null,null,null,null,null,null,null,null,null,"Virginia","Lynchburg"]
[null,null,null,null,null,null,null,null,null,null,null,null,null,null,null,null,null,null,null,null,null,"Virginia","Manassas"]
[null,null,null,null,null,null,null,null,null,null,null,null,null,null,null,null,null,null,null,null,null,"Virginia","Norfolk / Portsmouth"]
[null,null,null,null,null,null,null,null,null,null,null,null,null,null,null,null,null,null,null,null,null,"Virginia","Prince William County"]
[null,null,null,null,null,null,null,null,null,null,null,null,null,null,null,null,null,null,null,null,null,"Virginia","Richmond City"]
[null,null,null,null,null,null,null,null,null,null,null,null,null,null,null,null,null,null,null,null,null,"Virginia","Roanoke"]
[null,null,null,null,null,null,null,null,null,null,null,null,null,null,null,null,null,null,null,null,null,"Virginia","Virginia Beach"]
[null,null,null,null,null,null,null,null,null,null,null,null,null,null,null,null,null,null,null,null,null,"Virginia","Wallops Island"]
[null,null,null,null,null,null,null,null,null,null,null,null,null,null,null,null,null,null,null,null,null,"Virginia","Warrenton "]
[null,null,null,null,null,null,null,null,null,null,null,null,null,null,null,null,null,null,null,null,null,"Virginia","Washington, DC Metro Area"]
[null,null,null,null,null,null,null,null,null,null,null,null,null,null,null,null,null,null,null,null,null,null,"Other"]
[null,null,null,null,null,null,null,null,null,null,null,null,null,null,null,null,null,null,null,null,null,"Washington","Anacortes / Coupeville / Oak Harbor"]
[null,null,null,null,null,null,null,null,null,null,null,null,null,null,null,null,null,null,null,null,null,"Washington","Bremerton"]
[null,null,null,null,null,null,null,null,null,null,null,null,null,null,null,null,null,null,null,null,null,"Washington","Everett / Lynnwood"]
[null,null,null,null,null,null,null,null,null,null,null,null,null,null,null,null,null,null,null,null,null,"Washington","Ocean Shores"]
[null,null,null,null,null,null,null,null,null,null,null,null,null,null,null,null,null,null,null,null,null,"Washington","Olympia / Tumwater"]
[null,null,null,null,null,null,null,null,null,null,null,null,null,null,null,null,null,null,null,null,null,"Washington","Port Angeles / Port Townsend"]
[null,null,null,null,null,null,null,null,null,null,null,null,null,null,null,null,null,null,null,null,null,"Washington","Seattle"]
[null,null,null,null,null,null,null,null,null,null,null,null,null,null,null,null,null,null,null,null,null,"Washington","Spokane"]
[null,null,null,null,null,null,null,null,null,null,null,null,null,null,null,null,null,null,null,null,null,"Washington","Tacoma"]
[null,null,null,null,null,null,null,null,null,null,null,null,null,null,null,null,null,null,null,null,null,"Washington","Vancouver"]
[null,null,null,null,null,null,null,null,null,null,null,null,null,null,null,null,null,null,null,null,null,null,"Other"]
[null,null,null,null,null,null,null,null,null,null,null,null,null,null,null,null,null,null,null,null,null,"West Virginia","CharlestonWV"]
[null,null,null,null,null,null,null,null,null,null,null,null,null,null,null,null,null,null,null,null,null,"West Virginia","Morgantown"]
[null,null,null,null,null,null,null,null,null,null,null,null,null,null,null,null,null,null,null,null,null,"West Virginia","Shepherdstown"]
[null,null,null,null,null,null,null,null,null,null,null,null,null,null,null,null,null,null,null,null,null,"West Virginia","Wheeling"]
[null,null,null,null,null,null,null,null,null,null,null,null,null,null,null,null,null,null,null,null,null,null,"Other"]
[null,null,null,null,null,null,null,null,null,null,null,null,null,null,null,null,null,null,null,null,null,"Wisconsin","Appleton"]
[null,null,null,null,null,null,null,null,null,null,null,null,null,null,null,null,null,null,null,null,null,"Wisconsin","Brookfield / Racine"]
[null,null,null,null,null,null,null,null,null,null,null,null,null,null,null,null,null,null,null,null,null,"Wisconsin","Green Bay"]
[null,null,null,null,null,null,null,null,null,null,null,null,null,null,null,null,null,null,null,null,null,"Wisconsin","Lake Geneva"]
[null,null,null,null,null,null,null,null,null,null,null,null,null,null,null,null,null,null,null,null,null,"Wisconsin","Madison"]
[null,null,null,null,null,null,null,null,null,null,null,null,null,null,null,null,null,null,null,null,null,"Wisconsin","Milwaukee"]
[null,null,null,null,null,null,null,null,null,null,null,null,null,null,null,null,null,null,null,null,null,"Wisconsin","Sheboygan"]
[null,null,null,null,null,null,null,null,null,null,null,null,null,null,null,null,null,null,null,null,null,"Wisconsin","Sturgeon Bay"]
[null,null,null,null,null,null,null,null,null,null,null,null,null,null,null,null,null,null,null,null,null,"Wisconsin","Wisconsin Dells"]
[null,null,null,null,null,null,null,null,null,null,null,null,null,null,null,null,null,null,null,null,null,null,"Other"]
[null,null,null,null,null,null,null,null,null,null,null,null,null,null,null,null,null,null,null,null,null,"Wyoming","Cody"]
[null,null,null,null,null,null,null,null,null,null,null,null,null,null,null,null,null,null,null,null,null,"Wyoming","Evanston / Rock Springs"]
[null,null,null,null,null,null,null,null,null,null,null,null,null,null,null,null,null,null,null,null,null,"Wyoming","Gillette"]
[null,null,null,null,null,null,null,null,null,null,null,null,null,null,null,null,null,null,null,null,null,"Wyoming","Jackson / Pinedale"]
[null,null,null,null,null,null,null,null,null,null,null,null,null,null,null,null,null,null,null,null,null,"Wyoming","Sheridan"]
[null,null,null,null,null,null,null,null,null,null,null,null,null,null,null,null,null,null,null,null,null,null,"Other"]

{"sheet":"Mileage","index":2,"n_rows":39,"n_cols":23,"rows_kept":39,"cut":false,"hidden":false,"merged":[[6,6,6,9],[6,11,6,13],[9,2,9,4],[9,9,9,10],[0,0,0,14],[1,0,1,14],[4,5,4,8],[4,9,4,12],[5,6,5,9],[5,11,5,13],[11,9,11,10],[12,2,12,4],[12,9,12,10],[13,2,13,4],[13,9,13,10],[11,2,11,4],[15,2,15,4],[15,9,15,10],[16,2,16,4],[16,9,16,10],[14,6,14,7],[15,6,15,7],[16,6,16,7],[14,2,14,4],[14,9,14,10],[17,9,17,10],[18,2,18,4],[18,9,18,10],[19,2,19,4],[19,9,19,10],[17,6,17,7],[18,6,18,7],[19,6,19,7],[20,9,20,10],[21,2,21,4],[21,9,21,10],[22,2,22,4],[22,9,22,10],[20,6,20,7],[21,6,21,7],[22,6,22,7],[26,2,26,4],[26,9,26,10],[26,6,26,7],[23,2,23,4],[23,9,23,10],[24,2,24,4],[24,9,24,10],[25,2,25,4],[25,9,25,10],[24,6,24,7],[50,13,50,14],[25,6,25,7],[41,13,41,14],[42,13,42,14],[44,13,44,14],[45,13,45,14],[40,8,40,9],[46,0,46,4],[46,13,46,14],[47,13,47,14],[48,13,48,14],[49,0,49,4],[55,0,55,4],[9,6,9,7],[8,6,8,7],[10,6,10,7],[11,6,11,7],[12,6,12,7],[13,6,13,7],[23,6,23,7],[20,2,20,4],[17,2,17,4],[51,0,52,1],[51,2,52,2],[51,3,52,3],[51,4,52,4],[53,0,53,1],[54,0,54,1]]}
["University of Louisville - Travel Expense Voucher"]
["Private Auto Mileage"]
[]
[null,null,null,null,"Employee/Student Name:",{"$f":"TitlePage!F6","v":0}]
[null,null,null,null,"Department:",{"$f":"TitlePage!Q6","v":0}]
[null,null,null,"Dates of Travel",null,"Departure Date:",{"$f":"TitlePage!G11","v":"00:00:00"},null,null,null,"Return Date:",{"$f":"TitlePage!Q11","v":"00:00:00"}]
[null,null,null,null,null,"Departure Time:",{"$f":"TitlePage!G12","v":"00:00:00"},null,null,null,"Return Time:",{"$f":"TitlePage!Q12","v":"00:00:00"}]
["Private Auto Miles - Use a separate line for each day."]
[null,null,null,null,null,null,"PRIVATE AUTO MILES",null,"IRS"]
["DATE",null,"ACCOUNT CODE (Select Code from List)",null,null,null,"Enter Mileage ",null,"Rate","AMOUNT ",null,null,null,null,null,null,null,"InState","OutofState","International","Student","Nonemployee"]
[]
[null,null,null,null,null,null,null,null,0.56000000000000005,{"$f":"ROUND((G12*I12),2)","v":0},null,null,null,null,null,null,null,{"$f":"IF($C12=\"535113 In-state Travel Misc. Expenses\",$J12,\" \")","v":" "},{"$f":"IF($C12=\"535213 Out-of-state Travel Misc. Expenses\",$J12,\" \")","v":" "},{"$f":"IF($C12=\"535313 International Travel Misc. Expenses\",$J12,\" \")","v":" "},{"$f":"IF($C12=\"535413 Student Travel Misc. Expenses\",$J12,\" \")","v":" "},{"$f":"IF($C12=\"535553 Other Non-Employee Travel Misc. Expenses\",$J12,\" \")","v":" "}]
[null,null,null,null,null,null,null,null,0.56000000000000005,{"$f":"ROUND((G13*I13),2)","v":0},null,null,null,null,null,null,null," "," "," "," "," "]
[null,null,null,null,null,null,null,null,0.56000000000000005,0,null,null,null,null,null,null,null," "," "," "," "," "]
[null,null,null,null,null,null,null,null,0.56000000000000005,0,null,null,null,null,null,null,null," "," "," "," "," "]
[null,null,null,null,null,null,null,null,0.56000000000000005,0,null,null,null,null,null,null,null," "," "," "," "," "]
[null,null,null,null,null,null,null,null,0.56000000000000005,0,null,null,null,null,null,null,null," "," "," "," "," "]
[null,null,null,null,null,null,null,null,0.56000000000000005,0,null,null,null,null,null,null,null," "," "," "," "," "]
[null,null,null,null,null,null,null,null,0.56000000000000005,0,null,null,null,null,null,null,null," "," "," "," "," "]
[null,null,null,null,null,null,null,null,0.56000000000000005,0,null,null,null,null,null,null,null," "," "," "," "," "]
[null,null,null,null,null,null,null,null,0.56000000000000005,0,null,null,null,null,null,null,null," "," "," "," "," "]
[null,null,null,null,null,null,null,null,0.56000000000000005,0,null,null,null,null,null,null,null," "," "," "," "," "]
[null,null,null,null,null,null,null,null,0.56000000000000005,0,null,null,null,null,null,null,null," "," "," "," "," "]
[null,null,null,null,null,null,null,null,0.56000000000000005,0,null,null,null,null,null,null,null," "," "," "," "," "]
[null,null,null,null,null,null,null,null,0.56000000000000005,0,null,null,null,null,null,null,null," "," "," "," "," "]
[null,null,null,null,null,null,null,null,0.56000000000000005,0,null,null,null,null,null,null,null," "," "," "," "," "]
[null,null,null,null,null,null,null,null,0.56000000000000005,0,null,null,null,null,null,null,null," "," "," "," "," "]
[]
[null,null,null,null,null,null,null,"Grand Total:",null,{"$f":"SUM(J12:J28)","v":0},{"$f":"SUM(J29)","v":0},null,null,null,null,null,null,{"$f":"SUM(R12:R27)","v":0},{"$f":"SUM(S12:S27)","v":0},{"$f":"SUM(T12:T27)","v":0},{"$f":"SUM(U12:U27)","v":0},{"$f":"SUM(V12:V27)","v":0}]
[]
[]
[]
[null,null,"535113 In-state Travel Misc. Expenses",null,null,null,null,"Totals for this page:",null,{"$f":"(M29)","v":0},{"$f":"(R29)","v":0}]
[null,null,"535213 Out-of-state Travel Misc. Expenses",null,null,null,null,null,null,{"$f":"(N29)","v":0},{"$f":"(S29)","v":0},null,null,null,null,null,null,null,null,null,null,null,"535113 In-state Travel Misc. Expenses"]
[null,null,"535413 Student Travel Misc. Expenses",null,null,null,null,null,null,{"$f":"(O29)","v":0},{"$f":"(U29)","v":0},null,null,null,null,null,null,null,null,null,null,null,"535413 Student Travel Misc. Expenses"]
[null,null,"535553 Other Non-Employee Travel Misc. Expenses",null,null,null,null,null,null,{"$f":"(P29)","v":0},{"$f":"(V29)","v":0},null,null,null,null,null,null,null,null,null,null,null,"535553 Other Non-Employee Travel Misc. Expenses"]
[null,null,"599999 Personal Day - No Reimbursement",null,null,null,null,null,null,{"$f":"(Q29)","v":0},null,null,null,null,null,null,null,null,null,null,null,null,"599999 Personal Day - No Reimbursement"]
[null,null,"599999 Personal Day - No Reimbursement"]
[null,null,null,null,null,null,null,"Grand Total for this page:",null,{"$f":"SUM(J33:K37)","v":0},{"$f":"SUM(K33:K38)","v":0}]

{"sheet":"Lodging","index":3,"n_rows":36,"n_cols":19,"rows_kept":36,"cut":false,"hidden":false,"merged":[[0,0,0,7],[31,5,31,7],[19,5,19,7],[20,5,20,7],[21,5,21,7],[22,5,22,7],[15,5,15,7],[16,5,16,7],[17,5,17,7],[14,5,14,7],[1,0,1,7],[12,5,12,7],[11,5,11,7],[4,5,4,6],[26,5,26,7],[18,5,18,7],[23,5,23,7],[24,5,24,7],[25,5,25,7],[33,5,33,7],[35,5,35,7],[27,5,27,7],[29,5,29,7],[30,5,30,7],[32,5,32,7]]}
["University of Louisville - Travel Expense Voucher"]
["Lodging Expenses"]
[]
[null,null,"Employee/Student Name:",{"$f":"TitlePage!F6","v":0}]
[null,null,"Department:",{"$f":"TitlePage!Q6","v":0}]
[]
[]
[]
[]
[]
[]
[null,null,"ACCOUNT CODE"]
["DATE",null,"(Select from List)","EXPLANATION (Optional)",null," Room and Room Taxes Only",null,null,null,null,null,null,"InState","OutofState","International","Student","Nonemployee"]
[]
[null,null,null,null,null,null,null,null,null,null,null,null,{"$f":"IF($C15=\"535111 In-state Travel Hotel\",$F15,\" \")","v":" "},{"$f":"IF($C15=\"535211 Out-of-state Travel Hotel\",$F15,\" \")","v":" "},{"$f":"IF($C15=\"535311 International Travel Hotel\",$F15,\" \")","v":" "},{"$f":"IF($C15=\"535411 Student Travel Hotel\",$F15,\" \")","v":" "},{"$f":"IF($C15=\"535551 Other Non-Employee Travel Hotel\",$F15,\" \")","v":" "}]
[null,null,null,null,null,null,null,null,null,null,null,null,{"$f":"IF($C16=\"535111 In-state Travel Hotel\",$F16,\" \")","v":" "},{"$f":"IF($C16=\"535211 Out-of-state Travel Hotel\",$F16,\" \")","v":" "},{"$f":"IF($C16=\"535311 International Travel Hotel\",$F16,\" \")","v":" "},{"$f":"IF($C16=\"535411 Student Travel Hotel\",$F16,\" \")","v":" "}," "]
[null,null,null,null,null,null,null,null,null,null,null,null," "," "," "," "," ",null,"IF(IN_OUT=\"IN\",CAR_IN,IF(IN_OUT=\"OUT\",CAR_OUT,CAR_ALL))"]
[null,null,null,null,null,null,null,null,null,null,null,null," "," "," "," "," "]
[null,null,null,null,null,null,null,null,null,null,null,null," "," "," "," "," "]
[null,null,null,null,null,null,null,null,null,null,null,null," "," "," "," "," "]
[null,null,null,null,null,null,null,null,null,null,null,null," "," "," "," "," "]
[null,null,null,null,null,null,null,null,null,null,null,null," "," "," "," "," "]
[null,null,null,null,null,null,null,null,null,null,null,null," "," "," "," "," "]
[null,null,null,null,null,null,null,null,null,null,null,null," "," "," "," "," "]
[null,null,null,null,null,null,null,null,null,null,null,null," "," "," "," "," "]
[null,null,null,null,null,null,null,null,null,null,null,null," "," "," "," "," "]
[null,null,null,null,null,null,null,null,null,null,null,null," "," "," "," "," "]
[null,null,null,null,null,null,null,null,null,null,null,null," "," "," "," "," "]
[]
[null,null,"535111 In-state Travel Hotel","Totals for this page:",null,{"$f":"SUM(M15:M28)","v":0},null,null,null,null,null,null,null,null,null,null,null,"535111 In-state Travel Hotel"]
[null,null,"535211 Out-of-state Travel Hotel",null,null,{"$f":"SUM(N15:N28)","v":0},null,null,null,null,null,null,null,null,null,null,null,"535411 Student Travel Hotel"]
[null,null,"535411 Student Travel Hotel",null,null,{"$f":"SUM(P15:P28)","v":0},null,null,null,null,null,null,null,null,null,null,null,"535551 Other Non-Employee Travel Hotel"]
[null,null,"535551 Other Non-Employee Travel Hotel",null,null,{"$f":"SUM(Q15:Q28)","v":0},null,null,null,null,null,null,null,null,null,null,null,"599999 Personal Day - No Reimbursement"]
[null,null,"599999 Personal Day - No Reimbursement"]
[null,null,"599999 Personal Day - No Reimbursement"]
[null,null,null,"Grand Total for this page:",null,{"$f":"SUM(F30:H34)","v":0}]

{"sheet":"Misc.Expenses","index":4,"n_rows":53,"n_cols":21,"rows_kept":53,"cut":false,"hidden":false,"merged":[[33,7,33,9],[26,7,26,9],[28,7,28,9],[29,7,29,9],[30,7,30,9],[31,7,31,9],[27,7,27,9],[32,7,32,9],[38,4,38,5],[37,2,37,3],[38,2,38,3],[36,4,36,5],[35,4,35,5],[35,2,35,3],[36,2,36,3],[37,4,37,5],[40,7,40,9],[41,7,41,9],[34,7,34,9],[35,7,35,9],[36,7,36,9],[37,7,37,9],[38,7,38,9],[42,7,42,9],[43,7,43,9],[44,7,44,9],[47,7,47,9],[45,7,45,9],[16,7,16,9],[17,7,17,9],[18,7,18,9],[19,7,19,9],[31,4,31,5],[23,7,23,9],[25,7,25,9],[28,4,28,5],[29,4,29,5],[30,4,30,5],[27,4,27,5],[32,4,32,5],[33,4,33,5],[34,4,34,5],[34,2,34,3],[26,4,26,5],[30,2,30,3],[28,2,28,3],[27,2,27,3],[29,2,29,3],[31,2,31,3],[32,2,32,3],[33,2,33,3],[22,2,22,3],[23,2,23,3],[25,2,25,3],[26,2,26,3],[0,0,0,9],[1,0,1,9],[4,7,4,8],[23,4,23,5],[25,4,25,5],[13,2,13,3],[13,4,13,5],[8,7,8,9],[10,2,10,3],[10,4,10,5],[13,7,13,9],[14,2,14,3],[14,4,14,5],[14,7,14,9],[11,7,11,9],[12,2,12,3],[10,7,10,9],[12,4,12,5],[12,7,12,9],[11,2,11,3],[11,4,11,5],[3,3,3,5],[4,3,4,5],[7,2,7,3],[8,2,8,3],[8,4,8,5]]}
["University of Louisville - Travel Expense Voucher"]
["Registration, Submission Fees & Miscellaneous Expenses"]
[]
[null,null,"Employee/Student Name:",{"$f":"TitlePage!F6","v":0}]
[null,null,"Department:",{"$f":"TitlePage!Q6","v":0}]
[]
["Registration and Submission Fees"]
[null,null,"ACCOUNT CODE "]
["DATE",null,"(Select Code from List)",null,"EXPLANATION (Optional)",null,null,"AMOUNT",null,null,null,null,null,null,"Registration","Student Reg","Submission"]
[]
[null,null,null,null,null,null,null,null,null,null,null,null,null,null,{"$f":"IF($C11=\"552100 Registration\",$H11,\" \")","v":" "},{"$f":"IF($C11=\"552150 Student Registration\",$H11,\" \")","v":" "},{"$f":"IF($C11=\"552500 Submission Fees\",$H11,\" \")","v":" "}]
[null,null,null,null,null,null,null,null,null,null,null,null,null,null,{"$f":"IF($C12=\"552100 Registration\",$H12,\" \")","v":" "},{"$f":"IF($C12=\"552150 Student Registration\",$H12,\" \")","v":" "},{"$f":"IF($C12=\"552500 Submission Fees\",$H12,\" \")","v":" "}]
[null,null,null,null,null,null,null,null,null,null,null,null,null,null,{"$f":"IF($C13=\"552100 Registration\",$H13,\" \")","v":" "},{"$f":"IF($C13=\"552150 Student Registration\",$H13,\" \")","v":" "},{"$f":"IF($C13=\"552500 Submission Fees\",$H13,\" \")","v":" "}]
[null,null,null,null,null,null,null,null,null,null,null,null,null,null,{"$f":"IF($C14=\"552100 Registration\",$H14,\" \")","v":" "},{"$f":"IF($C14=\"552150 Student Registration\",$H14,\" \")","v":" "},{"$f":"IF($C14=\"552500 Submission Fees\",$H14,\" \")","v":" "}]
[null,null,null,null,null,null,null,null,null,null,null,null,null,null,{"$f":"IF($C15=\"552100 Registration\",$H15,\" \")","v":" "},{"$f":"IF($C15=\"552150 Student Registration\",$H15,\" \")","v":" "},{"$f":"IF($C15=\"552500 Submission Fees\",$H15,\" \")","v":" "}]
[]
[null,null,"552100 Registration",null,null,null,null,{"$f":"SUM(O11:O15)","v":0}]
[null,null,"552150 Student Registration",null,null,null,null,{"$f":"SUM(P11:P15)","v":0}]
[null,null,"552500 Submission Fees",null,null,null,null,{"$f":"SUM(Q11:Q15)","v":0}]
[null,null,null,null,null,"Grand Total",null,{"$f":"SUM(H17:H19)","v":0}]
["Miscellaneous Expenses: "]
["Use a separate line for each expense. "]
[null,null,"ACCOUNT CODE "]
["DATE",null,"(Select Code from List)",null,"EXPLANATION (Required)",null,null,"AMOUNT",null,null,null,null,null,null,"InState","OutofState","International","Student","Nonemployee","Business Meals"]
[]
[null,null,null,null,null,null,null,null,null,null,null,null,null,null,{"$f":"IF($C26=\"535113 In-state Travel Misc. Expenses\",$H26,\" \")","v":" "},{"$f":"IF($C26=\"535213 Out-of-state Travel Misc. Expenses\",$H26,\" \")","v":" "},{"$f":"IF($C26=\"535313 International Travel Misc. Expenses\",$H26,\" \")","v":" "},{"$f":"IF($C26=\"535413 Student Travel Misc. Expenses\",$H26,\" \")","v":" "},{"$f":"IF($C26=\"535553 Other Non-Employee Travel Misc. Expenses\",$H26,\" \")","v":" "},{"$f":"IF($C26=\"559000 Business Meals\",$H26,\" \")","v":" "}]
[null,null,null,null,null,null,null,null,null,null,null,null,null,null,{"$f":"IF($C27=\"535113 In-state Travel Misc. Expenses\",$H27,\" \")","v":" "},{"$f":"IF($C27=\"535213 Out-of-state Travel Misc. Expenses\",$H27,\" \")","v":" "},{"$f":"IF($C27=\"535313 International Travel Misc. Expenses\",$H27,\" \")","v":" "},{"$f":"IF($C27=\"535413 Student Travel Misc. Expenses\",$H27,\" \")","v":" "},{"$f":"IF($C27=\"535553 Other Non-Employee Travel Misc. Expenses\",$H27,\" \")","v":" "},{"$f":"IF($C27=\"559000 Business Meals\",$H27,\" \")","v":" "}]
[null,null,null,null,null,null,null,null,null,null,null,null,null,null," "," "," "," "," "," "]
[null,null,null,null,null,null,null,null,null,null,null,null,null,null," "," "," "," "," "," "]
[null,null,null,null,null,null,null,null,null,null,null,null,null,null," "," "," "," "," "," "]
[null,null,null,null,null,null,null,null,null,null,null,null,null,null," "," "," "," "," "," "]
[null,null,null,null,null,null,null,null,null,null,null,null,null,null," "," "," "," "," "," "]
[null,null,null,null,null,null,null,null,null,null,null,null,null,null," "," "," "," "," "," "]
[null,null,null,null,null,null,null,null,null,null,null,null,null,null," "," "," "," "," "," "]
[null,null,null,null,null,null,null,null,null,null,null,null,null,null," "," "," "," "," "," "]
[null,null,null,null,null,null,null,null,null,null,null,null,null,null," "," "," "," "," "," "]
[null,null,null,null,null,null,null,null,null,null,null,null,null,null," "," "," "," "," "," "]
[null,null,null,null,null,null,null,null,null,null,null,null,null,null," "," "," "," "," "," "]
[null,null,null,null,null,null,null,null,null,null,null,null,null,null," "," "," "," "," "," "]
[]
[null,null,"535113 In-state Travel Misc. Expenses",null,null,"Totals for this page:",null,{"$f":"SUM(O26:O39)","v":0}]
[null,null,"535213 Out-of-state Travel Misc. Expenses",null,null,null,null,{"$f":"SUM(P26:P39)","v":0}]
[null,null,"535413 Student Travel Misc. Expenses",null,null,null,null,{"$f":"SUM(R26:R39)","v":0}]
[null,null,"535553 Other Non-Employee Travel Misc. Expenses",null,null,null,null,{"$f":"SUM(S26:S39)","v":0}]
[null,null,"559000 Business Meals",null,null,null,null,{"$f":"SUM(T26:T39)","v":0}]
[null,null,"599999 Personal Day - No Reimbursement"]
[null,null,"Personal Day, No Reimbursement"]
[null,null,null,null,null,"Grand Total ",null,{"$f":"SUM(H41:J47)","v":0}]
[null,null,null,null,null,null,null,null,null,null,null,null,null,null,null,null,null,null,null,null,"535113 In-state Travel Misc. Expenses"]
[null,null,null,null,null,null,null,null,null,null,null,null,null,null,null,null,null,null,null,null,"535413 Student Travel Misc. Expenses"]
[null,null,null,null,null,null,null,null,null,null,null,null,null,null,null,null,null,null,null,null,"535553 Other Non-Employee Travel Misc. Expenses"]
[null,null,null,null,null,null,null,null,null,null,null,null,null,null,null,null,null,null,null,null,"559000 Business Meals"]
[null,null,null,null,null,null,null,null,null,null,null,null,null,null,null,null,null,null,null,null,"599999 Personal Day - No Reimbursement"]

{"sheet":"Air&RentalCar","index":5,"n_rows":45,"n_cols":19,"rows_kept":45,"cut":false,"hidden":false,"merged":[[36,2,36,3],[31,2,31,3],[32,2,32,3],[33,2,33,3],[34,2,34,3],[35,2,35,3],[28,2,28,3],[29,2,29,3],[0,0,0,6],[11,2,11,3],[1,0,1,6],[2,0,2,6],[10,5,10,6],[8,2,8,3],[9,2,9,3],[16,2,16,3],[14,2,14,3],[12,2,12,3],[15,2,15,3],[13,2,13,3]]}
["University of Louisville - Travel Expense Voucher"]
["Air Fare and Rental Car Expenses"]
["(Use Only if Expenses Paid by Traveler)"]
[]
[null,null,"Employee/Student Name:",{"$f":"TitlePage!F6","v":0}]
[null,null,"Department:",{"$f":"TitlePage!Q6","v":0}]
[]
["Air Fare - List Only if Paid by Traveler"]
[null,null,"ACCOUNT CODE"]
["DATE",null," (Select Code from List)",null,"EXPLANATION (Optional)",null,"AMOUNT ",null,null,null,"InState","OutofState","International","Student","Nonemployee"]
[]
[null,null,null,null,null,null,null,null,null,null,{"$f":"IF($C12=\"535110 In-state Travel Air\",$G12,\" \")","v":" "},{"$f":"IF($C12=\"535210 Out-of-state Travel Air\",$G12,\" \")","v":" "},{"$f":"IF($C12=\"535310 International Travel Air\",$G12,\" \")","v":" "},{"$f":"IF($C12=\"535410 Student Travel Air\",$G12,\" \")","v":" "},{"$f":"IF($C12=\"535550 Other Non-Employee Travel Air\",$G12,\" \")","v":" "}]
[null,null,null,null,null,null,null,null,null,null," "," "," "," "," "]
[null,null,null,null,null,null,null,null,null,null," "," "," "," "," "]
[null,null,null,null,null,null,null,null,null,null," "," "," "," "," "]
[null,null,null,null,null,null,null,null,null,null," "," "," "," "," "]
[null,null,null,null,null,null,null,null,null,null," "," "," "," "," "]
[]
[null,null,"535110 In-state Travel Air",null,"Totals for Air Fare:",null,{"$f":"SUM(K12:K17)","v":0}]
[null,null,"535210 Out-of-state Travel Air",null,null,null,{"$f":"SUM(L12:L17)","v":0},null,null,null,null,null,null,null,null,null,null,null,"535110 In-state Travel Air"]
[null,null,"535410 Student Travel Air",null,null,null,{"$f":"SUM(N12:N17)","v":0},null,null,null,null,null,null,null,null,null,null,null,"535410 Student Travel Air"]
[null,null,"535550 Other Non-Employee Travel Air",null,null,null,{"$f":"SUM(O12:O17)","v":0},null,null,null,null,null,null,null,null,null,null,null,"535550 Other Non-Employee Travel Air"]
[null,null,"599999 Personal Day - No Reimbursement",null,null,null,null,null,null,null,null,null,null,null,null,null,null,null,"599999 Personal Day - No Reimbursement"]
[]
[null,null,null,null,"Grand Total:",null,{"$f":"SUM(G19:G23)","v":0}]
[]
[]
["Rental Car - List Only if Paid by Traveler"]
[null,null,"ACCOUNT CODE"]
["DATE",null," (Select Code from List)",null,"EXPLANATION (Optional)",null,"AMOUNT",null,null,null,"InState","OutofState","International","Student","Nonemployee"]
[]
[null,null,null,null,null,null,null,null,null,null,{"$f":"IF($C32=\"535112 In-state Travel Rental Car\",$G32,\" \")","v":" "},{"$f":"IF($C32=\"535212 Out-of-state Travel Rental Car\",$G32,\" \")","v":" "},{"$f":"IF($C32=\"535312 International Travel Rental Car\",$G32,\" \")","v":" "},{"$f":"IF($C32=\"535412 Student Travel Rental Car\",$G32,\" \")","v":" "},{"$f":"IF($C32=\"535552 Other Non-Employee Travel Rental Car\",$G32,\" \")","v":" "}]
[null,null,null,null,null,null,null,null,null,null," "," "," "," "," "]
[null,null,null,null,null,null,null,null,null,null," "," "," "," "," "]
[null,null,null,null,null,null,null,null,null,null," "," "," "," "," "]
[null,null,null,null,null,null,null,null,null,null," "," "," "," "," "]
[null,null,null,null,null,null,null,null,null,null," "," "," "," "," "]
[]
[null,null,"535112 In-state Travel Rental Car",null,"Totals for Rental Car:",null,{"$f":"SUM(K32:K37)","v":0}]
[null,null,"535212 Out-of-state Travel Rental Car",null,null,null,{"$f":"SUM(L32:L37)","v":0},null,null,null,null,null,null,null,null,null,null,null,"535112 In-state Travel Rental Car"]
[null,null,"535412 Student Travel Rental Car",null,null,null,{"$f":"SUM(N32:N37)","v":0},null,null,null,null,null,null,null,null,null,null,null,"535412 Student Travel Rental Car"]
[null,null,"535552 Other Non-Employee Travel Rental Car",null,null,null,{"$f":"SUM(O32:O37)","v":0},null,null,null,null,null,null,null,null,null,null,null,"535552 Other Non-Employee Travel Rental Car"]
[null,null,"599999 Personal Day - No Reimbursement",null,null,null,null,null,null,null,null,null,null,null,null,null,null,null,"599999 Personal Day - No Reimbursement"]
[]
[null,null,null,null,"Grand Total:",null,{"$f":"SUM(G39:G43)","v":0}]

{"sheet":"perdiem","index":6,"n_rows":517,"n_cols":19,"rows_kept":517,"cut":false,"hidden":true,"merged":[[3,0,4,0]]}
[null,null,null,null,null,null,null,"FY2013 Domestic Per Diem Rates ",null,null,null,null,"Location","Maximum Per Diem"]
["Schedule for daily Meal Per Diem Rates",null,null,null,null,"STATES",null,"State","Primary Destination","M&IE",null,null,"Marshall Islands"]
["Using 20/30/50 Percent ",null,null,null,null,"AL",null,null,"Standard CONUS Rate applies to all destinations or counties not specifically listed",null,null,null,"KWAJALEIN ATOLL",null,null,null,"Aberdeen / Bel Air / Belcamp",56,56]
["Maximum Per Day",null,null,null,null,"AK",null,"Alabama","Birmingham",null,null,null,"LIKIEP ATOLL",null,null,null,"Abingdon",46,46]
[null,"Breakfast","Lunch","Dinner",null,"AZ",null,"Alabama","Gulf Shores",null,null,null,"MAJURO",null,null,null,"ADAK",64,64]
[15,{"$f":"A6*0.2","v":3},{"$f":"A6*0.3","v":4.5},{"$f":"A6*0.5","v":7.5},null,"AR",null,"Alabama","Huntsville",null,null,null,null,null,null,null,"AGUADILLA",90,90]
[26,{"$f":"A7*0.2","v":5.2},{"$f":"A7*0.3","v":7.8},{"$f":"A7*0.5","v":13},null,"CA",null,"Alabama","Mobile",null,null,null,null,null,null,null,"Aiken",46,46]
[28,5.6000000000000005,8.4,14,null,"CO",null,"Alabama","Montgomery",null,null,null,"Guam",null,null,null,"Akron",51,51]
[30,6,9,15,null,"CT",null,null,"Other",null,null,null,null,null,null,null,"Albany",61,61]
[32,6.4,9.6,16,null,"DE",null,"Arizona","Grand Canyon / Flagstaff",null,null,null,"American Samoa",null,null,null,"Albuquerque",56,56]
[36,7.2,10.799999999999999,18,null,"DC",null,"Arizona","Kayenta",null,null,null,null,null,null,null,"Allentown / Easton / Bethlehem",51,51]
[39,7.8000000000000007,11.7,19.5,null,"FL",null,"Arizona","Phoenix / Scottsdale",null,null,null,"Midway Islands",null,null,null,"Altamonte Springs",61,61]
[41,8.2000000000000011,12.299999999999999,20.5,null,"GA",null,"Arizona","Sedona",null,null,null,null,null,null,null,"American Samoa",60,60]
[42,8.4,12.6,21,null,"HI",null,"Arizona","Sierra Vista",null,null,null,"Northern Mariana Islands",null,null,null,"Anacortes / Coupeville / Oak Harbor",61,61]
[44,8.8000000000000007,13.2,22,null,"ID",null,"Arizona","Tucson",null,null,null,"ROTA",null,null,null,"ANCHORAGE [INCL NAV RES]",71,71]
[46,9.2000000000000011,13.799999999999999,23,null,"IL",null,"Arizona","Yuma",null,null,null,"SAIPAN",null,null,null,"Andover",56,56]
[49,9.8000000000000007,14.7,24.5,null,"IN",null,null,"Other",null,null,null,"TINIAN",null,null,null,"Ann Arbor",56,56]
[50,10,15,25,null,"IA",null,"Arkansas","Hot Springs",null,null,null,null,null,null,null,"Annapolis",61,61]
[51,10.200000000000001,15.299999999999999,25.5,null,"KS",null,"Arkansas","Little Rock",null,null,null,null,null,null,null,"Antioch / Brentwood / Concord",66,66]
[54,10.8,16.2,27,null,"KY",null,null,"Other",null,null,null,"Virgin Islands (US)",null,null,null,"Appleton",46,46]
[55,11,16.5,27.5,null,"LA",null,"California","Antioch / Brentwood / Concord",null,null,null,"ST. CROIX",null,null,null,"Arlington / Fort Worth / Grapevine",56,56]
[56,11.200000000000001,16.8,28,null,"ME",null,"California","Bakersfield / Ridgecrest",null,null,null,"ST. JOHN",null,null,null,"Asheville ",51,51]
[57,11.4,17.099999999999998,28.5,null,"MD",null,"California","Barstow / Ontario / Victorville",null,null,null,"ST. THOMAS",null,null,null,"Ashland / Crater Lake",56,56]
[58,11.600000000000001,17.399999999999999,29,null,"MA",null,"California","Benicia / Dixon / Fairfield",null,null,null,null,null,null,null,"Aspen",71,71]
[59,11.8,17.7,29.5,null,"MI",null,"California","Brawley / Calexico / El Centro",null,null,null,"Canada",null,null,null,"Athens",46,46]
[60,12,18,30,null,"MN",null,"California","Death Valley",null,null,null,"BANFF",null,null,null,"Atlanta",56,56]
[61,12.200000000000001,18.3,30.5,null,"MS",null,"California","Eureka / Arcata / McKinleyville",null,null,null,"CALGARY",null,null,null,"Atlantic Beach / Morehead City",56,56]
[62,12.4,18.599999999999998,31,null,"MO",null,"California","Fresno",null,null,null,"DARTMOUTH",null,null,null,"Atlantic City / Ocean City / Cape May",66,66]
[63,12.600000000000001,18.899999999999999,31.5,null,"MT",null,"California","Los Angeles",null,null,null,"EAST YORK",null,null,null,"Augusta",51,51]
[64,12.8,19.2,32,null,"NE",null,"California","Mammoth Lakes",null,null,null,"EDMONTON",null,null,null,"Austin",71,71]
[66,13.200000000000001,19.8,33,null,"NV",null,"California","Mill Valley / San Rafael / Novato",null,null,null,"ETOBICOKE",null,null,null,"Bakersfield / Ridgecrest",51,51]
[67,13.4,20.099999999999998,33.5,null,"NH",null,"California","Modesto",null,null,null,"FORT MCMURRAY, ALBERTA",null,null,null,"Baltimore City",71,71]
[68,13.600000000000001,20.399999999999999,34,null,"NJ",null,"California","Monterey",null,null,null,"FREDERICTON",null,null,null,"Baltimore County",61,61]
[69,13.8,20.7,34.5,null,"NM",null,"California","Napa",null,null,null,"GANDER, NEWFOUNDLAND",null,null,null,"BANFF",86,86]
[70,14,21,35,null,"NY",null,"California","Oakhurst",null,null,null,"HALIFAX",null,null,null,"Bar Harbor",61,61]
[71,14.200000000000001,21.3,35.5,null,"NC",null,"California","Oakland",null,null,null,"LONDON, ONTARIO",null,null,null,"BARROW",76,76]
[72,14.4,21.599999999999998,36,null,"ND",null,"California","Palm Springs",null,null,null,"MISSISSAUGA",null,null,null,"Barstow / Ontario / Victorville",56,56]
[73,14.600000000000001,21.9,36.5,null,"OH",null,"California","Point Arena / Gualala",null,null,null,"MONCTON",null,null,null,"Baton Rouge",56,56]
[74,14.8,22.2,37,null,"OK",null,"California","Redding",null,null,null,"MONTREAL",null,null,null,"BAYAMON",102,102]
[75,15,22.5,37.5,null,"OR",null,"California","Sacramento",null,null,null,"NORTH YORK",null,null,null,"Beaumont",51,51]
[76,15.200000000000001,22.8,38,null,"PA",null,"California","San Diego",null,null,null,"NORTHWEST TERRITORIES",null,null,null,"Beaverton",51,51]
[78,15.600000000000001,23.4,39,null,"RI",null,"California","San Francisco",null,null,null,"OTTAWA",null,null,null,"Belle Mead",56,56]
[79,15.8,23.7,39.5,null,"SC",null,"California","San Luis Obispo",null,null,null,"PRINCE EDWARD ISLAND",null,null,null,"Bend",61,61]
[80,16,24,40,null,"SD",null,"California","San Mateo / Foster City / Belmont",null,null,null,"QUEBEC",null,null,null,"Benicia / Dixon / Fairfield",56,56]
[81,16.2,24.3,40.5,null,"TN",null,"California","Santa Barbara",null,null,null,"REGINA, SASKATCHEWAN",null,null,null,"BETHEL",70,70]
[82,16.400000000000002,24.599999999999998,41,null,"TX",null,"California","Santa Cruz",null,null,null,"RICHMOND",null,null,null,"BETTLES",50,50]
[83,16.600000000000001,24.9,41.5,null,"UT",null,"California","Santa Monica ",null,null,null,"SASKATOON, SASKATCHEWAN",null,null,null,"Big Sky / West Yellowstone",61,61]
[84,16.8,25.2,42,null,"VT",null,"California","Santa Rosa",null,null,null,"SIDNEY",null,null,null,"Binghamton / Owego",46,46]
[85,17,25.5,42.5,null,"VA",null,"California","South Lake Tahoe",null,null,null,"ST. JOHN'S, NEWFOUNDLAND",null,null,null,"Birmingham",56,56]
[86,17.2,25.8,43,null,"WA",null,"California","Stockton ",null,null,null,"TORONTO",null,null,null,"Blacksburg",46,46]
[87,17.400000000000002,26.099999999999998,43.5,null,"WV",null,"California","Sunnyvale / Palo Alto / San Jose",null,null,null,"VANCOUVER",null,null,null,"Bloomington ",56,56]
[89,17.8,26.7,44.5,null,"WI",null,"California","Tahoe City",null,null,null,"VICTORIA",null,null,null,"Boca Raton / Delray Beach / Jupiter",71,71]
[90,18,27,45,null,"WY",null,"California","Truckee",null,null,null,"WINNIPEG",null,null,null,"Boise",46,46]
[92,18.400000000000002,27.599999999999998,46,null,null,null,"California","Visalia / Lemoore",null,null,null,"YORK & SCARBOROUGH",null,null,null,"Bolingbrook / Romeoville / Lemont",51,51]
[99,19.8,29.7,49.5,null,null,null,"California","West Sacramento",null,null,null,null,null,null,null,"Bonner's Ferry/Sandpoint",61,61]
[100,20,30,50,null,null,null,"California","Yosemite National Park",null,null,null,"Puerto Rico",null,null,null,"Boone County",51,51]
[106,21.200000000000003,31.799999999999997,53,null,null,null,null,"Other",null,null,null,"AGUADILLA",null,null,null,"Boston / Cambridge",71,71]
[null,null,null,null,null,null,null,"Colorado","Aspen",null,null,null,"BAYAMON",null,null,null,"Boulder / Broomfield",61,61]
[null,null,null,null,null,null,null,"Colorado","Boulder / Broomfield",null,null,null,"CAROLINA",null,null,null,"Bradenton",56,56]
[null,null,null,null,null,null,null,"Colorado","Colorado Springs",null,null,null,"CEIBA",null,null,null,"Brawley / Calexico / El Centro",51,51]
[null,null,null,null,null,null,null,"Colorado","Cortez",null,null,null,"FAJARDO [INCL ROOSEVELT RDS NAVSTAT]",null,null,null,"Bremerton",66,66]
[null,null,null,null,null,null,null,"Colorado","Crested Butte / Gunnison",null,null,null,"FT. BUCHANAN [INCL GSA SVC CTR, GUAYNABO]",null,null,null,"Brentwood / Franklin",56,56]
[null,null,null,null,null,null,null,"Colorado","Denver / Aurora",null,null,null,"HUMACAO",null,null,null,"Bridgeport / Danbury",71,71]
[null,null,null,null,null,null,null,"Colorado","Douglas County",null,null,null,"LUIS MUNOZ MARIN IAP AGS",null,null,null,"Brookfield / Racine",56,56]
[null,null,null,null,null,null,null,"Colorado","Durango",null,null,null,"LUQUILLO",null,null,null,"Bucks County",71,71]
[null,null,null,null,null,null,null,"Colorado","Fort Collins / Loveland",null,null,null,"MAYAGUEZ",null,null,null,"Buffalo",56,56]
[null,null,null,null,null,null,null,"Colorado","Glenwood Springs / Grand Junction",null,null,null,"PONCE",null,null,null,"Burlington / St. Albans",66,66]
[null,null,null,null,null,null,null,"Colorado","Montrose",null,null,null,"SABANA SECA [INCL ALL MILITARY]",null,null,null,"Burlington / Woburn",71,71]
[null,null,null,null,null,null,null,"Colorado","Silverthorne / Breckenridge",null,null,null,"SAN JUAN & NAV RES STA",null,null,null,"Butte",51,51]
[null,null,null,null,null,null,null,"Colorado","Steamboat Springs",null,null,null,null,null,null,null,"CALGARY",90,90]
[null,null,null,null,null,null,null,"Colorado","Telluride",null,null,null,null,null,null,null,"Cambridge / St. Michaels",61,61]
[null,null,null,null,null,null,null,"Colorado","Vail",null,null,null,"Other in Alaska",null,null,null,"Canada - Others",95,95]
[null,null,null,null,null,null,null,null,"Other",null,null,null,"ADAK",null,null,null,"Canton",51,51]
[null,null,null,null,null,null,null,"Connecticut","Bridgeport / Danbury",null,null,null,"ANCHORAGE [INCL NAV RES]",null,null,null,"CAROLINA",102,102]
[null,null,null,null,null,null,null,"Connecticut","Cromwell / Old Saybrook",null,null,null,"BARROW",null,null,null,"Carlsbad",51,51]
[null,null,null,null,null,null,null,"Connecticut","Hartford",null,null,null,"BETHEL",null,null,null,"Cedar Rapids",51,51]
[null,null,null,null,null,null,null,"Connecticut","Lakeville / Salisbury",null,null,null,"BETTLES",null,null,null,"CEIBA",46,46]
[null,null,null,null,null,null,null,"Connecticut","New Haven",null,null,null,"COLDFOOT",null,null,null,"Centreville",51,51]
[null,null,null,null,null,null,null,"Connecticut","New London / Groton",null,null,null,"COPPER CENTER",null,null,null,"Chapel Hill",56,56]
[null,null,null,null,null,null,null,"Connecticut","Putnam / Danielson / Storrs",null,null,null,"CORDOVA",null,null,null,"CharlestonSC",56,56]
[null,null,null,null,null,null,null,null,"Other",null,null,null,"CRAIG",null,null,null,"CharlestonWV",51,51]
[null,null,null,null,null,null,null,"Delaware","Dover",null,null,null,"DELTA JUNCTION",null,null,null,"Charlotte",51,51]
[null,null,null,null,null,null,null,"Delaware","Lewes",null,null,null,"DENALI NATIONAL PARK",null,null,null,"Charlottesville",56,56]
[null,null,null,null,null,null,null,"Delaware","WilmingtonDE",null,null,null,"DILLINGHAM",null,null,null,"Chattanooga ",56,56]
[null,null,null,null,null,null,null,null,"Other",null,null,null,"DUTCH HARBOR-UNALASKA",null,null,null,"Cherry Hill / Moorestown",61,61]
[null,null,null,null,null,null,null,null,"District of Columbia",null,null,null,"Elfin Cove",null,null,null,"Chesapeake / Suffolk",56,56]
[null,null,null,null,null,null,null,"Florida","Altamonte Springs",null,null,null,"FAIRBANKS",null,null,null,"Chester / Radnor / Essington",51,51]
[null,null,null,null,null,null,null,"Florida","Boca Raton / Delray Beach / Jupiter",null,null,null,"FOOTLOOSE",null,null,null,"Chesterfield / Henrico Counties",51,51]
[null,null,null,null,null,null,null,"Florida","Bradenton",null,null,null,"GLENNALLEN",null,null,null,"Chicago",71,71]
[null,null,null,null,null,null,null,"Florida","Cocoa Beach",null,null,null,"HAINES",null,null,null,"Cincinnati",56,56]
[null,null,null,null,null,null,null,"Florida","Daytona Beach",null,null,null,"HEALY",null,null,null,"Clackamas",61,61]
[null,null,null,null,null,null,null,"Florida","Fort Lauderdale",null,null,null,"HOMER",null,null,null,"Cleveland",56,56]
[null,null,null,null,null,null,null,"Florida","Fort Myers",null,null,null,"JUNEAU",null,null,null,"Cocoa Beach",51,51]
[null,null,null,null,null,null,null,"Florida","Fort Pierce",null,null,null,"KAKTOVIK",null,null,null,"Cody",51,51]
[null,null,null,null,null,null,null,"Florida","Fort Walton Beach / De Funiak Springs",null,null,null,"KAVIK CAMP",null,null,null,"Coeur d'Alene",61,61]
[null,null,null,null,null,null,null,"Florida","Gainesville",null,null,null,"KENAI-SOLDOTNA",null,null,null,"COLDFOOT",56,56]
[null,null,null,null,null,null,null,"Florida","Gulf Breeze",null,null,null,"KENNICOTT",null,null,null,"College Station",56,56]
[null,null,null,null,null,null,null,"Florida","Jacksonville / Jacksonville Beach / Mayport Naval Station",null,null,null,"KETCHIKAN",null,null,null,"Colorado Springs",66,66]
[null,null,null,null,null,null,null,"Florida","Key West",null,null,null,"KING SALMON",null,null,null,"ColumbiaMD",61,61]
[null,null,null,null,null,null,null,"Florida","Kissimmee",null,null,null,"KLAWOCK",null,null,null,"ColumbiaMO",51,51]
[null,null,null,null,null,null,null,"Florida","Lakeland",null,null,null,"KODIAK",null,null,null,"ColumbiaSC",51,51]
[null,null,null,null,null,null,null,"Florida","Leesburg",null,null,null,"KOTZEBUE",null,null,null,"ColumbusGA",46,46]
[null,null,null,null,null,null,null,"Florida","Miami",null,null,null,"MCCARTHY",null,null,null,"ColumbusOH",56,56]
[null,null,null,null,null,null,null,"Florida","Naples",null,null,null,"MCGRATH",null,null,null,"Concord",51,51]
[null,null,null,null,null,null,null,"Florida","Ocala",null,null,null,"MURPHY DOME",null,null,null,"Conway",61,61]
[null,null,null,null,null,null,null,"Florida","Orlando",null,null,null,"NOME",null,null,null,"COPPER CENTER",65,65]
[null,null,null,null,null,null,null,"Florida","Panama City",null,null,null,"NUIQSUT",null,null,null,"CORDOVA",62,62]
[null,null,null,null,null,null,null,"Florida","Pensacola / Pensacola Beach",null,null,null,"PETERSBURG",null,null,null,"Corpus Christi",51,51]
[null,null,null,null,null,null,null,"Florida","Punta Gorda",null,null,null,"PORT ALSWORTH",null,null,null,"Cortez",51,51]
[null,null,null,null,null,null,null,"Florida","Sarasota",null,null,null,"SELDOVIA",null,null,null,"Covington / Slidell",56,56]
[null,null,null,null,null,null,null,"Florida","Sebring",null,null,null,"SEWARD",null,null,null,"CRAIG",63,63]
[null,null,null,null,null,null,null,"Florida","St. Augustine",null,null,null,"SITKA-MT. EDGECUMBE",null,null,null,"Crested Butte / Gunnison",51,51]
[null,null,null,null,null,null,null,"Florida","Stuart",null,null,null,"SKAGWAY",null,null,null,"Cromwell / Old Saybrook",61,61]
[null,null,null,null,null,null,null,"Florida","Tallahassee",null,null,null,"SLANA",null,null,null,"Dallas",71,71]
[null,null,null,null,null,null,null,"Florida","Tampa / St. Petersburg",null,null,null,"SPRUCE CAPE",null,null,null,"DARTMOUTH",96,96]
[null,null,null,null,null,null,null,"Florida","Vero Beach",null,null,null,"ST. GEORGE",null,null,null,"Dayton / Fairborn",56,56]
[null,null,null,null,null,null,null,"Florida","Other",null,null,null,"TALKEETNA",null,null,null,"Daytona Beach",51,51]
[null,null,null,null,null,null,null,"Georgia","Athens",null,null,null,"TANANA",null,null,null,"Death Valley",46,46]
[null,null,null,null,null,null,null,"Georgia","Atlanta",null,null,null,"TOGIAK",null,null,null,"DELTA JUNCTION",64,64]
[null,null,null,null,null,null,null,"Georgia","Augusta",null,null,null,"TOK",null,null,null,"DENALI NATIONAL PARK",59,59]
[null,null,null,null,null,null,null,"Georgia","ColumbusGA",null,null,null,"UMIAT",null,null,null,"Denver / Aurora",66,66]
[null,null,null,null,null,null,null,"Georgia","Conyers",null,null,null,"VALDEZ",null,null,null,"Des Moines",51,51]
[null,null,null,null,null,null,null,"Georgia","Duluth / Norcross / Lawrenceville ",null,null,null,"WASILLA",null,null,null,"Detroit",56,56]
[null,null,null,null,null,null,null,"Georgia","Jekyll Island / Brunswick",null,null,null,"WRANGELL",null,null,null,"Dickinson / Beulah",56,56]
[null,null,null,null,null,null,null,"Georgia","Peachtree City / Jonesboro / Morrow",null,null,null,"YAKUTAT",null,null,null,"DILLINGHAM",66,66]
[null,null,null,null,null,null,null,"Georgia","Savannah",null,null,null,null,null,null,null,"District of Columbia",71,71]
[null,null,null,null,null,null,null,null,"Other",null,null,null,null,null,null,null,"Douglas County",61,61]
[null,null,null,null,null,null,null,"Idaho","Bonner's Ferry/Sandpoint",null,null,null,"Other in Hawaii ",null,null,null,"Dover",46,46]
[null,null,null,null,null,null,null,"Idaho","Boise",null,null,null,"ISLE OF HAWAII: HILO",null,null,null,"Driggs/Idaho Falls",46,46]
[null,null,null,null,null,null,null,"Idaho","Coeur d'Alene",null,null,null,"ISLE OF HAWAII: OTHER",null,null,null,"Duluth",56,56]
[null,null,null,null,null,null,null,"Idaho","Driggs/Idaho Falls",null,null,null,"ISLE OF KAUAI",null,null,null,"Durango",61,61]
[null,null,null,null,null,null,null,"Idaho","Sun Valley / Ketchum",null,null,null,"ISLE OF MAUI",null,null,null,"Durham",51,51]
[null,null,null,null,null,null,null,"Idaho","Twin Falls",null,null,null,"ISLE OF OAHU",null,null,null,"DurhamNH",46,46]
[null,null,null,null,null,null,null,null,"Other",null,null,null,"LANAI",null,null,null,"DUTCH HARBOR-UNALASKA",69,69]
[null,null,null,null,null,null,null,"Illinois","Bolingbrook / Romeoville / Lemont",null,null,null,"LUALUALEI NAVAL MAGAZINE",null,null,null,"Eagan / Burnsville / Mendota Heights",56,56]
[null,null,null,null,null,null,null,"Illinois","Chicago",null,null,null,"MOLOKAI",null,null,null,"East Greenwich / Warwick / North Kingstown",56,56]
[null,null,null,null,null,null,null,"Illinois","Elgin / Aurora",null,null,null,null,null,null,null,"East Lansing / Lansing",51,51]
[null,null,null,null,null,null,null,"Illinois","Oak Brook Terrace",null,null,null,null,null,null,null,"EAST YORK",93,93]
[null,null,null,null,null,null,null,"Illinois","O'Fallon / Fairview Heights / Collinsville",null,null,null,null,null,null,null,"Eatontown / Freehold",56,56]
[null,null,null,null,null,null,null,"Illinois","SpringfieldIL",null,null,null,null,null,null,null,"Edison / Piscataway",51,51]
[null,null,null,null,null,null,null,null,"Other",null,null,null,null,null,null,null,"EDMONTON",74,74]
[null,null,null,null,null,null,null,"Indiana","Bloomington ",null,null,null,null,null,null,null,"El Paso",51,51]
[null,null,null,null,null,null,null,"Indiana","Brownsburg / Plainfield",null,null,null,null,null,null,null,"Elfin Cove",36,36]
[null,null,null,null,null,null,null,"Indiana","Ft. Wayne",null,null,null,null,null,null,null,"Erie",46,46]
[null,null,null,null,null,null,null,"Indiana","Hammond / Munster / Merrillville",null,null,null,null,null,null,null,"ETOBICOKE",93,93]
[null,null,null,null,null,null,null,"Indiana","Indianapolis / Carmel",null,null,null,null,null,null,null,"Eugene / Florence",51,51]
[null,null,null,null,null,null,null,"Indiana","LafayetteIN",null,null,null,null,null,null,null,"Eureka / Arcata / McKinleyville",61,61]
[null,null,null,null,null,null,null,"Indiana","Michigan City",null,null,null,null,null,null,null,"Evanston / Rock Springs",51,51]
[null,null,null,null,null,null,null,"Indiana","South Bend",null,null,null,null,null,null,null,"Everett / Lynnwood",61,61]
[null,null,null,null,null,null,null,"Indiana","Valparaiso / Burlington Beach",null,null,null,null,null,null,null,"FAIRBANKS",64,64]
[null,null,null,null,null,null,null,null,"Other",null,null,null,null,null,null,null,"FAJARDO [INCL ROOSEVELT RDS NAVSTAT]",46,46]
[null,null,null,null,null,null,null,"Iowa","Cedar Rapids",null,null,null,null,null,null,null,"Falmouth",51,51]
[null,null,null,null,null,null,null,"Iowa","Des Moines",null,null,null,null,null,null,null,"Fayetteville",51,51]
[null,null,null,null,null,null,null,null,"Other",null,null,null,null,null,null,null,"Flemington",61,61]
[null,null,null,null,null,null,null,"Kansas","Kansas City / Overland Park",null,null,null,null,null,null,null,"Flint",46,46]
[null,null,null,null,null,null,null,"Kansas","Wichita",null,null,null,null,null,null,null,"Floral Park / Garden City / Great Neck",66,66]
[null,null,null,null,null,null,null,null,"Other",null,null,null,null,null,null,null,"FOOTLOOSE",15,15]
[null,null,null,null,null,null,null,"Kentucky","Boone County",null,null,null,null,null,null,null,"Fort Collins / Loveland",56,56]
[null,null,null,null,null,null,null,"Kentucky","Kenton County",null,null,null,null,null,null,null,"Fort Lauderdale",71,71]
[null,null,null,null,null,null,null,"Kentucky","Lexington",null,null,null,null,null,null,null,"FORT MCMURRAY, ALBERTA",74,74]
[null,null,null,null,null,null,null,"Kentucky","Louisville",null,null,null,null,null,null,null,"Fort Myers",56,56]
[null,null,null,null,null,null,null,null,"Other",null,null,null,null,null,null,null,"Fort Walton Beach / De Funiak Springs",51,51]
[null,null,null,null,null,null,null,"Louisiana","Baton Rouge",null,null,null,null,null,null,null,"Frederick",56,56]
[null,null,null,null,null,null,null,"Louisiana","Covington / Slidell",null,null,null,null,null,null,null,"Fredericksburg",56,56]
[null,null,null,null,null,null,null,"Louisiana","LafayetteLA",null,null,null,null,null,null,null,"FREDERICTON",96,96]
[null,null,null,null,null,null,null,"Louisiana","Lake Charles",null,null,null,null,null,null,null,"Fresno",61,61]
[null,null,null,null,null,null,null,"Louisiana","New Orleans",null,null,null,null,null,null,null,"FT. BUCHANAN [INCL GSA SVC CTR, GUAYNABO]",102,102]
[null,null,null,null,null,null,null,null,"Other",null,null,null,null,null,null,null,"Ft. Wayne",56,56]
[null,null,null,null,null,null,null,"Maine","Bar Harbor",null,null,null,null,null,null,null,"Gainesville",51,51]
[null,null,null,null,null,null,null,"Maine","Kennebunk / Kittery / Sanford",null,null,null,null,null,null,null,"Galveston",56,56]
[null,null,null,null,null,null,null,"Maine","PortlandME",null,null,null,null,null,null,null,"GANDER, NEWFOUNDLAND",54,54]
[null,null,null,null,null,null,null,"Maine","Rockport",null,null,null,null,null,null,null,"Gettysburg",51,51]
[null,null,null,null,null,null,null,null,"Other",null,null,null,null,null,null,null,"Gillette",51,51]
[null,null,null,null,null,null,null,"Maryland","Aberdeen / Bel Air / Belcamp",null,null,null,null,null,null,null,"GLENNALLEN",65,65]
[null,null,null,null,null,null,null,"Maryland","Annapolis",null,null,null,null,null,null,null,"Glens Falls",66,66]
[null,null,null,null,null,null,null,"Maryland","Baltimore City",null,null,null,null,null,null,null,"Glenwood Springs / Grand Junction",51,51]
[null,null,null,null,null,null,null,"Maryland","Baltimore County",null,null,null,null,null,null,null,"Grand Canyon / Flagstaff",66,66]
[null,null,null,null,null,null,null,"Maryland","Cambridge / St. Michaels",null,null,null,null,null,null,null,"Grand Rapids",51,51]
[null,null,null,null,null,null,null,"Maryland","Centreville",null,null,null,null,null,null,null,"Greensboro",56,56]
[null,null,null,null,null,null,null,"Maryland","ColumbiaMD",null,null,null,null,null,null,null,"GreenvilleNC",51,51]
[null,null,null,null,null,null,null,"Maryland","Frederick",null,null,null,null,null,null,null,"GreenvilleSC",56,56]
[null,null,null,null,null,null,null,"Maryland","Hagerstown",null,null,null,null,null,null,null,"GreenvilleTX",51,51]
[null,null,null,null,null,null,null,"Maryland","La Plata / Indian Head ",null,null,null,null,null,null,null,"Guam",75,75]
[null,null,null,null,null,null,null,"Maryland","Lexington Park / Leonardtown / Lusby",null,null,null,null,null,null,null,"Gulf Breeze",51,51]
[null,null,null,null,null,null,null,"Maryland","Ocean City",null,null,null,null,null,null,null,"Gulf Shores",51,51]
[null,null,null,null,null,null,null,"Maryland","Washington, DC Metro Area",null,null,null,null,null,null,null,"Gulfport / Biloxi",56,56]
[null,null,null,null,null,null,null,null,"Other",null,null,null,null,null,null,null,"Hagerstown",56,56]
[null,null,null,null,null,null,null,"Massachusetts","Andover",null,null,null,null,null,null,null,"HAINES",60,60]
[null,null,null,null,null,null,null,"Massachusetts","Boston / Cambridge",null,null,null,null,null,null,null,"HALIFAX",96,96]
[null,null,null,null,null,null,null,"Massachusetts","Burlington / Woburn",null,null,null,null,null,null,null,"Hamilton",51,51]
[null,null,null,null,null,null,null,"Massachusetts","Falmouth",null,null,null,null,null,null,null,"Hammond / Munster / Merrillville",46,46]
[null,null,null,null,null,null,null,"Massachusetts","Hyannis",null,null,null,null,null,null,null,"Harrisburg",51,51]
[null,null,null,null,null,null,null,"Massachusetts","Martha's Vineyard",null,null,null,null,null,null,null,"Hartford",56,56]
[null,null,null,null,null,null,null,"Massachusetts","Nantucket",null,null,null,null,null,null,null,"Hattiesburg",51,51]
[null,null,null,null,null,null,null,"Massachusetts","Northampton",null,null,null,null,null,null,null,"HEALY",59,59]
[null,null,null,null,null,null,null,"Massachusetts","Pittsfield",null,null,null,null,null,null,null,"Helena",56,56]
[null,null,null,null,null,null,null,"Massachusetts","Plymouth / Taunton / New Bedford",null,null,null,null,null,null,null,"Hershey",51,51]
[null,null,null,null,null,null,null,"Massachusetts","Quincy",null,null,null,null,null,null,null,"Hilton Head",61,61]
[null,null,null,null,null,null,null,"Massachusetts","SpringfieldMA",null,null,null,null,null,null,null,"Holland",56,56]
[null,null,null,null,null,null,null,"Massachusetts","Worcester",null,null,null,null,null,null,null,"HOMER",63,63]
[null,null,null,null,null,null,null,null,"Other",null,null,null,null,null,null,null,"Hot Springs",46,46]
[null,null,null,null,null,null,null,"Michigan","Ann Arbor",null,null,null,null,null,null,null,"Hot SpringsSD",46,46]
[null,null,null,null,null,null,null,"Michigan","Benton Harbor / St. Joseph / Stevensville",null,null,null,null,null,null,null,"Houston (L.B. Johnson Space Center)",71,71]
[null,null,null,null,null,null,null,"Michigan","Charlevoix",null,null,null,null,null,null,null,"HUMACAO",46,46]
[null,null,null,null,null,null,null,"Michigan","Detroit",null,null,null,null,null,null,null,"Huntsville",51,51]
[null,null,null,null,null,null,null,"Michigan","East Lansing / Lansing",null,null,null,null,null,null,null,"Hyannis",56,56]
[null,null,null,null,null,null,null,"Michigan","Flint",null,null,null,null,null,null,null,"Incline Village / Reno / Sparks",51,51]
[null,null,null,null,null,null,null,"Michigan","Grand Rapids",null,null,null,null,null,null,null,"Indianapolis / Carmel",61,61]
[null,null,null,null,null,null,null,"Michigan","Holland",null,null,null,null,null,null,null,"ISLE OF HAWAII: HILO",83,83]
[null,null,null,null,null,null,null,"Michigan","Kalamazoo / Battle Creek ",null,null,null,null,null,null,null,"ISLE OF HAWAII: OTHER",86,86]
[null,null,null,null,null,null,null,"Michigan","Mackinac Island",null,null,null,null,null,null,null,"ISLE OF KAUAI",92,92]
[null,null,null,null,null,null,null,"Michigan","Midland",null,null,null,null,null,null,null,"ISLE OF MAUI",83,83]
[null,null,null,null,null,null,null,"Michigan","Mount Pleasant",null,null,null,null,null,null,null,"ISLE OF OAHU",85,85]
[null,null,null,null,null,null,null,"Michigan","Muskegon",null,null,null,null,null,null,null,"Ithaca / Waterloo / Romulus",46,46]
[null,null,null,null,null,null,null,"Michigan","Ontonagon / Baraga / Houghton ",null,null,null,null,null,null,null,"Jackson / Pinedale",56,56]
[null,null,null,null,null,null,null,"Michigan","Petoskey",null,null,null,null,null,null,null,"Jacksonville / Jacksonville Beach / Mayport Naval Station",51,51]
[null,null,null,null,null,null,null,"Michigan","Pontiac / Auburn Hills ",null,null,null,null,null,null,null,"James City and York Counties, Williamsburg",51,51]
[null,null,null,null,null,null,null,"Michigan","South Haven",null,null,null,null,null,null,null,"Jamestown / Middletown / Newport",71,71]
[null,null,null,null,null,null,null,"Michigan","Traverse City and Leland",null,null,null,null,null,null,null,"Jekyll Island / Brunswick",56,56]
[null,null,null,null,null,null,null,"Michigan","Warren",null,null,null,null,null,null,null,"JUNEAU",64,64]
[null,null,null,null,null,null,null,null,"Other",null,null,null,null,null,null,null,"KAKTOVIK",69,69]
[null,null,null,null,null,null,null,"Minnesota","Duluth",null,null,null,null,null,null,null,"Kalamazoo / Battle Creek ",51,51]
[null,null,null,null,null,null,null,"Minnesota","Eagan / Burnsville / Mendota Heights",null,null,null,null,null,null,null,"Kansas City",61,61]
[null,null,null,null,null,null,null,"Minnesota","Minneapolis / St. Paul",null,null,null,null,null,null,null,"Kansas City / Overland Park",61,61]
[null,null,null,null,null,null,null,"Minnesota","Rochester",null,null,null,null,null,null,null,"KAVIK CAMP",55,55]
[null,null,null,null,null,null,null,null,"Other",null,null,null,null,null,null,null,"Kayenta",46,46]
[null,null,null,null,null,null,null,"Mississippi","Grenada",null,null,null,null,null,null,null,"KENAI-SOLDOTNA",66,66]
[null,null,null,null,null,null,null,"Mississippi","Gulfport / Biloxi",null,null,null,null,null,null,null,"Kennebunk / Kittery / Sanford",56,56]
[null,null,null,null,null,null,null,"Mississippi","Hattiesburg",null,null,null,null,null,null,null,"KENNICOTT",75,75]
[null,null,null,null,null,null,null,"Mississippi","Picayune",null,null,null,null,null,null,null,"Kenton County",56,56]
[null,null,null,null,null,null,null,"Mississippi","Robinsonville",null,null,null,null,null,null,null,"KETCHIKAN",50,50]
[null,null,null,null,null,null,null,"Mississippi","Southaven",null,null,null,null,null,null,null,"Key West",71,71]
[null,null,null,null,null,null,null,"Mississippi","Starkville ",null,null,null,null,null,null,null,"Kill Devil",61,61]
[null,null,null,null,null,null,null,null,"Other",null,null,null,null,null,null,null,"KING SALMON",65,65]
[null,null,null,null,null,null,null,"Missouri","ColumbiaMO",null,null,null,null,null,null,null,"Kingston",66,66]
[null,null,null,null,null,null,null,"Missouri","Kansas City",null,null,null,null,null,null,null,"Kissimmee",46,46]
[null,null,null,null,null,null,null,"Missouri","SpringfieldMO",null,null,null,null,null,null,null,"KLAWOCK",63,63]
[null,null,null,null,null,null,null,"Missouri","St. Louis",null,null,null,null,null,null,null,"Knoxville",56,56]
[null,null,null,null,null,null,null,"Missouri","St. Robert",null,null,null,null,null,null,null,"KODIAK",61,61]
[null,null,null,null,null,null,null,null,"Other",null,null,null,null,null,null,null,"KOTZEBUE",74,74]
[null,null,null,null,null,null,null,"Montana","Big Sky / West Yellowstone",null,null,null,null,null,null,null,"KWAJALEIN ATOLL",30,30]
[null,null,null,null,null,null,null,"Montana","Butte",null,null,null,null,null,null,null,"La Plata / Indian Head ",51,51]
[null,null,null,null,null,null,null,"Montana","Helena",null,null,null,null,null,null,null,"Laconia",51,51]
[null,null,null,null,null,null,null,"Montana","Missoula / Polson / Kalispell",null,null,null,null,null,null,null,"LafayetteIN",51,51]
[null,null,null,null,null,null,null,null,"Other",null,null,null,null,null,null,null,"LafayetteLA",56,56]
[null,null,null,null,null,null,null,"Nebraska","Omaha",null,null,null,null,null,null,null,"Lake Charles",61,61]
[null,null,null,null,null,null,null,null,"Other",null,null,null,null,null,null,null,"Lake Geneva",51,51]
[null,null,null,null,null,null,null,"Nevada","Incline Village / Reno / Sparks",null,null,null,null,null,null,null,"Lake Placid",61,61]
[null,null,null,null,null,null,null,"Nevada","Las Vegas",null,null,null,null,null,null,null,"Lakeland",46,46]
[null,null,null,null,null,null,null,"Nevada","Stateline, Carson City",null,null,null,null,null,null,null,"Lakeville / Salisbury",66,66]
[null,null,null,null,null,null,null,null,"Other",null,null,null,null,null,null,null,"LANAI",99,99]
[null,null,null,null,null,null,null,"New Hampshire","Concord",null,null,null,null,null,null,null,"Lancaster",56,56]
[null,null,null,null,null,null,null,"New Hampshire","Conway",null,null,null,null,null,null,null,"Laredo",56,56]
[null,null,null,null,null,null,null,"New Hampshire","DurhamNH",null,null,null,null,null,null,null,"Las Cruces",56,56]
[null,null,null,null,null,null,null,"New Hampshire","Laconia",null,null,null,null,null,null,null,"Las Vegas",71,71]
[null,null,null,null,null,null,null,"New Hampshire","Lebanon / Lincoln / West Lebanon",null,null,null,null,null,null,null,"Lebanon / Lincoln / West Lebanon",56,56]
[null,null,null,null,null,null,null,"New Hampshire","ManchesterNH",null,null,null,null,null,null,null,"Lewes",46,46]
[null,null,null,null,null,null,null,"New Hampshire","Portsmouth",null,null,null,null,null,null,null,"Lexington",61,61]
[null,null,null,null,null,null,null,null,"Other",null,null,null,null,null,null,null,"Lexington Park / Leonardtown / Lusby",61,61]
[null,null,null,null,null,null,null,"New Jersey","Atlantic City / Ocean City / Cape May",null,null,null,null,null,null,null,"LIKIEP ATOLL",30,30]
[null,null,null,null,null,null,null,"New Jersey","Belle Mead",null,null,null,null,null,null,null,"Lincoln City",56,56]
[null,null,null,null,null,null,null,"New Jersey","Cherry Hill / Moorestown",null,null,null,null,null,null,null,"Little Rock",61,61]
[null,null,null,null,null,null,null,"New Jersey","Eatontown / Freehold",null,null,null,null,null,null,null,"LONDON, ONTARIO",75,75]
[null,null,null,null,null,null,null,"New Jersey","Edison / Piscataway",null,null,null,null,null,null,null,"Los Alamos",51,51]
[null,null,null,null,null,null,null,"New Jersey","Flemington",null,null,null,null,null,null,null,"Los Angeles",71,71]
[null,null,null,null,null,null,null,"New Jersey","Newark",null,null,null,null,null,null,null,"Loudoun County",61,61]
[null,null,null,null,null,null,null,"New Jersey","Parsippany",null,null,null,null,null,null,null,"Louisville",61,61]
[null,null,null,null,null,null,null,"New Jersey","Princeton / Trenton",null,null,null,null,null,null,null,"LUALUALEI NAVAL MAGAZINE",85,85]
[null,null,null,null,null,null,null,"New Jersey","Springfield / Cranford / New Providence",null,null,null,null,null,null,null,"LUIS MUNOZ MARIN IAP AGS",102,102]
[null,null,null,null,null,null,null,"New Jersey","Tom’s River",null,null,null,null,null,null,null,"LUQUILLO",46,46]
[null,null,null,null,null,null,null,null,"Other",null,null,null,null,null,null,null,"Lynchburg",51,51]
[null,null,null,null,null,null,null,"New Mexico","Albuquerque",null,null,null,null,null,null,null,"Madison",56,56]
[null,null,null,null,null,null,null,"New Mexico","Carlsbad",null,null,null,null,null,null,null,"MAJURO",69,69]
[null,null,null,null,null,null,null,"New Mexico","Los Alamos",null,null,null,null,null,null,null,"Malvern / Frazer / Berwyn ",51,51]
[null,null,null,null,null,null,null,"New Mexico","Las Cruces",null,null,null,null,null,null,null,"Mammoth Lakes",61,61]
[null,null,null,null,null,null,null,"New Mexico","Santa Fe",null,null,null,null,null,null,null,"Manassas",46,46]
[null,null,null,null,null,null,null,"New Mexico","Taos",null,null,null,null,null,null,null,"ManchesterNH",56,56]
[null,null,null,null,null,null,null,null,"Other",null,null,null,null,null,null,null,"ManchesterVT",71,71]
[null,null,null,null,null,null,null,"New York","Albany",null,null,null,null,null,null,null,"Manhattan (includes the boroughs of Manhattan, Brooklyn, the Bronx, Queens and Staten Island)",71,71]
[null,null,null,null,null,null,null,"New York","Binghamton / Owego",null,null,null,null,null,null,null,"Marshall Islands",30,30]
[null,null,null,null,null,null,null,"New York","Buffalo",null,null,null,null,null,null,null,"Martha's Vineyard",71,71]
[null,null,null,null,null,null,null,"New York","Floral Park / Garden City / Great Neck",null,null,null,null,null,null,null,"MAYAGUEZ",90,90]
[null,null,null,null,null,null,null,"New York","Glens Falls",null,null,null,null,null,null,null,"McAllen",56,56]
[null,null,null,null,null,null,null,"New York","Ithaca / Waterloo / Romulus",null,null,null,null,null,null,null,"MCCARTHY",75,75]
[null,null,null,null,null,null,null,"New York","Kingston",null,null,null,null,null,null,null,"MCGRATH",55,55]
[null,null,null,null,null,null,null,"New York","Lake Placid",null,null,null,null,null,null,null,"Mechanicsburg",56,56]
[null,null,null,null,null,null,null,"New York","Manhattan (includes the boroughs of Manhattan, Brooklyn, the Bronx, Queens and Staten Island)",null,null,null,null,null,null,null,"Memphis",61,61]
[null,null,null,null,null,null,null,"New York","Niagara Falls",null,null,null,null,null,null,null,"Mentor",46,46]
[null,null,null,null,null,null,null,"New York","Nyack / Palisades",null,null,null,null,null,null,null,"Miami",66,66]
[null,null,null,null,null,null,null,"New York","Poughkeepsie",null,null,null,null,null,null,null,"Middlebury",61,61]
[null,null,null,null,null,null,null,"New York","Riverhead / Ronkonkoma / Melville",null,null,null,null,null,null,null,"Midland",46,46]
[null,null,null,null,null,null,null,"New York","Rochester",null,null,null,null,null,null,null,"MidlandTX",51,51]
[null,null,null,null,null,null,null,"New York","Saratoga Springs / Schenectady",null,null,null,null,null,null,null,"Midway Islands",39,39]
[null,null,null,null,null,null,null,"New York","Syracuse / Oswego",null,null,null,null,null,null,null,"Mill Valley / San Rafael / Novato",56,56]
[null,null,null,null,null,null,null,"New York","Tarrytown / White Plains / New Rochelle",null,null,null,null,null,null,null,"Milwaukee",61,61]
[null,null,null,null,null,null,null,"New York","Troy ",null,null,null,null,null,null,null,"Minneapolis / St. Paul",71,71]
[null,null,null,null,null,null,null,"New York","Watertown",null,null,null,null,null,null,null,"Minot",56,56]
[null,null,null,null,null,null,null,"New York","West Point",null,null,null,null,null,null,null,"MISSISSAUGA",67,67]
[null,null,null,null,null,null,null,null,"Other",null,null,null,null,null,null,null,"Missoula / Polson / Kalispell",51,51]
[null,null,null,null,null,null,null,"North Carolina","Asheville ",null,null,null,null,null,null,null,"Moab",56,56]
[null,null,null,null,null,null,null,"North Carolina","Atlantic Beach / Morehead City",null,null,null,null,null,null,null,"Mobile",51,51]
[null,null,null,null,null,null,null,"North Carolina","Chapel Hill",null,null,null,null,null,null,null,"Modesto",51,51]
[null,null,null,null,null,null,null,"North Carolina","Charlotte",null,null,null,null,null,null,null,"MOLOKAI",73,73]
[null,null,null,null,null,null,null,"North Carolina","Durham",null,null,null,null,null,null,null,"MONCTON",86,86]
[null,null,null,null,null,null,null,"North Carolina","Fayetteville",null,null,null,null,null,null,null,"Monterey",71,71]
[null,null,null,null,null,null,null,"North Carolina","Greensboro",null,null,null,null,null,null,null,"Montgomery",46,46]
[null,null,null,null,null,null,null,"North Carolina","GreenvilleNC",null,null,null,null,null,null,null,"Montgomery County",66,66]
[null,null,null,null,null,null,null,"North Carolina","Kill Devil",null,null,null,null,null,null,null,"Montpelier",61,61]
[null,null,null,null,null,null,null,"North Carolina","New Bern / Havelock",null,null,null,null,null,null,null,"MONTREAL",90,90]
[null,null,null,null,null,null,null,"North Carolina","Raleigh",null,null,null,null,null,null,null,"Montrose",56,56]
[null,null,null,null,null,null,null,"North Carolina","WilmingtonNC",null,null,null,null,null,null,null,"Morgantown",46,46]
[null,null,null,null,null,null,null,"North Carolina","Winston-Salem",null,null,null,null,null,null,null,"MURPHY DOME",64,64]
[null,null,null,null,null,null,null,null,"Other",null,null,null,null,null,null,null,"Muskegon",46,46]
[null,null,null,null,null,null,null,"North Dakota","Dickinson / Beulah",null,null,null,null,null,null,null,"Myrtle Beach",51,51]
[null,null,null,null,null,null,null,"North Dakota","Minot",null,null,null,null,null,null,null,"Nantucket",61,61]
[null,null,null,null,null,null,null,"North Dakota","Williston",null,null,null,null,null,null,null,"Napa",66,66]
[null,null,null,null,null,null,null,null,"Other",null,null,null,null,null,null,null,"Naples",61,61]
[null,null,null,null,null,null,null,"Ohio","Akron",null,null,null,null,null,null,null,"Nashville",66,66]
[null,null,null,null,null,null,null,"Ohio","Canton",null,null,null,null,null,null,null,"New Bern / Havelock",46,46]
[null,null,null,null,null,null,null,"Ohio","Cincinnati",null,null,null,null,null,null,null,"New Haven",61,61]
[null,null,null,null,null,null,null,"Ohio","Cleveland",null,null,null,null,null,null,null,"New London / Groton",61,61]
[null,null,null,null,null,null,null,"Ohio","ColumbusOH",null,null,null,null,null,null,null,"New Orleans",71,71]
[null,null,null,null,null,null,null,"Ohio","Dayton / Fairborn",null,null,null,null,null,null,null,"Newark",61,61]
[null,null,null,null,null,null,null,"Ohio","Hamilton",null,null,null,null,null,null,null,"Niagara Falls",51,51]
[null,null,null,null,null,null,null,"Ohio","Mentor",null,null,null,null,null,null,null,"NOME",78,78]
[null,null,null,null,null,null,null,"Ohio","Rittman",null,null,null,null,null,null,null,"Norfolk / Portsmouth",61,61]
[null,null,null,null,null,null,null,"Ohio","Sandusky / Bellevue",null,null,null,null,null,null,null,"NORTH YORK",93,93]
[null,null,null,null,null,null,null,"Ohio","Toledo",null,null,null,null,null,null,null,"Northampton",56,56]
[null,null,null,null,null,null,null,"Ohio","Youngstown",null,null,null,null,null,null,null,"Northern Mariana Islands",58,58]
[null,null,null,null,null,null,null,null,"Other",null,null,null,null,null,null,null,"NORTHWEST TERRITORIES",64,64]
[null,null,null,null,null,null,null,"Oklahoma","Oklahoma City",null,null,null,null,null,null,null,"NUIQSUT",42,42]
[null,null,null,null,null,null,null,"Oklahoma","Tulsa ",null,null,null,null,null,null,null,"Nyack / Palisades",61,61]
[null,null,null,null,null,null,null,null,"Other",null,null,null,null,null,null,null,"Oak Brook Terrace",61,61]
[null,null,null,null,null,null,null,"Oregon","Ashland / Crater Lake",null,null,null,null,null,null,null,"Oak Ridge",46,46]
[null,null,null,null,null,null,null,"Oregon","Beaverton",null,null,null,null,null,null,null,"Oakhurst",56,56]
[null,null,null,null,null,null,null,"Oregon","Bend",null,null,null,null,null,null,null,"Oakland",61,61]
[null,null,null,null,null,null,null,"Oregon","Clackamas",null,null,null,null,null,null,null,"Ocean City",71,71]
[null,null,null,null,null,null,null,"Oregon","Eugene / Florence",null,null,null,null,null,null,null,"Ocean Shores",51,51]
[null,null,null,null,null,null,null,"Oregon","Lincoln City",null,null,null,null,null,null,null,"O'Fallon / Fairview Heights / Collinsville",56,56]
[null,null,null,null,null,null,null,"Oregon","PortlandOR",null,null,null,null,null,null,null,"Oklahoma City",66,66]
[null,null,null,null,null,null,null,"Oregon","Seaside",null,null,null,null,null,null,null,"Olympia / Tumwater",61,61]
[null,null,null,null,null,null,null,null,"Other",null,null,null,null,null,null,null,"Omaha",61,61]
[null,null,null,null,null,null,null,"Pennsylvania","Allentown / Easton / Bethlehem",null,null,null,null,null,null,null,"Orlando",56,56]
[null,null,null,null,null,null,null,"Pennsylvania","Bucks County",null,null,null,null,null,null,null,"Other",46,46]
[null,null,null,null,null,null,null,"Pennsylvania","Chester / Radnor / Essington",null,null,null,null,null,null,null,"Other in Alaska",57,57]
[null,null,null,null,null,null,null,"Pennsylvania","Erie",null,null,null,null,null,null,null,"Other in Hawaii ",83,83]
[null,null,null,null,null,null,null,"Pennsylvania","Gettysburg",null,null,null,null,null,null,null,"OTTAWA",77,77]
[null,null,null,null,null,null,null,"Pennsylvania","Harrisburg",null,null,null,null,null,null,null,"Palm Springs",71,71]
[null,null,null,null,null,null,null,"Pennsylvania","Hershey",null,null,null,null,null,null,null,"Panama City",51,51]
[null,null,null,null,null,null,null,"Pennsylvania","Lancaster",null,null,null,null,null,null,null,"Park City",71,71]
[null,null,null,null,null,null,null,"Pennsylvania","Malvern / Frazer / Berwyn ",null,null,null,null,null,null,null,"Parsippany",56,56]
[null,null,null,null,null,null,null,"Pennsylvania","Mechanicsburg",null,null,null,null,null,null,null,"Pensacola / Pensacola Beach",46,46]
[null,null,null,null,null,null,null,"Pennsylvania","Montgomery County",null,null,null,null,null,null,null,"PETERSBURG",57,57]
[null,null,null,null,null,null,null,"Pennsylvania","Philadelphia",null,null,null,null,null,null,null,"Petoskey",51,51]
[null,null,null,null,null,null,null,"Pennsylvania","Pittsburgh",null,null,null,null,null,null,null,"Philadelphia",66,66]
[null,null,null,null,null,null,null,"Pennsylvania","Reading",null,null,null,null,null,null,null,"Phoenix / Scottsdale",71,71]
[null,null,null,null,null,null,null,"Pennsylvania","Scranton",null,null,null,null,null,null,null,"Picayune",56,56]
[null,null,null,null,null,null,null,"Pennsylvania","State College ",null,null,null,null,null,null,null,"Pittsburgh",71,71]
[null,null,null,null,null,null,null,null,"Other",null,null,null,null,null,null,null,"Pittsfield",61,61]
[null,null,null,null,null,null,null,"Rhode Island","East Greenwich / Warwick / North Kingstown",null,null,null,null,null,null,null,"Plano",61,61]
[null,null,null,null,null,null,null,"Rhode Island","Jamestown / Middletown / Newport",null,null,null,null,null,null,null,"Plymouth / Taunton / New Bedford",56,56]
[null,null,null,null,null,null,null,"Rhode Island","Providence / Bristol",null,null,null,null,null,null,null,"Point Arena / Gualala",66,66]
[null,null,null,null,null,null,null,null,"Other",null,null,null,null,null,null,null,"PONCE",70,70]
[null,null,null,null,null,null,null,"South Carolina","Aiken",null,null,null,null,null,null,null,"Pontiac / Auburn Hills ",56,56]
[null,null,null,null,null,null,null,"South Carolina","CharlestonSC",null,null,null,null,null,null,null,"PORT ALSWORTH",70,70]
[null,null,null,null,null,null,null,"South Carolina","ColumbiaSC",null,null,null,null,null,null,null,"Port Angeles / Port Townsend",61,61]
[null,null,null,null,null,null,null,"South Carolina","GreenvilleSC",null,null,null,null,null,null,null,"PortlandME",56,56]
[null,null,null,null,null,null,null,"South Carolina","Hilton Head",null,null,null,null,null,null,null,"PortlandOR",66,66]
[null,null,null,null,null,null,null,"South Carolina","Myrtle Beach",null,null,null,null,null,null,null,"Portsmouth",61,61]
[null,null,null,null,null,null,null,null,"Other",null,null,null,null,null,null,null,"Poughkeepsie",66,66]
[null,null,null,null,null,null,null,"South Dakota","Hot SpringsSD",null,null,null,null,null,null,null,"PRINCE EDWARD ISLAND",89,89]
[null,null,null,null,null,null,null,"South Dakota","Rapid City",null,null,null,null,null,null,null,"Prince William County",56,56]
[null,null,null,null,null,null,null,"South Dakota","Sturgis / Spearfish ",null,null,null,null,null,null,null,"Princeton / Trenton",61,61]
[null,null,null,null,null,null,null,null,"Other",null,null,null,null,null,null,null,"Providence / Bristol",71,71]
[null,null,null,null,null,null,null,"Tennessee","Brentwood / Franklin",null,null,null,null,null,null,null,"Provo",51,51]
[null,null,null,null,null,null,null,"Tennessee","Chattanooga ",null,null,null,null,null,null,null,"Puerto Rico",46,46]
[null,null,null,null,null,null,null,"Tennessee","Knoxville",null,null,null,null,null,null,null,"Punta Gorda",51,51]
[null,null,null,null,null,null,null,"Tennessee","Memphis",null,null,null,null,null,null,null,"QUEBEC",99,99]
[null,null,null,null,null,null,null,"Tennessee","Nashville",null,null,null,null,null,null,null,"Quincy",51,51]
[null,null,null,null,null,null,null,"Tennessee","Oak Ridge",null,null,null,null,null,null,null,"Raleigh",66,66]
[null,null,null,null,null,null,null,null,"Other",null,null,null,null,null,null,null,"Rapid City",51,51]
[null,null,null,null,null,null,null,"Texas","Arlington / Fort Worth / Grapevine",null,null,null,null,null,null,null,"Reading",56,56]
[null,null,null,null,null,null,null,"Texas","Austin",null,null,null,null,null,null,null,"Redding",61,61]
[null,null,null,null,null,null,null,"Texas","Beaumont",null,null,null,null,null,null,null,"REGINA, SASKATCHEWAN",73,73]
[null,null,null,null,null,null,null,"Texas","College Station",null,null,null,null,null,null,null,"RICHMOND",87,87]
[null,null,null,null,null,null,null,"Texas","Corpus Christi",null,null,null,null,null,null,null,"Richmond City",66,66]
[null,null,null,null,null,null,null,"Texas","Dallas",null,null,null,null,null,null,null,"Rittman",51,51]
[null,null,null,null,null,null,null,"Texas","El Paso",null,null,null,null,null,null,null,"Riverhead / Ronkonkoma / Melville",71,71]
[null,null,null,null,null,null,null,"Texas","Galveston",null,null,null,null,null,null,null,"Roanoke",51,51]
[null,null,null,null,null,null,null,"Texas","Houston (L.B. Johnson Space Center)",null,null,null,null,null,null,null,"Robinsonville",51,51]
[null,null,null,null,null,null,null,"Texas","Hunt County",null,null,null,null,null,null,null,"Rochester",51,51]
[null,null,null,null,null,null,null,"Texas","Laredo",null,null,null,null,null,null,null,"Rochester",51,51]
[null,null,null,null,null,null,null,"Texas","McAllen",null,null,null,null,null,null,null,"Rockport",56,56]
[null,null,null,null,null,null,null,"Texas","MidlandTX",null,null,null,null,null,null,null,"ROTA",82,82]
[null,null,null,null,null,null,null,"Texas","Plano",null,null,null,null,null,null,null,"Round Rock ",51,51]
[null,null,null,null,null,null,null,"Texas","Round Rock ",null,null,null,null,null,null,null,"SABANA SECA [INCL ALL MILITARY]",102,102]
[null,null,null,null,null,null,null,"Texas","San Antonio",null,null,null,null,null,null,null,"Sacramento",61,61]
[null,null,null,null,null,null,null,"Texas","South Padre Island",null,null,null,null,null,null,null,"SAIPAN",79,79]
[null,null,null,null,null,null,null,"Texas","Waco",null,null,null,null,null,null,null,"Salt Lake City",61,61]
[null,null,null,null,null,null,null,null,"Other",null,null,null,null,null,null,null,"San Antonio",66,66]
[null,null,null,null,null,null,null,"Utah","Moab",null,null,null,null,null,null,null,"San Diego",71,71]
[null,null,null,null,null,null,null,"Utah","Park City",null,null,null,null,null,null,null,"San Francisco",71,71]
[null,null,null,null,null,null,null,"Utah","Provo",null,null,null,null,null,null,null,"SAN JUAN & NAV RES STA",102,102]
[null,null,null,null,null,null,null,"Utah","Salt Lake City",null,null,null,null,null,null,null,"San Luis Obispo",66,66]
[null,null,null,null,null,null,null,null,"Other",null,null,null,null,null,null,null,"San Mateo / Foster City / Belmont",61,61]
[null,null,null,null,null,null,null,"Vermont","Burlington / St. Albans",null,null,null,null,null,null,null,"Sandusky / Bellevue",46,46]
[null,null,null,null,null,null,null,"Vermont","ManchesterVT",null,null,null,null,null,null,null,"Santa Barbara",66,66]
[null,null,null,null,null,null,null,"Vermont","Middlebury",null,null,null,null,null,null,null,"Santa Cruz",66,66]
[null,null,null,null,null,null,null,"Vermont","Montpelier",null,null,null,null,null,null,null,"Santa Fe",71,71]
[null,null,null,null,null,null,null,"Vermont","Stowe ",null,null,null,null,null,null,null,"Santa Monica ",71,71]
[null,null,null,null,null,null,null,"Vermont","White River Junction",null,null,null,null,null,null,null,"Santa Rosa",61,61]
[null,null,null,null,null,null,null,null,"Other",null,null,null,null,null,null,null,"Sarasota",56,56]
[null,null,null,null,null,null,null,"Virginia","Abingdon",null,null,null,null,null,null,null,"Saratoga Springs / Schenectady",56,56]
[null,null,null,null,null,null,null,"Virginia","Blacksburg",null,null,null,null,null,null,null,"SASKATOON, SASKATCHEWAN",72,72]
[null,null,null,null,null,null,null,"Virginia","Charlottesville",null,null,null,null,null,null,null,"Savannah",56,56]
[null,null,null,null,null,null,null,"Virginia","Chesapeake / Suffolk",null,null,null,null,null,null,null,"Scranton",56,56]
[null,null,null,null,null,null,null,"Virginia","Chesterfield / Henrico Counties",null,null,null,null,null,null,null,"Seaside",51,51]
[null,null,null,null,null,null,null,"Virginia","Fredericksburg",null,null,null,null,null,null,null,"Seattle",71,71]
[null,null,null,null,null,null,null,"Virginia","Hampton City / Newport News",null,null,null,null,null,null,null,"Sebring",46,46]
[null,null,null,null,null,null,null,"Virginia","James City and York Counties, Williamsburg",null,null,null,null,null,null,null,"Sedona",66,66]
[null,null,null,null,null,null,null,"Virginia","Loudoun County",null,null,null,null,null,null,null,"SELDOVIA",63,63]
[null,null,null,null,null,null,null,"Virginia","Lynchburg",null,null,null,null,null,null,null,"SEWARD",65,65]
[null,null,null,null,null,null,null,"Virginia","Manassas",null,null,null,null,null,null,null,"Shepherdstown",51,51]
[null,null,null,null,null,null,null,"Virginia","Norfolk / Portsmouth",null,null,null,null,null,null,null,"Sheridan",56,56]
[null,null,null,null,null,null,null,"Virginia","Prince William County",null,null,null,null,null,null,null,"SIDNEY",99,99]
[null,null,null,null,null,null,null,"Virginia","Richmond City",null,null,null,null,null,null,null,"Sierra Vista",46,46]
[null,null,null,null,null,null,null,"Virginia","Roanoke",null,null,null,null,null,null,null,"Silverthorne / Breckenridge",56,56]
[null,null,null,null,null,null,null,"Virginia","Virginia Beach",null,null,null,null,null,null,null,"SITKA-MT. EDGECUMBE",58,58]
[null,null,null,null,null,null,null,"Virginia","Wallops Island",null,null,null,null,null,null,null,"SKAGWAY",50,50]
[null,null,null,null,null,null,null,"Virginia","Warrenton ",null,null,null,null,null,null,null,"SLANA",44,44]
[null,null,null,null,null,null,null,"Virginia","Washington, DC Metro Area",null,null,null,null,null,null,null,"South Bend",56,56]
[null,null,null,null,null,null,null,null,"Other",null,null,null,null,null,null,null,"South Haven",56,56]
[null,null,null,null,null,null,null,"Washington","Anacortes / Coupeville / Oak Harbor",null,null,null,null,null,null,null,"South Lake Tahoe",71,71]
[null,null,null,null,null,null,null,"Washington","Bremerton",null,null,null,null,null,null,null,"South Padre Island",56,56]
[null,null,null,null,null,null,null,"Washington","Everett / Lynnwood",null,null,null,null,null,null,null,"Southaven",46,46]
[null,null,null,null,null,null,null,"Washington","Ocean Shores",null,null,null,null,null,null,null,"Spokane",61,61]
[null,null,null,null,null,null,null,"Washington","Olympia / Tumwater",null,null,null,null,null,null,null,"Springfield / Cranford / New Providence",56,56]
[null,null,null,null,null,null,null,"Washington","Port Angeles / Port Townsend",null,null,null,null,null,null,null,"SpringfieldIL",56,56]
[null,null,null,null,null,null,null,"Washington","Seattle",null,null,null,null,null,null,null,"SpringfieldMA",51,51]
[null,null,null,null,null,null,null,"Washington","Spokane",null,null,null,null,null,null,null,"SpringfieldMO",46,46]
[null,null,null,null,null,null,null,"Washington","Tacoma",null,null,null,null,null,null,null,"SPRUCE CAPE",61,61]
[null,null,null,null,null,null,null,"Washington","Vancouver",null,null,null,null,null,null,null,"St. Augustine",56,56]
[null,null,null,null,null,null,null,null,"Other",null,null,null,null,null,null,null,"ST. CROIX",74,74]
[null,null,null,null,null,null,null,"West Virginia","CharlestonWV",null,null,null,null,null,null,null,"ST. GEORGE",44,44]
[null,null,null,null,null,null,null,"West Virginia","Morgantown",null,null,null,null,null,null,null,"ST. JOHN",79,79]
[null,null,null,null,null,null,null,"West Virginia","Shepherdstown",null,null,null,null,null,null,null,"ST. JOHN'S, NEWFOUNDLAND",91,91]
[null,null,null,null,null,null,null,"West Virginia","Wheeling",null,null,null,null,null,null,null,"St. Louis",66,66]
[null,null,null,null,null,null,null,null,"Other",null,null,null,null,null,null,null,"St. Robert",46,46]
[null,null,null,null,null,null,null,"Wisconsin","Appleton",null,null,null,null,null,null,null,"ST. THOMAS",84,84]
[null,null,null,null,null,null,null,"Wisconsin","Brookfield / Racine",null,null,null,null,null,null,null,"Starkville ",46,46]
[null,null,null,null,null,null,null,"Wisconsin","Green Bay",null,null,null,null,null,null,null,"State College ",56,56]
[null,null,null,null,null,null,null,"Wisconsin","Lake Geneva",null,null,null,null,null,null,null,"Stateline, Carson City",61,61]
[null,null,null,null,null,null,null,"Wisconsin","Madison",null,null,null,null,null,null,null,"Steamboat Springs",56,56]
[null,null,null,null,null,null,null,"Wisconsin","Milwaukee",null,null,null,null,null,null,null,"Stockton ",56,56]
[null,null,null,null,null,null,null,"Wisconsin","Sheboygan",null,null,null,null,null,null,null,"Stowe ",71,71]
[null,null,null,null,null,null,null,"Wisconsin","Sturgeon Bay",null,null,null,null,null,null,null,"Stuart",51,51]
[null,null,null,null,null,null,null,"Wisconsin","Wisconsin Dells",null,null,null,null,null,null,null,"Sturgeon Bay",56,56]
[null,null,null,null,null,null,null,null,"Other",null,null,null,null,null,null,null,"Sturgis / Spearfish ",51,51]
[null,null,null,null,null,null,null,"Wyoming","Cody",null,null,null,null,null,null,null,"Sun Valley / Ketchum",71,71]
[null,null,null,null,null,null,null,"Wyoming","Evanston / Rock Springs",null,null,null,null,null,null,null,"Sunnyvale / Palo Alto / San Jose",56,56]
[null,null,null,null,null,null,null,"Wyoming","Gillette",null,null,null,null,null,null,null,"Syracuse / Oswego",56,56]
[null,null,null,null,null,null,null,"Wyoming","Jackson / Pinedale",null,null,null,null,null,null,null,"Tacoma",61,61]
[null,null,null,null,null,null,null,"Wyoming","Sheridan",null,null,null,null,null,null,null,"Tahoe City",61,61]
[null,null,null,null,null,null,null,null,"Other",null,null,null,null,null,null,null,"TALKEETNA",71,71]
[null,null,null,null,null,null,null,null,null,null,null,null,null,null,null,null,"Tallahassee",46,46]
[null,null,null,null,null,null,null,null,null,null,null,null,null,null,null,null,"Tampa / St. Petersburg",51,51]
[null,null,null,null,null,null,null,null,null,null,null,null,null,null,null,null,"TANANA",78,78]
[null,null,null,null,null,null,null,null,null,null,null,null,null,null,null,null,"Taos",66,66]
[null,null,null,null,null,null,null,null,null,null,null,null,null,null,null,null,"Tarrytown / White Plains / New Rochelle",71,71]
[null,null,null,null,null,null,null,null,null,null,null,null,null,null,null,null,"Telluride",71,71]
[null,null,null,null,null,null,null,null,null,null,null,null,null,null,null,null,"TINIAN",57,57]
[null,null,null,null,null,null,null,null,null,null,null,null,null,null,null,null,"TOGIAK",32,32]
[null,null,null,null,null,null,null,null,null,null,null,null,null,null,null,null,"TOK",58,58]
[null,null,null,null,null,null,null,null,null,null,null,null,null,null,null,null,"Toledo",46,46]
[null,null,null,null,null,null,null,null,null,null,null,null,null,null,null,null,"Tom’s River",51,51]
[null,null,null,null,null,null,null,null,null,null,null,null,null,null,null,null,"TORONTO",93,93]
[null,null,null,null,null,null,null,null,null,null,null,null,null,null,null,null,"Traverse City and Leland",51,51]
[null,null,null,null,null,null,null,null,null,null,null,null,null,null,null,null,"Troy ",51,51]
[null,null,null,null,null,null,null,null,null,null,null,null,null,null,null,null,"Truckee",71,71]
[null,null,null,null,null,null,null,null,null,null,null,null,null,null,null,null,"Tucson",56,56]
[null,null,null,null,null,null,null,null,null,null,null,null,null,null,null,null,"Tulsa ",61,61]
[null,null,null,null,null,null,null,null,null,null,null,null,null,null,null,null,"UMIAT",28,28]
[null,null,null,null,null,null,null,null,null,null,null,null,null,null,null,null,"Vail",71,71]
[null,null,null,null,null,null,null,null,null,null,null,null,null,null,null,null,"VALDEZ",68,68]
[null,null,null,null,null,null,null,null,null,null,null,null,null,null,null,null,"Valparaiso / Burlington Beach",51,51]
[null,null,null,null,null,null,null,null,null,null,null,null,null,null,null,null,"Vancouver",56,56]
[null,null,null,null,null,null,null,null,null,null,null,null,null,null,null,null,"VANCOUVER",96,96]
[null,null,null,null,null,null,null,null,null,null,null,null,null,null,null,null,"Vero Beach",51,51]
[null,null,null,null,null,null,null,null,null,null,null,null,null,null,null,null,"VICTORIA",99,99]
[null,null,null,null,null,null,null,null,null,null,null,null,null,null,null,null,"Virgin Islands (US)",80,80]
[null,null,null,null,null,null,null,null,null,null,null,null,null,null,null,null,"Virginia Beach",56,56]
[null,null,null,null,null,null,null,null,null,null,null,null,null,null,null,null,"Visalia / Lemoore",61,61]
[null,null,null,null,null,null,null,null,null,null,null,null,null,null,null,null,"Waco",51,51]
[null,null,null,null,null,null,null,null,null,null,null,null,null,null,null,null,"Wallops Island",56,56]
[null,null,null,null,null,null,null,null,null,null,null,null,null,null,null,null,"Warrenton ",46,46]
[null,null,null,null,null,null,null,null,null,null,null,null,null,null,null,null,"Washington, DC Metro Area",71,71]
[null,null,null,null,null,null,null,null,null,null,null,null,null,null,null,null,"Washington, DC Metro Area",71,71]
[null,null,null,null,null,null,null,null,null,null,null,null,null,null,null,null,"WASILLA",66,66]
[null,null,null,null,null,null,null,null,null,null,null,null,null,null,null,null,"Watertown",56,56]
[null,null,null,null,null,null,null,null,null,null,null,null,null,null,null,null,"West Point",51,51]
[null,null,null,null,null,null,null,null,null,null,null,null,null,null,null,null,"West Sacramento",51,51]
[null,null,null,null,null,null,null,null,null,null,null,null,null,null,null,null,"Wheeling",46,46]
[null,null,null,null,null,null,null,null,null,null,null,null,null,null,null,null,"White River Junction",56,56]
[null,null,null,null,null,null,null,null,null,null,null,null,null,null,null,null,"Wichita",56,56]
[null,null,null,null,null,null,null,null,null,null,null,null,null,null,null,null,"Williston",56,56]
[null,null,null,null,null,null,null,null,null,null,null,null,null,null,null,null,"WilmingtonDE",56,56]
[null,null,null,null,null,null,null,null,null,null,null,null,null,null,null,null,"WilmingtonNC",56,56]
[null,null,null,null,null,null,null,null,null,null,null,null,null,null,null,null,"WINNIPEG",91,91]
[null,null,null,null,null,null,null,null,null,null,null,null,null,null,null,null,"Winston-Salem",56,56]
[null,null,null,null,null,null,null,null,null,null,null,null,null,null,null,null,"Wisconsin Dells",61,61]
[null,null,null,null,null,null,null,null,null,null,null,null,null,null,null,null,"Worcester",61,61]
[null,null,null,null,null,null,null,null,null,null,null,null,null,null,null,null,"WRANGELL",50,50]
[null,null,null,null,null,null,null,null,null,null,null,null,null,null,null,null,"YAKUTAT",61,61]
[null,null,null,null,null,null,null,null,null,null,null,null,null,null,null,null,"YORK & SCARBOROUGH",93,93]
[null,null,null,null,null,null,null,null,null,null,null,null,null,null,null,null,"Yosemite National Park",71,71]
[null,null,null,null,null,null,null,null,null,null,null,null,null,null,null,null,"Youngstown",51,51]
[null,null,null,null,null,null,null,null,null,null,null,null,null,null,null,null,"Yuma",46,46]